Workbook

Sheet 1. Utility_Info_
AB1: Algoma Power Inc.
AB2: Atikokan Hydro Inc.
AB3: Attawapiskat Power Corporation
AB4: Bluewater Power Distribution Corp.
AB5: Brant County Power
AB6: Brantford Power Inc.
AB7: Burlington Hydro Inc.
AB8: Cambridge and North Dumfries Hydro
AB9: Canadian Niagara Power Inc. – Eastern Ontario Power/Fort Erie/Port Colborne
AB10: Centre Wellington Hydro Ltd.
AB11: Chapleau Public Utilities Corporation
AB12: COLLUS Power Corp.
F13: Version | G13: 6 | AB13: Cooperative Hydro Embrun Inc.
AB14: E.L.K. Energy Inc.
C15: Utility Name | D15: Rideau St. Lawrence Distribution Inc. | AB15: Enersource Hydro Mississauga Inc.
AB16: Entegrus Powerlines Inc.
C17: Assigned EB Number | D17: EB-2015-0100 | AB17: ENWIN Utilities Ltd.
AB18: Erie Thames Powerlines Corp.
C19: Name and Title | D19: Peter Soules, Chief Financial Officer | AB19: Espanola Regional Hydro Distribution Corporation
AB20: Essex Powerlines Corporation
C21: Phone Number | D21: (613) 925-3851 | AB21: Festival Hydro Inc.
AB22: Fort Albany Power Corporation
C23: Email Address | D23: psoules@rslu.ca | AB23: Fort Frances Power Corporation
AB24: Greater Sudbury Hydro Inc.
C25: Date | D25: 2016-06-22 | AB25: Grimsby Power Inc.
AB26: Guelph Hydro Electric Systems Inc.
C27: Last COS Re-based Year | D27: 2012 | AB27: Haldimand County Hydro Inc.
AB28: Halton Hills Hydro Inc.
AB29: Hearst Power Distribution Co. Ltd.
A30: Note: Drop-down lists are shaded blue; Input cells are shaded green.
AB32: Horizon Utilities Corporation
AB33: Hydro 2000 Inc.
AB34: Hydro Hawkesbury Inc.
AB35: Hydro One Brampton Networks Inc.
AB36: Hydro One Networks Inc.
AB37: Hydro One Remote Communities Inc.
AB38: Hydro Ottawa Limited
AB39: Innisfil Hydro Dist. Systems Limited
AB40: Kashechewan Power Corporation
AB41: Kenora Hydro Electric Corporation Ltd.
AB42: Kingston Hydro Corporation
AB43: Kitchener-Wilmot Hydro Inc.
AB44: Lakefront Utilities Inc.
AB45: Lakeland Power Distribution Ltd.
AB46: London Hydro Inc.
AB47: Midland Power Utility Corporation
AB48: Milton Hydro Distribution Inc.
AB49: Newmarket – Tay Power Distribution Ltd.
AB50: Niagara Peninsula Energy Inc.
AB51: Niagara-on-the-Lake Hydro Inc.
AB52: Norfolk Power Distribution Ltd.
AB53: North Bay Hydro Distribution Limited
AB54: Northern Ontario Wires Inc.
AB55: Oakville Hydro Distribution Inc.
AB56: Orangeville Hydro Limited
AB57: Orillia Power Distribution Corp.
AB58: Oshawa PUC Networks Inc.
AB59: Ottawa River Power Corporation
AB60: Parry Sound Power Corporation
AB61: Peterborough Distribution Inc.
AB62: PowerStream Inc.
AB63: PUC Distribution Inc.
AB64: Renfrew Hydro Inc.
AB65: Rideau St. Lawrence Distribution Inc.
AB66: St. Thomas Energy Inc.
AB67: Sioux Lookout Hydro Inc.
AB68: Thunder Bay Hydro Electricity Distribution
AB69: Tillsonburg Hydro Inc.
AB70: Toronto Hydro-Electric System Limited
AB71: Veridian Connections Inc.
AB72: Wasaga Distribution Inc.
AB73: Waterloo North Hydro Inc.
AB74: Welland Hydro Electric System Corp.
AB75: Wellington North Power Inc.
AB76: West Coast Huron Energy Inc.
AB77: Westario Power Inc.
AB78: Whitby Hydro Electric Corporation
AB79: Woodstock Hydro Services Inc.

Sheet 2. Smart_Meter_Costs
B13: Distributors must enter all incremental costs related to their smart meter program and all revenues recovered to date in the applicable tabs except for those costs (and associated revenues) for which the Board has approved on a final basis, i.e. capital costs have been included in rate base and OM&A costs in revenue requirement. For 2014, distributors that have completed their deployments by the end of 2013 are not expected to enter any capital costs. However, for OM&A, regardless of whether a distributor has deployments in 2014, distributors should enter the forecasted OM&A for 2014 for all smart meters in service.
G18: 2006 | I18: 2007 | K18: 2008 | M18: 2009 | O18: 2010 | Q18: 2011 | S18: 2012 | U18: 2013 | W18: 2014 | Y18: 2015 | AA18: 2016 | AC18: Total
B19: Smart Meter Capital Cost and Operational Expense Data | G19: Audited Actual | I19: Audited Actual | K19: Audited Actual | M19: Audited Actual | O19: Audited Actual | Q19: Audited Actual | S19: Audited Actual | U19: Audited Actual | W19: Forecast | Y19: Forecast | AA19: Forecast
C21: Smart Meter Installation Plan
C23: Actual/Planned number of Smart Meters installed during the Calendar Year
C25: Residential | AC25: =SUM(G25,I25,K25,M25,O25,Q25,S25,U25,W25,Y25,AA25) -> 0
C27: General Service < 50 kW | AC27: =SUM(G27,I27,K27,M27,O27,Q27,S27,U27,W27,Y27,AA27) -> 0
C29: Actual/Planned number of Smart Meters installed (Residential and GS < 50 kW only) | G29: =G25+G27 -> 0 | I29: =I25+I27 -> 0 | K29: =K25+K27 -> 0 | M29: =M25+M27 -> 0 | O29: =O25+O27 -> 0 | Q29: =Q25+Q27 -> 0 | S29: =S25+S27 -> 0 | U29: =U25+U27 -> 0 | W29: =W25+W27 -> 0 | Y29: =Y25+Y27 -> 0 | AA29: =AA25+AA27 -> 0 | AC29: =SUM(G29,I29,K29,M29,O29,Q29,S29,U29,W29,Y29,AA29) -> 0
C31: Percentage of Residential and GS < 50 kW Smart Meter Installations Completed | G31: =IF($AC29=0,0,G29/$AC29) -> 0 | I31: =IF(G31=100%, 0, IF(ISERROR(SUM(G29:I29)/$AC29),0,SUM(G29:I29)/$AC29)) -> 0 | K31: =IF(I31=100%, 0, IF(ISERROR(SUM(G29:K29)/$AC29), 0, SUM(G29:K29)/$AC29)) -> 0 | M31: =IF(K31=100%,0,IF(ISERROR(SUM(G29:M29)/$AC29),0,SUM(G29:M29)/$AC29)) -> 0 | O31: =IF(M31=100%,0,IF(ISERROR(SUM(G29:O29)/$AC29),0,SUM(G29:O29)/$AC29)) -> 0 | Q31: =IF(O31=100%,0,IF(ISERROR(SUM(G29:Q29)/$AC29),0,SUM(G29:Q29)/$AC29)) -> 0 | S31: =IF(Q31=100%,0,IF(ISERROR(SUM(G29:S29)/$AC29),0,SUM(G29:S29)/$AC29)) -> 0 | U31: =IF(S31=100%,0,IF(ISERROR(SUM(I29:U29)/$AC29),0,SUM(I29:U29)/$AC29)) -> 0 | W31: =IF(U31=100%,0,IF(ISERROR(SUM(K29:W29)/$AC29),0,SUM(K29:W29)/$AC29)) -> 0 | Y31: =IF(W31=100%,0,IF(ISERROR(SUM(M29:Y29)/$AC29),0,SUM(M29:Y29)/$AC29)) -> 0 | AA31: =IF(Y31=100%,0,IF(ISERROR(SUM(O29:AA29)/$AC29),0,SUM(O29:AA29)/$AC29)) -> 0 | AC31: =IF($AC29=0,"",AC29/$AC29) -> 
C33: Actual/Planned number of GS > 50 kW meters installed | AC33: =SUM(G33,I33,K33,M33,O33,Q33,S33,U33,W33,Y33,AA33) -> 0
C35: Other (please identify) | AC35: =SUM(G35,I35,K35,M35,O35,Q35,S35,U35,W35,Y35,AA35) -> 0
C37: Total Number of Smart Meters installed or planned to be installed | G37: =SUM(G29,G33,G35) -> 0 | I37: =SUM(I29,I33,I35) -> 0 | K37: =SUM(K29,K33,K35) -> 0 | M37: =SUM(M29,M33,M35) -> 0 | O37: =SUM(O29,O33,O35) -> 0 | Q37: =SUM(Q29,Q33,Q35) -> 0 | S37: =SUM(S29,S33,S35) -> 0 | U37: =SUM(U29,U33,U35) -> 0 | W37: =SUM(W29,W33,W35) -> 0 | Y37: =SUM(Y29,Y33,Y35) -> 0 | AA37: =SUM(AA29,AA33,AA35) -> 0 | AC37: =SUM(G37,I37,K37,M37,O37,Q37,S37,U37,W37,Y37,AA37) -> 0
B39: 1 | C39: Capital Costs
E40: Asset Type
C41: 1.1 ADVANCED METERING COMMUNICATION DEVICE (AMCD) | E41: Asset type must be selected to enable calculations | G41: =IF(ISBLANK(G19),"",G19) -> Audited Actual | I41: =IF(ISBLANK(I19),"",I19) -> Audited Actual | K41: =IF(ISBLANK(K19),"",K19) -> Audited Actual | M41: =IF(ISBLANK(M19),"",M19) -> Audited Actual | O41: =IF(ISBLANK(O19),"",O19) -> Audited Actual | Q41: =IF(ISBLANK(Q19),"",Q19) -> Audited Actual | S41: =IF(ISBLANK(S19),"",S19) -> Audited Actual | U41: =IF(ISBLANK(U19),"",U19) -> Audited Actual | W41: =IF(ISBLANK(W19),"",W19) -> Forecast | Y41: =IF(ISBLANK(Y19),"",Y19) -> Forecast | AA41: =IF(ISBLANK(AA19),"",AA19) -> Forecast
C42: 1.1.1 Smart Meters (may include new meters and modules, etc.) | AC42: =SUM(G42,I42,K42,M42,O42,Q42,S42,U42,W42,Y42,AA42) -> 0
C44: 1.1.2 Installation Costs (may include socket kits, labour, vehicle, benefits, etc.) | AC44: =SUM(G44,I44,K44,M44,O44,Q44,S44,U44,W44,Y44,AA44) -> 0
C46: 1.1.3a Workforce Automation Hardware (may include fieldwork handhelds, barcode hardware, etc.) | AC46: =SUM(G46,I46,K46,M46,O46,Q46,S46,U46,W46,Y46,AA46) -> 0
C48: 1.1.3b Workforce Automation Software (may include fieldwork handhelds, barcode hardware, etc.) | AC48: =SUM(G48,I48,K48,M48,O48,Q48,S48,U48,W48,Y48,AA48) -> 0
C50: Total Advanced Metering Communications Devices (AMCD) | G50: =SUM(G42,G44,G46,G48) -> 0 | I50: =SUM(I42,I44,I46,I48) -> 0 | K50: =SUM(K42,K44,K46,K48) -> 0 | M50: =SUM(M42,M44,M46,M48) -> 0 | O50: =SUM(O42,O44,O46,O48) -> 0 | Q50: =SUM(Q42,Q44,Q46,Q48) -> 0 | S50: =SUM(S42,S44,S46,S48) -> 0 | U50: =SUM(U42,U44,U46,U48) -> 0 | W50: =SUM(W42,W44,W46,W48) -> 0 | Y50: =SUM(Y42,Y44,Y46,Y48) -> 0 | AA50: =SUM(AA42,AA44,AA46,AA48) -> 0 | AC50: =AC42+AC44+AC46+AC48 -> 0
E52: =E40 -> Asset Type
C53: 1.2 ADVANCED METERING REGIONAL COLLECTOR (AMRC) (includes LAN) | G53: =G41 -> Audited Actual | I53: =I41 -> Audited Actual | K53: =K41 -> Audited Actual | M53: =M41 -> Audited Actual | O53: =O41 -> Audited Actual | Q53: =Q41 -> Audited Actual | S53: =S41 -> Audited Actual | U53: =U41 -> Audited Actual | W53: =W41 -> Forecast | Y53: =Y41 -> Forecast | AA53: =AA41 -> Forecast
C54: 1.2.1 Collectors | AC54: =SUM(G54,I54,K54,M54,O54,Q54,S54,U54,W54,Y54,AA54) -> 0
C56: 1.2.2 Repeaters (may include radio licence, etc.) | AC56: =SUM(G56,I56,K56,M56,O56,Q56,S56,U56,W56,Y56,AA56) -> 0
C58: 1.2.3 Installation (may include meter seals and rings, collector computer hardware, etc.) | AC58: =SUM(G58,I58,K58,M58,O58,Q58,S58,U58,W58,Y58,AA58) -> 0
C60: Total Advanced Metering Regional Collector (AMRC) (Includes LAN) | G60: =G54+G56+G58 -> 0 | I60: =I54+I56+I58 -> 0 | K60: =K54+K56+K58 -> 0 | M60: =M54+M56+M58 -> 0 | O60: =O54+O56+O58 -> 0 | Q60: =Q54+Q56+Q58 -> 0 | S60: =S54+S56+S58 -> 0 | U60: =U54+U56+U58 -> 0 | W60: =W54+W56+W58 -> 0 | Y60: =Y54+Y56+Y58 -> 0 | AA60: =AA54+AA56+AA58 -> 0 | AC60: =AC54+AC56+AC58 -> 0
E62: =E52 -> Asset Type
C63: 1.3 ADVANCED METERING CONTROL COMPUTER (AMCC) | G63: =G53 -> Audited Actual | I63: =I53 -> Audited Actual | K63: =K53 -> Audited Actual | M63: =M53 -> Audited Actual | O63: =O53 -> Audited Actual | Q63: =Q53 -> Audited Actual | S63: =S53 -> Audited Actual | U63: =U53 -> Audited Actual | W63: =W53 -> Forecast | Y63: =Y53 -> Forecast | AA63: =AA53 -> Forecast
C64: 1.3.1 Computer Hardware | AC64: =SUM(G64,I64,K64,M64,O64,Q64,S64,U64,W64,Y64,AA64) -> 0
C66: 1.3.2 Computer Software | AC66: =SUM(G66,I66,K66,M66,O66,Q66,S66,U66,W66,Y66,AA66) -> 0
C68: 1.3.3 Computer Software Licences & Installation (includes hardware and software) | AC68: =SUM(G68,I68,K68,M68,O68,Q68,S68,U68,W68,Y68,AA68) -> 0
C69: (may include AS/400 disk space, backup and recovery computer, UPS, etc.)
C70: Total Advanced Metering Control Computer (AMCC) | G70: =G64+G66+G68 -> 0 | I70: =I64+I66+I68 -> 0 | K70: =K64+K66+K68 -> 0 | M70: =M64+M66+M68 -> 0 | O70: =O64+O66+O68 -> 0 | Q70: =Q64+Q66+Q68 -> 0 | S70: =S64+S66+S68 -> 0 | U70: =U64+U66+U68 -> 0 | W70: =W64+W66+W68 -> 0 | Y70: =Y64+Y66+Y68 -> 0 | AA70: =AA64+AA66+AA68 -> 0 | AC70: =AC64+AC66+AC68 -> 0
E72: =E62 -> Asset Type
C73: 1.4 WIDE AREA NETWORK (WAN) | G73: =G63 -> Audited Actual | I73: =I63 -> Audited Actual | K73: =K63 -> Audited Actual | M73: =M63 -> Audited Actual | O73: =O63 -> Audited Actual | Q73: =Q63 -> Audited Actual | S73: =S63 -> Audited Actual | U73: =U63 -> Audited Actual | W73: =W63 -> Forecast | Y73: =Y63 -> Forecast | AA73: =AA63 -> Forecast
C75: 1.4.1 Activiation Fees | AC75: =SUM(G75,I75,K75,M75,O75,Q75,S75,U75,W75,Y75,AA75) -> 0
C77: Total Wide Area Network (WAN) | G77: =G75 -> 0 | I77: =I75 -> 0 | K77: =K75 -> 0 | M77: =M75 -> 0 | O77: =O75 -> 0 | Q77: =Q75 -> 0 | S77: =S75 -> 0 | U77: =U75 -> 0 | W77: =W75 -> 0 | Y77: =Y75 -> 0 | AA77: =AA75 -> 0 | AC77: =AC75 -> 0
E79: =E72 -> Asset Type
C80: 1.5 OTHER AMI CAPITAL COSTS RELATED TO MINIMUM FUNCTIONALITY | G80: =G73 -> Audited Actual | I80: =I73 -> Audited Actual | K80: =K73 -> Audited Actual | M80: =M73 -> Audited Actual | O80: =O73 -> Audited Actual | Q80: =Q73 -> Audited Actual | S80: =S73 -> Audited Actual | U80: =U73 -> Audited Actual | W80: =W73 -> Forecast | Y80: =Y73 -> Forecast | AA80: =AA73 -> Forecast
C82: 1.5.1 Customer Equipment (including repair of damaged equipment) | AC82: =SUM(G82,I82,K82,M82,O82,Q82,S82,U82,W82,Y82,AA82) -> 0
C84: 1.5.2 AMI Interface to CIS | AC84: =SUM(G84,I84,K84,M84,O84,Q84,S84,U84,W84,Y84,AA84) -> 0
C86: 1.5.3 Professional Fees | AC86: =SUM(G86,I86,K86,M86,O86,Q86,S86,U86,W86,Y86,AA86) -> 0
C88: 1.5.4 Integration | AC88: =SUM(G88,I88,K88,M88,O88,Q88,S88,U88,W88,Y88,AA88) -> 0
C90: 1.5.5 Program Management | AC90: =SUM(G90,I90,K90,M90,O90,Q90,S90,U90,W90,Y90,AA90) -> 0
C92: 1.5.6 Other AMI Capital | AC92: =SUM(G92,I92,K92,M92,O92,Q92,S92,U92,W92,Y92,AA92) -> 0
C94: Total Other AMI Capital Costs Related to Minimum Functionality | G94: =SUM(G82,G84,G86,G88,G90,G92) -> 0 | I94: =SUM(I82,I84,I86,I88,I90,I92) -> 0 | K94: =SUM(K82,K84,K86,K88,K90,K92) -> 0 | M94: =SUM(M82,M84,M86,M88,M90,M92) -> 0 | O94: =SUM(O82,O84,O86,O88,O90,O92) -> 0 | Q94: =SUM(Q82,Q84,Q86,Q88,Q90,Q92) -> 0 | S94: =SUM(S82,S84,S86,S88,S90,S92) -> 0 | U94: =SUM(U82,U84,U86,U88,U90,U92) -> 0 | W94: =SUM(W82,W84,W86,W88,W90,W92) -> 0 | Y94: =SUM(Y82,Y84,Y86,Y88,Y90,Y92) -> 0 | AA94: =SUM(AA82,AA84,AA86,AA88,AA90,AA92) -> 0 | AC94: =SUM(AC82,AC84,AC86,AC88,AC90,AC92) -> 0
C96: Total Capital Costs Related to Minimum Functionality | G96: =SUM(G50,G60,G70,G77,G94) -> 0 | I96: =SUM(I50,I60,I70,I77,I94) -> 0 | K96: =SUM(K50,K60,K70,K77,K94) -> 0 | M96: =SUM(M50,M60,M70,M77,M94) -> 0 | O96: =SUM(O50,O60,O70,O77,O94) -> 0 | Q96: =SUM(Q50,Q60,Q70,Q77,Q94) -> 0 | S96: =SUM(S50,S60,S70,S77,S94) -> 0 | U96: =SUM(U50,U60,U70,U77,U94) -> 0 | W96: =SUM(W50,W60,W70,W77,W94) -> 0 | Y96: =SUM(Y50,Y60,Y70,Y77,Y94) -> 0 | AA96: =SUM(AA50,AA60,AA70,AA77,AA94) -> 0 | AC96: =SUM(AC50,AC60,AC70,AC77,AC94) -> 0
E98: =E79 -> Asset Type
C99: 1.6 CAPITAL COSTS BEYOND MINIMUM FUNCTIONALITY | G99: =G80 -> Audited Actual | I99: =I80 -> Audited Actual | K99: =K80 -> Audited Actual | M99: =M80 -> Audited Actual | O99: =O80 -> Audited Actual | Q99: =Q80 -> Audited Actual | S99: =S80 -> Audited Actual | U99: =U80 -> Audited Actual | W99: =W80 -> Forecast | Y99: =Y80 -> Forecast | AA99: =AA80 -> Forecast
C100: (Please provide a descriptive title and identify nature of beyond minimum functionality costs)
C101: 1.6.1 Costs related to technical capabilities in the smart meters or related communications infrastructure that exceed those specified in O.Reg 425/06 | AC101: =SUM(G101,I101,K101,M101,O101,Q101,S101,U101,W101,Y101,AA101) -> 0
C103: 1.6.2 Costs for deployment of smart meters to customers other than residential and small general service | AC103: =SUM(G103,I103,K103,M103,O103,Q103,S103,U103,W103,Y103,AA103) -> 0
C105: 1.6.3 Costs for TOU rate implementation, CIS system upgrades, web presentation, integration with the MDM/R, etc. | E105: Computer Hardware | Q105: =10311.09+931.24+1475.45+74.18+14.73+26663.3 -> 39469.99 | AC105: =SUM(G105,I105,K105,M105,O105,Q105,S105,U105,W105,Y105,AA105) -> 39469.99
C107: Total Capital Costs Beyond Minimum Functionality | G107: =SUM(G101,G103,G105) -> 0 | I107: =SUM(I101,I103,I105) -> 0 | K107: =SUM(K101,K103,K105) -> 0 | M107: =SUM(M101,M103,M105) -> 0 | O107: =SUM(O101,O103,O105) -> 0 | Q107: =SUM(Q101,Q103,Q105) -> 39469.99 | S107: =SUM(S101,S103,S105) -> 0 | U107: =SUM(U101,U103,U105) -> 0 | W107: =SUM(W101,W103,W105) -> 0 | Y107: =SUM(Y101,Y103,Y105) -> 0 | AA107: =SUM(AA101,AA103,AA105) -> 0 | AC107: =SUM(AC101,AC103,AC105) -> 39469.99
C109: Total Smart Meter Capital Costs | G109: =G96+G107 -> 0 | I109: =I96+I107 -> 0 | K109: =K96+K107 -> 0 | M109: =M96+M107 -> 0 | O109: =O96+O107 -> 0 | Q109: =Q96+Q107 -> 39469.99 | S109: =S96+S107 -> 0 | U109: =U96+U107 -> 0 | W109: =W96+W107 -> 0 | Y109: =Y96+Y107 -> 0 | AA109: =AA96+AA107 -> 0 | AC109: =AC96+AC107 -> 39469.99
B111: 2 | C111: OM&A Expenses
C112: 2.1 ADVANCED METERING COMMUNICATION DEVICE (AMCD) | G112: =G99 -> Audited Actual | I112: =I99 -> Audited Actual | K112: =K99 -> Audited Actual | M112: =M99 -> Audited Actual | O112: =O99 -> Audited Actual | Q112: =Q99 -> Audited Actual | S112: =S99 -> Audited Actual | U112: =U99 -> Audited Actual | W112: =W99 -> Forecast | Y112: =Y99 -> Forecast | AA112: =AA99 -> Forecast
C114: 2.1.1 Maintenance (may include meter reverification costs, etc.) | AC114: =SUM(G114,I114,K114,M114,O114,Q114,S114,U114,W114,Y114,AA114) -> 0
C116: 2.1.2 Other (please specifiy) | AC116: =SUM(G116,I116,K116,M116,O116,Q116,S116,U116,W116,Y116,AA116) -> 0
C118: Total Incremental AMCD OM&A Costs | G118: =SUM(G114,G116) -> 0 | I118: =SUM(I114,I116) -> 0 | K118: =SUM(K114,K116) -> 0 | M118: =SUM(M114,M116) -> 0 | O118: =SUM(O114,O116) -> 0 | Q118: =SUM(Q114,Q116) -> 0 | S118: =SUM(S114,S116) -> 0 | U118: =SUM(U114,U116) -> 0 | W118: =SUM(W114,W116) -> 0 | Y118: =SUM(Y114,Y116) -> 0 | AA118: =SUM(AA114,AA116) -> 0 | AC118: =SUM(AC114,AC116) -> 0
C120: 2.2 ADVANCED METERING REGIONAL COLLECTOR (AMRC) (includes LAN)
C122: 2.2.1 Maintenance | AC122: =SUM(G122,I122,K122,M122,O122,Q122,S122,U122,W122,Y122,AA122) -> 0
C124: 2.2.2 Other (please specifiy) | AC124: =SUM(G124,I124,K124,M124,O124,Q124,S124,U124,W124,Y124,AA124) -> 0
C126: Total Incremental AMRC OM&A Costs | G126: =SUM(G122,G124) -> 0 | I126: =SUM(I122,I124) -> 0 | K126: =SUM(K122,K124) -> 0 | M126: =SUM(M122,M124) -> 0 | O126: =SUM(O122,O124) -> 0 | Q126: =SUM(Q122,Q124) -> 0 | S126: =SUM(S122,S124) -> 0 | U126: =SUM(U122,U124) -> 0 | W126: =SUM(W122,W124) -> 0 | Y126: =SUM(Y122,Y124) -> 0 | AA126: =SUM(AA122,AA124) -> 0 | AC126: =SUM(AC122,AC124) -> 0
C128: 2.3 ADVANCED METERING CONTROL COMPUTER (AMCC)
C130: 2.3.1 Hardware Maintenance (may include server support, etc.) | AC130: =SUM(G130,I130,K130,M130,O130,Q130,S130,U130,W130,Y130,AA130) -> 0
C132: 2.3.2 Software Maintenance (may include maintenance support, etc.) | AC132: =SUM(G132,I132,K132,M132,O132,Q132,S132,U132,W132,Y132,AA132) -> 0
C134: 2.3.2 Other (please specifiy) | AC134: =SUM(G134,I134,K134,M134,O134,Q134,S134,U134,W134,Y134,AA134) -> 0
C136: Total Incremental AMCC OM&A Costs | G136: =SUM(G130,G132,G134) -> 0 | I136: =SUM(I130,I132,I134) -> 0 | K136: =SUM(K130,K132,K134) -> 0 | M136: =SUM(M130,M132,M134) -> 0 | O136: =SUM(O130,O132,O134) -> 0 | Q136: =SUM(Q130,Q132,Q134) -> 0 | S136: =SUM(S130,S132,S134) -> 0 | U136: =SUM(U130,U132,U134) -> 0 | W136: =SUM(W130,W132,W134) -> 0 | Y136: =SUM(Y130,Y132,Y134) -> 0 | AA136: =SUM(AA130,AA132,AA134) -> 0 | AC136: =SUM(AC130,AC132,AC134) -> 0
C138: 2.4 WIDE AREA NETWORK (WAN)
C140: 2.4.1 WAN Maintenance | AC140: =SUM(G140,I140,K140,M140,O140,Q140,S140,U140,W140,Y140,AA140) -> 0
C142: 2.4.2 Other (please specifiy) | AC142: =SUM(G142,I142,K142,M142,O142,Q142,S142,U142,W142,Y142,AA142) -> 0
C144: Total Incremental AMRC OM&A Costs | G144: =SUM(G140,G142) -> 0 | I144: =SUM(I140,I142) -> 0 | K144: =SUM(K140,K142) -> 0 | M144: =SUM(M140,M142) -> 0 | O144: =SUM(O140,O142) -> 0 | Q144: =SUM(Q140,Q142) -> 0 | S144: =SUM(S140,S142) -> 0 | U144: =SUM(U140,U142) -> 0 | W144: =SUM(W140,W142) -> 0 | Y144: =SUM(Y140,Y142) -> 0 | AA144: =SUM(AA140,AA142) -> 0 | AC144: =SUM(AC140,AC142) -> 0
C146: 2.5 OTHER AMI OM&A COSTS RELATED TO MINIMUM FUNCTIONALITY
C148: 2.5.1 Business Process Redesign | AC148: =SUM(G148,I148,K148,M148,O148,Q148,S148,U148,W148,Y148,AA148) -> 0
C150: 2.5.2 Customer Communication (may include project communication, etc.) | AC150: =SUM(G150,I150,K150,M150,O150,Q150,S150,U150,W150,Y150,AA150) -> 0
C152: 2.5.3 Program Management | AC152: =SUM(G152,I152,K152,M152,O152,Q152,S152,U152,W152,Y152,AA152) -> 0
C154: 2.5.4 Change Management (may include training, etc.) | AC154: =SUM(G154,I154,K154,M154,O154,Q154,S154,U154,W154,Y154,AA154) -> 0
C156: 2.5.5 Administration Costs | AC156: =SUM(G156,I156,K156,M156,O156,Q156,S156,U156,W156,Y156,AA156) -> 0
C158: 2.5.6 Other AMI Expenses | AC158: =SUM(G158,I158,K158,M158,O158,Q158,S158,U158,W158,Y158,AA158) -> 0
C159: (please specify)
C160: Total Other AMI OM&A Costs Related to Minimum Functionality | G160: =SUM(G158,G156,G154,G152,G150,G148) -> 0 | I160: =SUM(I158,I156,I154,I152,I150,I148) -> 0 | K160: =SUM(K158,K156,K154,K152,K150,K148) -> 0 | M160: =SUM(M158,M156,M154,M152,M150,M148) -> 0 | O160: =SUM(O158,O156,O154,O152,O150,O148) -> 0 | Q160: =SUM(Q158,Q156,Q154,Q152,Q150,Q148) -> 0 | S160: =SUM(S158,S156,S154,S152,S150,S148) -> 0 | U160: =SUM(U158,U156,U154,U152,U150,U148) -> 0 | W160: =SUM(W158,W156,W154,W152,W150,W148) -> 0 | Y160: =SUM(Y158,Y156,Y154,Y152,Y150,Y148) -> 0 | AA160: =SUM(AA158,AA156,AA154,AA152,AA150,AA148) -> 0 | AC160: =SUM(AC154,AC156,AC158,AC152,AC150,AC148) -> 0
C162: TOTAL OM&A COSTS RELATED TO MINIMUM FUNCTIONALITY | G162: =SUM(G118,G126,G136,G144,G160) -> 0 | I162: =SUM(I118,I126,I136,I144,I160) -> 0 | K162: =SUM(K118,K126,K136,K144,K160) -> 0 | M162: =SUM(M118,M126,M136,M144,M160) -> 0 | O162: =SUM(O118,O126,O136,O144,O160) -> 0 | Q162: =SUM(Q118,Q126,Q136,Q144,Q160) -> 0 | S162: =SUM(S118,S126,S136,S144,S160) -> 0 | U162: =SUM(U118,U126,U136,U144,U160) -> 0 | W162: =SUM(W118,W126,W136,W144,W160) -> 0 | Y162: =SUM(Y118,Y126,Y136,Y144,Y160) -> 0 | AA162: =SUM(AA118,AA126,AA136,AA144,AA160) -> 0 | AC162: =SUM(AC118,AC126,AC136,AC144,AC160) -> 0
C164: 2.6 OM&A COSTS RELATED TO BEYOND MINIMUM FUNCTIONALITY | G164: =G112 -> Audited Actual | I164: =I112 -> Audited Actual | K164: =K112 -> Audited Actual | M164: =M112 -> Audited Actual | O164: =O112 -> Audited Actual | Q164: =Q112 -> Audited Actual | S164: =S112 -> Audited Actual | U164: Audited Actual | W164: Forecast | Y164: =Y112 -> Forecast | AA164: Forecast
C165: (Please provide a descriptive title and identify nature of beyond minimum functionality costs)
C166: 2.6.1 Costs related to technical capabilities in the smart meters or related communications infrastructure that exceed those specified in O.Reg 425/06 | AC166: =SUM(G166,I166,K166,M166,O166,Q166,S166,U166,W166,Y166,AA166) -> 0
C168: 2.6.2 Costs for deployment of smart meters to customers other than residential and small general service | AC168: =SUM(G168,I168,K168,M168,O168,Q168,S168,U168,W168,Y168,AA168) -> 0
C170: 2.6.3 Costs for TOU rate implementation, CIS system upgrades, web presentation, integration with the MDM/R, etc. | AC170: =SUM(G170,I170,K170,M170,O170,Q170,S170,U170,W170,Y170,AA170) -> 0
C172: Total OM&A Costs Beyond Minimum Functionality | G172: =SUM(G166,G168,G170) -> 0 | I172: =SUM(I166,I168,I170) -> 0 | K172: =SUM(K166,K168,K170) -> 0 | M172: =SUM(M166,M168,M170) -> 0 | O172: =SUM(O166,O168,O170) -> 0 | Q172: =SUM(Q166,Q168,Q170) -> 0 | S172: =SUM(S166,S168,S170) -> 0 | U172: =SUM(U166,U168,U170) -> 0 | W172: =SUM(W166,W168,W170) -> 0 | Y172: =SUM(Y166,Y168,Y170) -> 0 | AA172: =SUM(AA166,AA168,AA170) -> 0 | AC172: =SUM(AC166,AC168,AC170) -> 0
C174: Total Smart Meter OM&A Costs | G174: =G162+G172 -> 0 | I174: =I162+I172 -> 0 | K174: =K162+K172 -> 0 | M174: =M162+M172 -> 0 | O174: =O162+O172 -> 0 | Q174: =Q162+Q172 -> 0 | S174: =S162+S172 -> 0 | U174: =U162+U172 -> 0 | W174: =W162+W172 -> 0 | Y174: =Y162+Y172 -> 0 | AA174: =AA162+AA172 -> 0 | AC174: =AC162+AC172 -> 0
B177: 3 | C177: Aggregate Smart Meter Costs by Category
C179: 3.1 | D179: Capital
C181: 3.1.1 | D181: Smart Meter | G181: =SUMIF($E$42:$E$105,$D181,G$42:G$105) -> 0 | I181: =SUMIF($E$42:$E$105,$D181,I$42:I$105) -> 0 | K181: =SUMIF($E$42:$E$105,$D181,K$42:K$105) -> 0 | M181: =SUMIF($E$42:$E$105,$D181,M$42:M$105) -> 0 | O181: =SUMIF($E$42:$E$105,$D181,O$42:O$105) -> 0 | Q181: =SUMIF($E$42:$E$105,$D181,Q$42:Q$105) -> 0 | S181: =SUMIF($E$42:$E$105,$D181,S$42:S$105) -> 0 | U181: =SUMIF($E$42:$E$105,$D181,U$42:U$105) -> 0 | W181: =SUMIF($E$42:$E$105,$D181,W$42:W$105) -> 0 | Y181: =SUMIF($E$42:$E$105,$D181,Y$42:Y$105) -> 0 | AA181: =SUMIF($E$42:$E$105,$D181,AA$42:AA$105) -> 0 | AC181: =SUM(G181:AA181) -> 0
C183: 3.1.2 | D183: Computer Hardware | G183: =SUMIF($E$42:$E$105,$D183,G$42:G$105) -> 0 | I183: =SUMIF($E$42:$E$105,$D183,I$42:I$105) -> 0 | K183: =SUMIF($E$42:$E$105,$D183,K$42:K$105) -> 0 | M183: =SUMIF($E$42:$E$105,$D183,M$42:M$105) -> 0 | O183: =SUMIF($E$42:$E$105,$D183,O$42:O$105) -> 0 | Q183: =SUMIF($E$42:$E$105,$D183,Q$42:Q$105) -> 39469.99 | S183: =SUMIF($E$42:$E$105,$D183,S$42:S$105) -> 0 | U183: =SUMIF($E$42:$E$105,$D183,U$42:U$105) -> 0 | W183: =SUMIF($E$42:$E$105,$D183,W$42:W$105) -> 0 | Y183: =SUMIF($E$42:$E$105,$D183,Y$42:Y$105) -> 0 | AA183: =SUMIF($E$42:$E$105,$D183,AA$42:AA$105) -> 0 | AC183: =SUM(G183:AA183) -> 39469.99
C185: 3.1.3 | D185: Computer Software | G185: =SUMIF($E$42:$E$105,$D185,G$42:G$105) -> 0 | I185: =SUMIF($E$42:$E$105,$D185,I$42:I$105) -> 0 | K185: =SUMIF($E$42:$E$105,$D185,K$42:K$105) -> 0 | M185: =SUMIF($E$42:$E$105,$D185,M$42:M$105) -> 0 | O185: =SUMIF($E$42:$E$105,$D185,O$42:O$105) -> 0 | Q185: =SUMIF($E$42:$E$105,$D185,Q$42:Q$105) -> 0 | S185: =SUMIF($E$42:$E$105,$D185,S$42:S$105) -> 0 | U185: =SUMIF($E$42:$E$105,$D185,U$42:U$105) -> 0 | W185: =SUMIF($E$42:$E$105,$D185,W$42:W$105) -> 0 | Y185: =SUMIF($E$42:$E$105,$D185,Y$42:Y$105) -> 0 | AA185: =SUMIF($E$42:$E$105,$D185,AA$42:AA$105) -> 0 | AC185: =SUM(G185:AA185) -> 0
C187: 3.1.4 | D187: Tools & Equipment | G187: =SUMIF($E$42:$E$105,$D187,G$42:G$105) -> 0 | I187: =SUMIF($E$42:$E$105,$D187,I$42:I$105) -> 0 | K187: =SUMIF($E$42:$E$105,$D187,K$42:K$105) -> 0 | M187: =SUMIF($E$42:$E$105,$D187,M$42:M$105) -> 0 | O187: =SUMIF($E$42:$E$105,$D187,O$42:O$105) -> 0 | Q187: =SUMIF($E$42:$E$105,$D187,Q$42:Q$105) -> 0 | S187: =SUMIF($E$42:$E$105,$D187,S$42:S$105) -> 0 | U187: =SUMIF($E$42:$E$105,$D187,U$42:U$105) -> 0 | W187: =SUMIF($E$42:$E$105,$D187,W$42:W$105) -> 0 | Y187: =SUMIF($E$42:$E$105,$D187,Y$42:Y$105) -> 0 | AA187: =SUMIF($E$42:$E$105,$D187,AA$42:AA$105) -> 0 | AC187: =SUM(G187:AA187) -> 0
C189: 3.1.5 | D189: Other Equipment | G189: =SUMIF($E$42:$E$105,$D189,G$42:G$105) -> 0 | I189: =SUMIF($E$42:$E$105,$D189,I$42:I$105) -> 0 | K189: =SUMIF($E$42:$E$105,$D189,K$42:K$105) -> 0 | M189: =SUMIF($E$42:$E$105,$D189,M$42:M$105) -> 0 | O189: =SUMIF($E$42:$E$105,$D189,O$42:O$105) -> 0 | Q189: =SUMIF($E$42:$E$105,$D189,Q$42:Q$105) -> 0 | S189: =SUMIF($E$42:$E$105,$D189,S$42:S$105) -> 0 | U189: =SUMIF($E$42:$E$105,$D189,U$42:U$105) -> 0 | W189: =SUMIF($E$42:$E$105,$D189,W$42:W$105) -> 0 | Y189: =SUMIF($E$42:$E$105,$D189,Y$42:Y$105) -> 0 | AA189: =SUMIF($E$42:$E$105,$D189,AA$42:AA$105) -> 0 | AC189: =SUM(G189:AA189) -> 0
C191: 3.1.6 | D191: Applications Software | G191: =SUMIF($E$42:$E$105,$D191,G$42:G$105) -> 0 | I191: =SUMIF($E$42:$E$105,$D191,I$42:I$105) -> 0 | K191: =SUMIF($E$42:$E$105,$D191,K$42:K$105) -> 0 | M191: =SUMIF($E$42:$E$105,$D191,M$42:M$105) -> 0 | O191: =SUMIF($E$42:$E$105,$D191,O$42:O$105) -> 0 | Q191: =SUMIF($E$42:$E$105,$D191,Q$42:Q$105) -> 0 | S191: =SUMIF($E$42:$E$105,$D191,S$42:S$105) -> 0 | U191: =SUMIF($E$42:$E$105,$D191,U$42:U$105) -> 0 | W191: =SUMIF($E$42:$E$105,$D191,W$42:W$105) -> 0 | Y191: =SUMIF($E$42:$E$105,$D191,Y$42:Y$105) -> 0 | AA191: =SUMIF($E$42:$E$105,$D191,AA$42:AA$105) -> 0 | AC191: =SUM(G191:AA191) -> 0
C193: 3.1.7 | D193: Total Capital Costs | G193: =SUM(G181:G191) -> 0 | I193: =SUM(I181:I191) -> 0 | K193: =SUM(K181:K191) -> 0 | M193: =SUM(M181:M191) -> 0 | O193: =SUM(O181:O191) -> 0 | Q193: =SUM(Q181:Q191) -> 39469.99 | S193: =SUM(S181:S191) -> 0 | U193: =SUM(U181:U191) -> 0 | W193: =SUM(W181:W191) -> 0 | Y193: =SUM(Y181:Y191) -> 0 | AA193: =SUM(AA181:AA191) -> 0 | AC193: =SUM(AC181:AC191) -> 39469.99
G194: =IF(G193=G109,"","Error") ->  | I194: =IF(I193=I109,"","Error") ->  | K194: =IF(K193=K109,"","Error") ->  | M194: =IF(M193=M109,"","Error") ->  | O194: =IF(O193=O109,"","Error") ->  | Q194: =IF(Q193=Q109,"","Error") ->  | S194: =IF(S193=S109,"","Error") ->  | U194: =IF(U193=U109,"","Error") ->  | W194: =IF(W193=W109,"","Error") ->  | Y194: =IF(Y193=Y109,"","Error") ->  | AA194: =IF(AA193=AA109,"","Error") ->  | AC194: =IF(AC193=AC109,"","Error") -> 
C195: 3.2 | D195: OM&A Costs
C197: 3.2.1 | D197: Total OM&A Costs | G197: =G174 -> 0 | I197: =I174 -> 0 | K197: =K174 -> 0 | M197: =M174 -> 0 | O197: =O174 -> 0 | Q197: =Q174 -> 0 | S197: =S174 -> 0 | U197: =U174 -> 0 | W197: =W174 -> 0 | Y197: =Y174 -> 0 | AA197: =AA174 -> 0 | AC197: =AC174 -> 0

Sheet 3. Cost_of_Service_Parameters
G19: 2006 | I19: 2007 | K19: 2008 | M19: 2009 | O19: 2010 | Q19: 2011 | S19: 2012 | U19: 2013 | W19: 2014 | Y19: 2015 | AA19: 2016
B20: Cost of Capital
C21: Capital Structure1
D22: Deemed Short-term Debt Capitalization | Q22: 0.04 | S22: 0.04 | U22: 0.04 | W22: 0.04 | Y22: 0.04 | AA22: 0.04
D23: Deemed Long-term Debt Capitalization | I23: =G23 -> 0 | K23: =IF(I23=50%,53.3%-K22,IF(I23=55%,57.5%-K22,IF(I23=65%,62.5%-K22,60%-K22))) -> 0.6 | M23: =IF(I23=50%,56.7%-M22,60%-M22) -> 0.6 | O23: =60%-O22 -> 0.6 | Q23: =O23-(Q22-O22) -> 0.56 | S23: =Q23-(S22-Q22) -> 0.56 | U23: =S23-(U22-S22) -> 0.56 | W23: =U23-(W22-U22) -> 0.56 | Y23: =W23-(Y22-W22) -> 0.56 | AA23: =Y23-(AA22-Y22) -> 0.56
D24: Deemed Equity Capitalization | G24: =100%-G23-G25 -> 1 | I24: =100%-I23-I25-I22 -> 1 | K24: =100%-K23-K25-K22 -> 0.4 | M24: =100%-M23-M25-M22 -> 0.4 | O24: =100%-O23-O25-O22 -> 0.4 | Q24: =100%-Q23-Q25-Q22 -> 0.4 | S24: =100%-S23-S25-S22 -> 0.4 | U24: =100%-U23-U25-U22 -> 0.4 | W24: =100%-W23-W25-W22 -> 0.4 | Y24: =100%-Y23-Y25-Y22 -> 0.4 | AA24: =100%-AA23-AA25-AA22 -> 0.4
D25: Preferred Shares
C26: Total | G26: =SUM(G22:G25) -> 1 | I26: =SUM(I22:I25) -> 1 | K26: =SUM(K22:K25) -> 1 | M26: =SUM(M22:M25) -> 1 | O26: =SUM(O22:O25) -> 1 | Q26: =SUM(Q22:Q25) -> 1 | S26: =SUM(S22:S25) -> 1 | U26: =SUM(U22:U25) -> 1 | W26: =SUM(W22:W25) -> 1 | Y26: =SUM(Y22:Y25) -> 1 | AA26: =SUM(AA22:AA25) -> 1
C28: Cost of Capital Parameters
D29: Deemed Short-term Debt Rate | Q29: 0.0447 | S29: 0.0208 | U29: 0.0208 | W29: 0.0208 | Y29: 0.0208 | AA29: ='[3]App.2-OA Capital Structure'!$K$23 -> 0.0165
D30: Long-term Debt Rate (actual/embedded/deemed)2 | G30: =IF(G23=50%,6.25%,IF(G23=55%,6%,IF(G23=60%,5.9%,5.8%))) -> 0.058 | I30: =G30 -> 0.058 | Q30: 0.0499 | S30: 0.0375 | U30: 0.0375 | W30: 0.0375 | Y30: 0.0375 | AA30: ='[3]App.2-OA Capital Structure'!$K$22 -> 0.0336
D31: Target Return on Equity (ROE) | G31: 0.09 | I31: =G31 -> 0.09 | Q31: 0.0857 | S31: 0.0912 | U31: 0.0912 | W31: 0.0912 | Y31: 0.0912 | AA31: 0.0919
D32: Return on Preferred Shares
C33: WACC | G33: =SUMPRODUCT(G22:G25,G29:G32) -> 0.09 | I33: =SUMPRODUCT(I22:I25,I29:I32) -> 0.09 | K33: =SUMPRODUCT(K22:K25,K29:K32) -> 0 | M33: =SUMPRODUCT(M22:M25,M29:M32) -> 0 | O33: =SUMPRODUCT(O22:O25,O29:O32) -> 0 | Q33: =SUMPRODUCT(Q22:Q25,Q29:Q32) -> 0.064012 | S33: =SUMPRODUCT(S22:S25,S29:S32) -> 0.058312 | U33: =SUMPRODUCT(U22:U25,U29:U32) -> 0.058312 | W33: =SUMPRODUCT(W22:W25,W29:W32) -> 0.058312 | Y33: =SUMPRODUCT(Y22:Y25,Y29:Y32) -> 0.058312 | AA33: =SUMPRODUCT(AA22:AA25,AA29:AA32) -> 0.056236
B35: Working Capital Allowance
C36: Working Capital Allowance Rate | Q36: 0.15 | S36: 0.15 | U36: 0.15 | W36: 0.15 | Y36: 0.15 | AA36: 0.075
C37: (% of the sum of Cost of Power + controllable expenses)
B39: Taxes/PILs
C40: Aggregate Corporate Income Tax Rate | G40: 0.3612 | I40: 0.3612 | K40: 0.335 | M40: 0.33 | O40: 0.31 | Q40: 0.155 | S40: 0.155 | U40: 0.155 | W40: 0.155 | Y40: 0.155 | AA40: 0.155
C41: Capital Tax (until July 1st, 2010) | G41: 0.003 | I41: 0.00225 | K41: 0.00225 | M41: 0.00225 | O41: 0.00075 | Q41: 0 | S41: 0 | U41: 0 | W41: 0 | Y41: 0 | AA41: 0
B43: Depreciation Rates
B44: (expressed as expected useful life in years)
C45: Smart Meters - years
C46: - rate (%) | G46: =IF(G45=0,0,1/G45) -> 0 | I46: =IF(I45=0,0,1/I45) -> 0 | K46: =IF(K45=0,0,1/K45) -> 0 | M46: =IF(M45=0,0,1/M45) -> 0 | O46: =IF(O45=0,0,1/O45) -> 0 | Q46: =IF(Q45=0,0,1/Q45) -> 0 | S46: =IF(S45=0,0,1/S45) -> 0 | U46: =IF(U45=0,0,1/U45) -> 0 | W46: =IF(W45=0,0,1/W45) -> 0 | Y46: =IF(Y45=0,0,1/Y45) -> 0 | AA46: =IF(AA45=0,0,1/AA45) -> 0
C47: Computer Hardware - years | Q47: 5 | S47: 5 | U47: 5 | W47: 5 | Y47: 5 | AA47: 5
C48: - rate (%) | G48: =IF(G47=0,0,1/G47) -> 0 | I48: =IF(I47=0,0,1/I47) -> 0 | K48: =IF(K47=0,0,1/K47) -> 0 | M48: =IF(M47=0,0,1/M47) -> 0 | O48: =IF(O47=0,0,1/O47) -> 0 | Q48: =IF(Q47=0,0,1/Q47) -> 0.2 | S48: =IF(S47=0,0,1/S47) -> 0.2 | U48: =IF(U47=0,0,1/U47) -> 0.2 | W48: =IF(W47=0,0,1/W47) -> 0.2 | Y48: =IF(Y47=0,0,1/Y47) -> 0.2 | AA48: =IF(AA47=0,0,1/AA47) -> 0.2
C49: Computer Software - years
C50: - rate (%) | G50: =IF(G49=0,0,1/G49) -> 0 | I50: =IF(I49=0,0,1/I49) -> 0 | K50: =IF(K49=0,0,1/K49) -> 0 | M50: =IF(M49=0,0,1/M49) -> 0 | O50: =IF(O49=0,0,1/O49) -> 0 | Q50: =IF(Q49=0,0,1/Q49) -> 0 | S50: =IF(S49=0,0,1/S49) -> 0 | U50: =IF(U49=0,0,1/U49) -> 0 | W50: =IF(W49=0,0,1/W49) -> 0 | Y50: =IF(Y49=0,0,1/Y49) -> 0 | AA50: =IF(AA49=0,0,1/AA49) -> 0
C51: Tools & Equipment - years
C52: - rate (%) | G52: =IF(G51=0,0,1/G51) -> 0 | I52: =IF(I51=0,0,1/I51) -> 0 | K52: =IF(K51=0,0,1/K51) -> 0 | M52: =IF(M51=0,0,1/M51) -> 0 | O52: =IF(O51=0,0,1/O51) -> 0 | Q52: =IF(Q51=0,0,1/Q51) -> 0 | S52: =IF(S51=0,0,1/S51) -> 0 | U52: =IF(U51=0,0,1/U51) -> 0 | W52: =IF(W51=0,0,1/W51) -> 0 | Y52: =IF(Y51=0,0,1/Y51) -> 0 | AA52: =IF(AA51=0,0,1/AA51) -> 0
C53: Other Equipment - years
C54: - rate (%) | G54: =IF(G53=0,0,1/G53) -> 0 | I54: =IF(I53=0,0,1/I53) -> 0 | K54: =IF(K53=0,0,1/K53) -> 0 | M54: =IF(M53=0,0,1/M53) -> 0 | O54: =IF(O53=0,0,1/O53) -> 0 | Q54: =IF(Q53=0,0,1/Q53) -> 0 | S54: =IF(S53=0,0,1/S53) -> 0 | U54: =IF(U53=0,0,1/U53) -> 0 | W54: =IF(W53=0,0,1/W53) -> 0 | Y54: =IF(Y53=0,0,1/Y53) -> 0 | AA54: =IF(AA53=0,0,1/AA53) -> 0
B56: CCA Rates
C57: Smart Meters - CCA Class
C58: Smart Meters - CCA Rate
C60: Computer Equipment - CCA Class | Q60: 50 | S60: 50 | U60: 50 | W60: 50 | Y60: 50 | AA60: 50
C61: Computer Equipment - CCA Rate | Q61: 0.55 | S61: 0.55 | U61: 0.55 | W61: 0.55 | Y61: 0.55 | AA61: 0.55
C63: General Equipment - CCA Class
C64: General Equipment - CCA Rate
C66: Applications Software - CCA Class
C67: Applications Software - CCA Rate
B69: Assumptions
B70: 1 | C70: Planned smart meter installations occur evenly throughout the year.
B71: 2 | C71: Fiscal calendar year (January 1 to December 31) used.
B72: 3 | C72: Amortization is done on a striaght line basis and has the "half-year" rule applied.

Sheet 4. SM_Assets_and_Rate_Base
G18: 2006 | I18: 2007 | K18: 2008 | M18: 2009 | O18: 2010 | Q18: 2011 | S18: 2012 | U18: 2013 | W18: 2014 | Y18: 2015 | AA18: 2016
B19: Net Fixed Assets - Smart Meters
C21: Gross Book Value
D22: Opening Balance | I22: =G25 -> 0 | K22: =I25 -> 0 | M22: =K25 -> 0 | O22: =M25 -> 0 | Q22: =O25 -> 0 | S22: =Q25 -> 0 | U22: =S25 -> 0 | W22: =U25 -> 0 | Y22: =W25 -> 0 | AA22: =Y25 -> 0
D23: Capital Additions during year (from Smart Meter Costs) | G23: ='2. Smart_Meter_Costs'!G181 -> 0 | I23: ='2. Smart_Meter_Costs'!I181 -> 0 | K23: ='2. Smart_Meter_Costs'!K181 -> 0 | M23: ='2. Smart_Meter_Costs'!M181 -> 0 | O23: ='2. Smart_Meter_Costs'!O181 -> 0 | Q23: ='2. Smart_Meter_Costs'!Q181 -> 0 | S23: ='2. Smart_Meter_Costs'!S181 -> 0 | U23: ='2. Smart_Meter_Costs'!U181 -> 0 | W23: ='2. Smart_Meter_Costs'!W181 -> 0 | Y23: ='2. Smart_Meter_Costs'!Y181 -> 0 | AA23: ='2. Smart_Meter_Costs'!AA181 -> 0
D24: Retirements/Removals (if applicable)
D25: Closing Balance | G25: =G22+G23-G24 -> 0 | I25: =I22+I23-I24 -> 0 | K25: =K22+K23-K24 -> 0 | M25: =M22+M23-M24 -> 0 | O25: =O22+O23-O24 -> 0 | Q25: =Q22+Q23-Q24 -> 0 | S25: =S22+S23-S24 -> 0 | U25: =U22+U23-U24 -> 0 | W25: =W22+W23-W24 -> 0 | Y25: =Y22+Y23-Y24 -> 0 | AA25: =AA22+AA23-AA24 -> 0
C27: Accumulated Depreciation
D28: Opening Balance | I28: =G31 -> 0 | K28: =I31 -> 0 | M28: =K31 -> 0 | O28: =M31 -> 0 | Q28: =O31 -> 0 | S28: =Q31 -> 0 | U28: =S31 -> 0 | W28: =U31 -> 0 | Y28: =W31 -> 0 | AA28: =Y31 -> 0
D29: Amortization expense during year | G29: =IF(ISERROR(-G23/('3. Cost_of_Service_Parameters'!G45*2)), 0, -G23/('3. Cost_of_Service_Parameters'!G45*2)) -> 0 | I29: =IF(ISERROR(-(I23/('3. Cost_of_Service_Parameters'!I45*2)+MIN((I22/'3. Cost_of_Service_Parameters'!I45),(I22+I28)))), 0, -(I23/('3. Cost_of_Service_Parameters'!I45*2)+MIN((I22/'3. Cost_of_Service_Parameters'!I45),(I22+I28)))) -> 0 | K29: =IF(ISERROR(-(K23/('3. Cost_of_Service_Parameters'!K45*2)+MIN((K22/'3. Cost_of_Service_Parameters'!K45),(K22+K28)))), 0, -(K23/('3. Cost_of_Service_Parameters'!K45*2)+MIN((K22/'3. Cost_of_Service_Parameters'!K45),(K22+K28)))) -> 0 | M29: =IF(ISERROR(-(M23/('3. Cost_of_Service_Parameters'!M45*2)+MIN((M22/'3. Cost_of_Service_Parameters'!M45),(M22+M28)))), 0,-(M23/('3. Cost_of_Service_Parameters'!M45*2)+MIN((M22/'3. Cost_of_Service_Parameters'!M45),(M22+M28)))) -> 0 | O29: =IF(ISERROR(-(O23/('3. Cost_of_Service_Parameters'!O45*2)+MIN((O22/'3. Cost_of_Service_Parameters'!O45),(O22+O28)))), 0, -(O23/('3. Cost_of_Service_Parameters'!O45*2)+MIN((O22/'3. Cost_of_Service_Parameters'!O45),(O22+O28)))) -> 0 | Q29: =IF(ISERROR(-(Q23/('3. Cost_of_Service_Parameters'!Q45*2)+MIN((Q22/'3. Cost_of_Service_Parameters'!Q45),(Q22+Q28)))), 0, -(Q23/('3. Cost_of_Service_Parameters'!Q45*2)+MIN((Q22/'3. Cost_of_Service_Parameters'!Q45),(Q22+Q28)))) -> 0 | S29: =IF(ISERROR(-(S23/('3. Cost_of_Service_Parameters'!S45*2)+MIN((S22/'3. Cost_of_Service_Parameters'!S45),(S22+S28)))), 0, -(S23/('3. Cost_of_Service_Parameters'!S45*2)+MIN((S22/'3. Cost_of_Service_Parameters'!S45),(S22+S28)))) -> 0 | U29: =IF(ISERROR(-(U23/('3. Cost_of_Service_Parameters'!U45*2)+MIN((U22/'3. Cost_of_Service_Parameters'!U45),(U22+U28)))), 0, -(U23/('3. Cost_of_Service_Parameters'!U45*2)+MIN((U22/'3. Cost_of_Service_Parameters'!U45),(U22+U28)))) -> 0 | W29: =IF(ISERROR(-(W23/('3. Cost_of_Service_Parameters'!W45*2)+MIN((W22/'3. Cost_of_Service_Parameters'!W45),(W22+W28)))), 0, -(W23/('3. Cost_of_Service_Parameters'!W45*2)+MIN((W22/'3. Cost_of_Service_Parameters'!W45),(W22+W28)))) -> 0 | Y29: =IF(ISERROR(-(Y23/('3. Cost_of_Service_Parameters'!Y45*2)+MIN((Y22/'3. Cost_of_Service_Parameters'!Y45),(Y22+Y28)))), 0, -(Y23/('3. Cost_of_Service_Parameters'!Y45*2)+MIN((Y22/'3. Cost_of_Service_Parameters'!Y45),(Y22+Y28)))) -> 0 | AA29: =IF(ISERROR(-(AA23/('3. Cost_of_Service_Parameters'!AA45*2)+MIN((AA22/'3. Cost_of_Service_Parameters'!AA45),(AA22+AA28)))), 0, -(AA23/('3. Cost_of_Service_Parameters'!AA45*2)+MIN((AA22/'3. Cost_of_Service_Parameters'!AA45),(AA22+AA28)))) -> 0
D30: Retirements/Removals (if applicable)
D31: Closing Balance | G31: =G28+G29-G30 -> 0 | I31: =I28+I29-I30 -> 0 | K31: =K28+K29-K30 -> 0 | M31: =M28+M29-M30 -> 0 | O31: =O28+O29-O30 -> 0 | Q31: =Q28+Q29-Q30 -> 0 | S31: =S28+S29-S30 -> 0 | U31: =U28+U29-U30 -> 0 | W31: =W28+W29-W30 -> 0 | Y31: =Y28+Y29-Y30 -> 0 | AA31: =AA28+AA29-AA30 -> 0
C33: Net Book Value
D34: Opening Balance | G34: =G22+G28 -> 0 | I34: =G35 -> 0 | K34: =I35 -> 0 | M34: =K35 -> 0 | O34: =M35 -> 0 | Q34: =O35 -> 0 | S34: =Q35 -> 0 | U34: =S35 -> 0 | W34: =U35 -> 0 | Y34: =W35 -> 0 | AA34: =Y35 -> 0
D35: Closing Balance | G35: =G25+G31 -> 0 | I35: =I25+I31 -> 0 | K35: =K25+K31 -> 0 | M35: =M25+M31 -> 0 | O35: =O25+O31 -> 0 | Q35: =Q25+Q31 -> 0 | S35: =S25+S31 -> 0 | U35: =U25+U31 -> 0 | W35: =W25+W31 -> 0 | Y35: =Y25+Y31 -> 0 | AA35: =AA25+AA31 -> 0
D36: Average Net Book Value | G36: =AVERAGE(G34:G35) -> 0 | I36: =AVERAGE(I34:I35) -> 0 | K36: =AVERAGE(K34:K35) -> 0 | M36: =AVERAGE(M34:M35) -> 0 | O36: =AVERAGE(O34:O35) -> 0 | Q36: =AVERAGE(Q34:Q35) -> 0 | S36: =AVERAGE(S34:S35) -> 0 | U36: =AVERAGE(U34:U35) -> 0 | W36: =AVERAGE(W34:W35) -> 0 | Y36: =AVERAGE(Y34:Y35) -> 0 | AA36: =AVERAGE(AA34:AA35) -> 0
B38: Net Fixed Assets - Computer Hardware
C40: Gross Book Value
D41: Opening Balance | I41: =G44 -> 0 | K41: =I44 -> 0 | M41: =K44 -> 0 | O41: =M44 -> 0 | Q41: =O44 -> 0 | S41: =Q44 -> 39469.99 | U41: =S44 -> 39469.99 | W41: =U44 -> 39469.99 | Y41: =W44 -> 39469.99 | AA41: =Y44 -> 39469.99
D42: Capital Additions during year (from Smart Meter Costs) | G42: ='2. Smart_Meter_Costs'!G183 -> 0 | I42: ='2. Smart_Meter_Costs'!I183 -> 0 | K42: ='2. Smart_Meter_Costs'!K183 -> 0 | M42: ='2. Smart_Meter_Costs'!M183 -> 0 | O42: ='2. Smart_Meter_Costs'!O183 -> 0 | Q42: ='2. Smart_Meter_Costs'!Q183 -> 39469.99 | S42: ='2. Smart_Meter_Costs'!S183 -> 0 | U42: ='2. Smart_Meter_Costs'!U183 -> 0 | W42: ='2. Smart_Meter_Costs'!W183 -> 0 | Y42: ='2. Smart_Meter_Costs'!Y183 -> 0 | AA42: ='2. Smart_Meter_Costs'!AA183 -> 0
D43: Retirements/Removals (if applicable)
D44: Closing Balance | G44: =G41+G42-G43 -> 0 | I44: =I41+I42-I43 -> 0 | K44: =K41+K42-K43 -> 0 | M44: =M41+M42-M43 -> 0 | O44: =O41+O42-O43 -> 0 | Q44: =Q41+Q42-Q43 -> 39469.99 | S44: =S41+S42-S43 -> 39469.99 | U44: =U41+U42-U43 -> 39469.99 | W44: =W41+W42-W43 -> 39469.99 | Y44: =Y41+Y42-Y43 -> 39469.99 | AA44: =AA41+AA42-AA43 -> 39469.99
C46: Accumulated Depreciation
D47: Opening Balance | G47: 0 | I47: =G50 -> 0 | K47: =I50 -> 0 | M47: =K50 -> 0 | O47: =M50 -> 0 | Q47: =O50 -> 0 | S47: =Q50 -> -3946.999 | U47: =S50 -> -11840.997 | W47: =U50 -> -19734.995 | Y47: =W50 -> -27628.993 | AA47: =Y50 -> -35522.991
D48: Amortization expense during year | G48: =IF(ISERROR(-G42/('3. Cost_of_Service_Parameters'!G47*2)), 0, -G42/('3. Cost_of_Service_Parameters'!G47*2)) -> 0 | I48: =IF(ISERROR(-(I42/('3. Cost_of_Service_Parameters'!I47*2)+MIN((I41/'3. Cost_of_Service_Parameters'!I47),(I41+I47)))), 0, -(I42/('3. Cost_of_Service_Parameters'!I47*2)+MIN((I41/'3. Cost_of_Service_Parameters'!I47),(I41+I47)))) -> 0 | K48: =IF(ISERROR(-(K42/('3. Cost_of_Service_Parameters'!K47*2)+MIN((K41/'3. Cost_of_Service_Parameters'!K47),(K41+K47)))), 0, -(K42/('3. Cost_of_Service_Parameters'!K47*2)+MIN((K41/'3. Cost_of_Service_Parameters'!K47),(K41+K47)))) -> 0 | M48: =IF(ISERROR(-(M42/('3. Cost_of_Service_Parameters'!M47*2)+MIN((M41/'3. Cost_of_Service_Parameters'!M47),(M41+M47)))), 0,-(M42/('3. Cost_of_Service_Parameters'!M47*2)+MIN((M41/'3. Cost_of_Service_Parameters'!M47),(M41+M47)))) -> 0 | O48: =IF(ISERROR(-(O42/('3. Cost_of_Service_Parameters'!O47*2)+MIN((O41/'3. Cost_of_Service_Parameters'!O47),(O41+O47)))), 0, -(O42/('3. Cost_of_Service_Parameters'!O47*2)+MIN((O41/'3. Cost_of_Service_Parameters'!O47),(O41+O47)))) -> 0 | Q48: =IF(ISERROR(-(Q42/('3. Cost_of_Service_Parameters'!Q47*2)+MIN((Q41/'3. Cost_of_Service_Parameters'!Q47),(Q41+Q47)))), 0, -(Q42/('3. Cost_of_Service_Parameters'!Q47*2)+MIN((Q41/'3. Cost_of_Service_Parameters'!Q47),(Q41+Q47)))) -> -3946.999 | S48: =IF(ISERROR(-(S42/('3. Cost_of_Service_Parameters'!S47*2)+MIN((S41/'3. Cost_of_Service_Parameters'!S47),(S41+S47)))), 0, -(S42/('3. Cost_of_Service_Parameters'!S47*2)+MIN((S41/'3. Cost_of_Service_Parameters'!S47),(S41+S47)))) -> -7893.998 | U48: =IF(ISERROR(-(U42/('3. Cost_of_Service_Parameters'!U47*2)+MIN((U41/'3. Cost_of_Service_Parameters'!U47),(U41+U47)))), 0, -(U42/('3. Cost_of_Service_Parameters'!U47*2)+MIN((U41/'3. Cost_of_Service_Parameters'!U47),(U41+U47)))) -> -7893.998 | W48: =IF(ISERROR(-(W42/('3. Cost_of_Service_Parameters'!W47*2)+MIN((W41/'3. Cost_of_Service_Parameters'!W47),(W41+W47)))), 0, -(W42/('3. Cost_of_Service_Parameters'!W47*2)+MIN((W41/'3. Cost_of_Service_Parameters'!W47),(W41+W47)))) -> -7893.998 | Y48: =IF(ISERROR(-(Y42/('3. Cost_of_Service_Parameters'!Y47*2)+MIN((Y41/'3. Cost_of_Service_Parameters'!Y47),(Y41+Y47)))), 0, -(Y42/('3. Cost_of_Service_Parameters'!Y47*2)+MIN((Y41/'3. Cost_of_Service_Parameters'!Y47),(Y41+Y47)))) -> -7893.998 | AA48: =IF(ISERROR(-(AA42/('3. Cost_of_Service_Parameters'!AA47*2)+MIN((AA41/'3. Cost_of_Service_Parameters'!AA47),(AA41+AA47)))), 0, -(AA42/('3. Cost_of_Service_Parameters'!AA47*2)+MIN((AA41/'3. Cost_of_Service_Parameters'!AA47),(AA41+AA47)))) -> -3946.999
D49: Retirements/Removals (if applicable)
D50: Closing Balance | G50: =G47+G48-G49 -> 0 | I50: =I47+I48-I49 -> 0 | K50: =K47+K48-K49 -> 0 | M50: =M47+M48-M49 -> 0 | O50: =O47+O48-O49 -> 0 | Q50: =Q47+Q48-Q49 -> -3946.999 | S50: =S47+S48-S49 -> -11840.997 | U50: =U47+U48-U49 -> -19734.995 | W50: =W47+W48-W49 -> -27628.993 | Y50: =Y47+Y48-Y49 -> -35522.991 | AA50: =AA47+AA48-AA49 -> -39469.99
C52: Net Book Value
D53: Opening Balance | G53: =G41+G47 -> 0 | I53: =G54 -> 0 | K53: =I54 -> 0 | M53: =K54 -> 0 | O53: =M54 -> 0 | Q53: =O54 -> 0 | S53: =Q54 -> 35522.991 | U53: =S54 -> 27628.993 | W53: =U54 -> 19734.995 | Y53: =W54 -> 11840.997 | AA53: =Y54 -> 3946.999
D54: Closing Balance | G54: =G44+G50 -> 0 | I54: =I44+I50 -> 0 | K54: =K44+K50 -> 0 | M54: =M44+M50 -> 0 | O54: =O44+O50 -> 0 | Q54: =Q44+Q50 -> 35522.991 | S54: =S44+S50 -> 27628.993 | U54: =U44+U50 -> 19734.995 | W54: =W44+W50 -> 11840.997 | Y54: =Y44+Y50 -> 3946.999 | AA54: =AA44+AA50 -> 0
D55: Average Net Book Value | G55: =AVERAGE(G53:G54) -> 0 | I55: =AVERAGE(I53:I54) -> 0 | K55: =AVERAGE(K53:K54) -> 0 | M55: =AVERAGE(M53:M54) -> 0 | O55: =AVERAGE(O53:O54) -> 0 | Q55: =AVERAGE(Q53:Q54) -> 17761.4955 | S55: =AVERAGE(S53:S54) -> 31575.992 | U55: =AVERAGE(U53:U54) -> 23681.994 | W55: =AVERAGE(W53:W54) -> 15787.996 | Y55: =AVERAGE(Y53:Y54) -> 7893.998 | AA55: =AVERAGE(AA53:AA54) -> 1973.4995
B57: Net Fixed Assets - Computer Software (including Applications Software)
C59: Gross Book Value
D60: Opening Balance | I60: =G63 -> 0 | K60: =I63 -> 0 | M60: =K63 -> 0 | O60: =M63 -> 0 | Q60: =O63 -> 0 | S60: =Q63 -> 0 | U60: =S63 -> 0 | W60: =U63 -> 0 | Y60: =W63 -> 0 | AA60: =Y63 -> 0
D61: Capital Additions during year (from Smart Meter Costs) | G61: ='2. Smart_Meter_Costs'!G185+'2. Smart_Meter_Costs'!G191 -> 0 | I61: ='2. Smart_Meter_Costs'!I185+'2. Smart_Meter_Costs'!I191 -> 0 | K61: ='2. Smart_Meter_Costs'!K185+'2. Smart_Meter_Costs'!K191 -> 0 | M61: ='2. Smart_Meter_Costs'!M185+'2. Smart_Meter_Costs'!M191 -> 0 | O61: ='2. Smart_Meter_Costs'!O185+'2. Smart_Meter_Costs'!O191 -> 0 | Q61: ='2. Smart_Meter_Costs'!Q185+'2. Smart_Meter_Costs'!Q191 -> 0 | S61: ='2. Smart_Meter_Costs'!S185+'2. Smart_Meter_Costs'!S191 -> 0 | U61: ='2. Smart_Meter_Costs'!U185+'2. Smart_Meter_Costs'!U191 -> 0 | W61: ='2. Smart_Meter_Costs'!W185+'2. Smart_Meter_Costs'!W191 -> 0 | Y61: ='2. Smart_Meter_Costs'!Y185+'2. Smart_Meter_Costs'!Y191 -> 0 | AA61: ='2. Smart_Meter_Costs'!AA185+'2. Smart_Meter_Costs'!AA191 -> 0
D62: Retirements/Removals (if applicable)
D63: Closing Balance | G63: =G60+G61-G62 -> 0 | I63: =I60+I61-I62 -> 0 | K63: =K60+K61-K62 -> 0 | M63: =M60+M61-M62 -> 0 | O63: =O60+O61-O62 -> 0 | Q63: =Q60+Q61-Q62 -> 0 | S63: =S60+S61-S62 -> 0 | U63: =U60+U61-U62 -> 0 | W63: =W60+W61-W62 -> 0 | Y63: =Y60+Y61-Y62 -> 0 | AA63: =AA60+AA61-AA62 -> 0
C65: Accumulated Depreciation
D66: Opening Balance | G66: 0 | I66: =G69 -> 0 | K66: =I69 -> 0 | M66: =K69 -> 0 | O66: =M69 -> 0 | Q66: =O69 -> 0 | S66: =Q69 -> 0 | U66: =S69 -> 0 | W66: =U69 -> 0 | Y66: =W69 -> 0 | AA66: =Y69 -> 0
D67: Amortization expense during year | G67: =IF(ISERROR(-G61/('3. Cost_of_Service_Parameters'!G49*2)), 0, -G61/('3. Cost_of_Service_Parameters'!G49*2)) -> 0 | I67: =IF(ISERROR(-(I61/('3. Cost_of_Service_Parameters'!I49*2)+MIN((I60/'3. Cost_of_Service_Parameters'!I49),(I60+I66)))), 0, -(I61/('3. Cost_of_Service_Parameters'!I49*2)+MIN((I60/'3. Cost_of_Service_Parameters'!I49),(I60+I66)))) -> 0 | K67: =IF(ISERROR(-(K61/('3. Cost_of_Service_Parameters'!K49*2)+MIN((K60/'3. Cost_of_Service_Parameters'!K49),(K60+K66)))), 0, -(K61/('3. Cost_of_Service_Parameters'!K49*2)+MIN((K60/'3. Cost_of_Service_Parameters'!K49),(K60+K66)))) -> 0 | M67: =IF(ISERROR(-(M61/('3. Cost_of_Service_Parameters'!M49*2)+MIN((M60/'3. Cost_of_Service_Parameters'!M49),(M60+M66)))), 0,-(M61/('3. Cost_of_Service_Parameters'!M49*2)+MIN((M60/'3. Cost_of_Service_Parameters'!M49),(M60+M66)))) -> 0 | O67: =IF(ISERROR(-(O61/('3. Cost_of_Service_Parameters'!O49*2)+MIN((O60/'3. Cost_of_Service_Parameters'!O49),(O60+O66)))), 0, -(O61/('3. Cost_of_Service_Parameters'!O49*2)+MIN((O60/'3. Cost_of_Service_Parameters'!O49),(O60+O66)))) -> 0 | Q67: =IF(ISERROR(-(Q61/('3. Cost_of_Service_Parameters'!Q49*2)+MIN((Q60/'3. Cost_of_Service_Parameters'!Q49),(Q60+Q66)))), 0, -(Q61/('3. Cost_of_Service_Parameters'!Q49*2)+MIN((Q60/'3. Cost_of_Service_Parameters'!Q49),(Q60+Q66)))) -> 0 | S67: =IF(ISERROR(-(S61/('3. Cost_of_Service_Parameters'!S49*2)+MIN((S60/'3. Cost_of_Service_Parameters'!S49),(S60+S66)))), 0, -(S61/('3. Cost_of_Service_Parameters'!S49*2)+MIN((S60/'3. Cost_of_Service_Parameters'!S49),(S60+S66)))) -> 0 | U67: =IF(ISERROR(-(U61/('3. Cost_of_Service_Parameters'!U49*2)+MIN((U60/'3. Cost_of_Service_Parameters'!U49),(U60+U66)))), 0, -(U61/('3. Cost_of_Service_Parameters'!U49*2)+MIN((U60/'3. Cost_of_Service_Parameters'!U49),(U60+U66)))) -> 0 | W67: =IF(ISERROR(-(W61/('3. Cost_of_Service_Parameters'!W49*2)+MIN((W60/'3. Cost_of_Service_Parameters'!W49),(W60+W66)))), 0, -(W61/('3. Cost_of_Service_Parameters'!W49*2)+MIN((W60/'3. Cost_of_Service_Parameters'!W49),(W60+W66)))) -> 0 | Y67: =IF(ISERROR(-(Y61/('3. Cost_of_Service_Parameters'!Y49*2)+MIN((Y60/'3. Cost_of_Service_Parameters'!Y49),(Y60+Y66)))), 0, -(Y61/('3. Cost_of_Service_Parameters'!Y49*2)+MIN((Y60/'3. Cost_of_Service_Parameters'!Y49),(Y60+Y66)))) -> 0 | AA67: =IF(ISERROR(-(AA61/('3. Cost_of_Service_Parameters'!AA49*2)+MIN((AA60/'3. Cost_of_Service_Parameters'!AA49),(AA60+AA66)))), 0, -(AA61/('3. Cost_of_Service_Parameters'!AA49*2)+MIN((AA60/'3. Cost_of_Service_Parameters'!AA49),(AA60+AA66)))) -> 0
D68: Retirements/Removals (if applicable)
D69: Closing Balance | G69: =G66+G67-G68 -> 0 | I69: =I66+I67-I68 -> 0 | K69: =K66+K67-K68 -> 0 | M69: =M66+M67-M68 -> 0 | O69: =O66+O67-O68 -> 0 | Q69: =Q66+Q67-Q68 -> 0 | S69: =S66+S67-S68 -> 0 | U69: =U66+U67-U68 -> 0 | W69: =W66+W67-W68 -> 0 | Y69: =Y66+Y67-Y68 -> 0 | AA69: =AA66+AA67-AA68 -> 0
C71: Net Book Value
D72: Opening Balance | G72: =G60+G66 -> 0 | I72: =G73 -> 0 | K72: =I73 -> 0 | M72: =K73 -> 0 | O72: =M73 -> 0 | Q72: =O73 -> 0 | S72: =Q73 -> 0 | U72: =S73 -> 0 | W72: =U73 -> 0 | Y72: =W73 -> 0 | AA72: =Y73 -> 0
D73: Closing Balance | G73: =G63+G69 -> 0 | I73: =I63+I69 -> 0 | K73: =K63+K69 -> 0 | M73: =M63+M69 -> 0 | O73: =O63+O69 -> 0 | Q73: =Q63+Q69 -> 0 | S73: =S63+S69 -> 0 | U73: =U63+U69 -> 0 | W73: =W63+W69 -> 0 | Y73: =Y63+Y69 -> 0 | AA73: =AA63+AA69 -> 0
D74: Average Net Book Value | G74: =AVERAGE(G72:G73) -> 0 | I74: =AVERAGE(I72:I73) -> 0 | K74: =AVERAGE(K72:K73) -> 0 | M74: =AVERAGE(M72:M73) -> 0 | O74: =AVERAGE(O72:O73) -> 0 | Q74: =AVERAGE(Q72:Q73) -> 0 | S74: =AVERAGE(S72:S73) -> 0 | U74: =AVERAGE(U72:U73) -> 0 | W74: =AVERAGE(W72:W73) -> 0 | Y74: =AVERAGE(Y72:Y73) -> 0 | AA74: =AVERAGE(AA72:AA73) -> 0
B76: Net Fixed Assets - Tools and Equipment
C78: Gross Book Value
D79: Opening Balance | I79: =G82 -> 0 | K79: =I82 -> 0 | M79: =K82 -> 0 | O79: =M82 -> 0 | Q79: =O82 -> 0 | S79: =Q82 -> 0 | U79: =S82 -> 0 | W79: =U82 -> 0 | Y79: =W82 -> 0 | AA79: =Y82 -> 0
D80: Capital Additions during year (from Smart Meter Costs) | G80: ='2. Smart_Meter_Costs'!G187 -> 0 | I80: ='2. Smart_Meter_Costs'!I187 -> 0 | K80: ='2. Smart_Meter_Costs'!K187 -> 0 | M80: ='2. Smart_Meter_Costs'!M187 -> 0 | O80: ='2. Smart_Meter_Costs'!O187 -> 0 | Q80: ='2. Smart_Meter_Costs'!Q187 -> 0 | S80: ='2. Smart_Meter_Costs'!S187 -> 0 | U80: ='2. Smart_Meter_Costs'!U187 -> 0 | W80: ='2. Smart_Meter_Costs'!W187 -> 0 | Y80: ='2. Smart_Meter_Costs'!Y187 -> 0 | AA80: ='2. Smart_Meter_Costs'!AA187 -> 0
D81: Retirements/Removals (if applicable)
D82: Closing Balance | G82: =G79+G80-G81 -> 0 | I82: =I79+I80-I81 -> 0 | K82: =K79+K80-K81 -> 0 | M82: =M79+M80-M81 -> 0 | O82: =O79+O80-O81 -> 0 | Q82: =Q79+Q80-Q81 -> 0 | S82: =S79+S80-S81 -> 0 | U82: =U79+U80-U81 -> 0 | W82: =W79+W80-W81 -> 0 | Y82: =Y79+Y80-Y81 -> 0 | AA82: =AA79+AA80-AA81 -> 0
C84: Accumulated Depreciation
D85: Opening Balance | G85: 0 | I85: =G88 -> 0 | K85: =I88 -> 0 | M85: =K88 -> 0 | O85: =M88 -> 0 | Q85: =O88 -> 0 | S85: =Q88 -> 0 | U85: =S88 -> 0 | W85: =U88 -> 0 | Y85: =W88 -> 0 | AA85: =Y88 -> 0
D86: Amortization expense during year | G86: =IF(ISERROR(-G80/('3. Cost_of_Service_Parameters'!G51*2)), 0, -G80/('3. Cost_of_Service_Parameters'!G51*2)) -> 0 | I86: =IF(ISERROR(-(I80/('3. Cost_of_Service_Parameters'!I51*2)+MIN((I79/'3. Cost_of_Service_Parameters'!I51),(I79+I85)))), 0, -(I80/('3. Cost_of_Service_Parameters'!I51*2)+MIN((I79/'3. Cost_of_Service_Parameters'!I51),(I79+I85)))) -> 0 | K86: =IF(ISERROR(-(K80/('3. Cost_of_Service_Parameters'!K51*2)+MIN((K79/'3. Cost_of_Service_Parameters'!K51),(K79+K85)))), 0, -(K80/('3. Cost_of_Service_Parameters'!K51*2)+MIN((K79/'3. Cost_of_Service_Parameters'!K51),(K79+K85)))) -> 0 | M86: =IF(ISERROR(-(M80/('3. Cost_of_Service_Parameters'!M51*2)+MIN((M79/'3. Cost_of_Service_Parameters'!M51),(M79+M85)))), 0,-(M80/('3. Cost_of_Service_Parameters'!M51*2)+MIN((M79/'3. Cost_of_Service_Parameters'!M51),(M79+M85)))) -> 0 | O86: =IF(ISERROR(-(O80/('3. Cost_of_Service_Parameters'!O51*2)+MIN((O79/'3. Cost_of_Service_Parameters'!O51),(O79+O85)))), 0, -(O80/('3. Cost_of_Service_Parameters'!O51*2)+MIN((O79/'3. Cost_of_Service_Parameters'!O51),(O79+O85)))) -> 0 | Q86: =IF(ISERROR(-(Q80/('3. Cost_of_Service_Parameters'!Q51*2)+MIN((Q79/'3. Cost_of_Service_Parameters'!Q51),(Q79+Q85)))), 0, -(Q80/('3. Cost_of_Service_Parameters'!Q51*2)+MIN((Q79/'3. Cost_of_Service_Parameters'!Q51),(Q79+Q85)))) -> 0 | S86: =IF(ISERROR(-(S80/('3. Cost_of_Service_Parameters'!S51*2)+MIN((S79/'3. Cost_of_Service_Parameters'!S51),(S79+S85)))), 0, -(S80/('3. Cost_of_Service_Parameters'!S51*2)+MIN((S79/'3. Cost_of_Service_Parameters'!S51),(S79+S85)))) -> 0 | U86: =IF(ISERROR(-(U80/('3. Cost_of_Service_Parameters'!U51*2)+MIN((U79/'3. Cost_of_Service_Parameters'!U51),(U79+U85)))), 0, -(U80/('3. Cost_of_Service_Parameters'!U51*2)+MIN((U79/'3. Cost_of_Service_Parameters'!U51),(U79+U85)))) -> 0 | W86: =IF(ISERROR(-(W80/('3. Cost_of_Service_Parameters'!W51*2)+MIN((W79/'3. Cost_of_Service_Parameters'!W51),(W79+W85)))), 0, -(W80/('3. Cost_of_Service_Parameters'!W51*2)+MIN((W79/'3. Cost_of_Service_Parameters'!W51),(W79+W85)))) -> 0 | Y86: =IF(ISERROR(-(Y80/('3. Cost_of_Service_Parameters'!Y51*2)+MIN((Y79/'3. Cost_of_Service_Parameters'!Y51),(Y79+Y85)))), 0, -(Y80/('3. Cost_of_Service_Parameters'!Y51*2)+MIN((Y79/'3. Cost_of_Service_Parameters'!Y51),(Y79+Y85)))) -> 0 | AA86: =IF(ISERROR(-(AA80/('3. Cost_of_Service_Parameters'!AA51*2)+MIN((AA79/'3. Cost_of_Service_Parameters'!AA51),(AA79+AA85)))), 0, -(AA80/('3. Cost_of_Service_Parameters'!AA51*2)+MIN((AA79/'3. Cost_of_Service_Parameters'!AA51),(AA79+AA85)))) -> 0
D87: Retirements/Removals (if applicable)
D88: Closing Balance | G88: =G85+G86-G87 -> 0 | I88: =I85+I86-I87 -> 0 | K88: =K85+K86-K87 -> 0 | M88: =M85+M86-M87 -> 0 | O88: =O85+O86-O87 -> 0 | Q88: =Q85+Q86-Q87 -> 0 | S88: =S85+S86-S87 -> 0 | U88: =U85+U86-U87 -> 0 | W88: =W85+W86-W87 -> 0 | Y88: =Y85+Y86-Y87 -> 0 | AA88: =AA85+AA86-AA87 -> 0
C90: Net Book Value
D91: Opening Balance | G91: =G79+G85 -> 0 | I91: =G92 -> 0 | K91: =I92 -> 0 | M91: =K92 -> 0 | O91: =M92 -> 0 | Q91: =O92 -> 0 | S91: =Q92 -> 0 | U91: =S92 -> 0 | W91: =U92 -> 0 | Y91: =W92 -> 0 | AA91: =Y92 -> 0
D92: Closing Balance | G92: =G82+G88 -> 0 | I92: =I82+I88 -> 0 | K92: =K82+K88 -> 0 | M92: =M82+M88 -> 0 | O92: =O82+O88 -> 0 | Q92: =Q82+Q88 -> 0 | S92: =S82+S88 -> 0 | U92: =U82+U88 -> 0 | W92: =W82+W88 -> 0 | Y92: =Y82+Y88 -> 0 | AA92: =AA82+AA88 -> 0
D93: Average Net Book Value | G93: =AVERAGE(G91:G92) -> 0 | I93: =AVERAGE(I91:I92) -> 0 | K93: =AVERAGE(K91:K92) -> 0 | M93: =AVERAGE(M91:M92) -> 0 | O93: =AVERAGE(O91:O92) -> 0 | Q93: =AVERAGE(Q91:Q92) -> 0 | S93: =AVERAGE(S91:S92) -> 0 | U93: =AVERAGE(U91:U92) -> 0 | W93: =AVERAGE(W91:W92) -> 0 | Y93: =AVERAGE(Y91:Y92) -> 0 | AA93: =AVERAGE(AA91:AA92) -> 0
B95: Net Fixed Assets - Other Equipment
C97: Gross Book Value
D98: Opening Balance | I98: =G101 -> 0 | K98: =I101 -> 0 | M98: =K101 -> 0 | O98: =M101 -> 0 | Q98: =O101 -> 0 | S98: =Q101 -> 0 | U98: =S101 -> 0 | W98: =U101 -> 0 | Y98: =W101 -> 0 | AA98: =Y101 -> 0
D99: Capital Additions during year (from Smart Meter Costs) | G99: ='2. Smart_Meter_Costs'!G189 -> 0 | I99: ='2. Smart_Meter_Costs'!I189 -> 0 | K99: ='2. Smart_Meter_Costs'!K189 -> 0 | M99: ='2. Smart_Meter_Costs'!M189 -> 0 | O99: ='2. Smart_Meter_Costs'!O189 -> 0 | Q99: ='2. Smart_Meter_Costs'!Q189 -> 0 | S99: ='2. Smart_Meter_Costs'!S189 -> 0 | U99: ='2. Smart_Meter_Costs'!U189 -> 0 | W99: ='2. Smart_Meter_Costs'!W189 -> 0 | Y99: ='2. Smart_Meter_Costs'!Y189 -> 0 | AA99: ='2. Smart_Meter_Costs'!AA189 -> 0
D100: Retirements/Removals (if applicable)
D101: Closing Balance | G101: =G98+G99-G100 -> 0 | I101: =I98+I99-I100 -> 0 | K101: =K98+K99-K100 -> 0 | M101: =M98+M99-M100 -> 0 | O101: =O98+O99-O100 -> 0 | Q101: =Q98+Q99-Q100 -> 0 | S101: =S98+S99-S100 -> 0 | U101: =U98+U99-U100 -> 0 | W101: =W98+W99-W100 -> 0 | Y101: =Y98+Y99-Y100 -> 0 | AA101: =AA98+AA99-AA100 -> 0
C103: Accumulated Depreciation
D104: Opening Balance | G104: 0 | I104: =G107 -> 0 | K104: =I107 -> 0 | M104: =K107 -> 0 | O104: =M107 -> 0 | Q104: =O107 -> 0 | S104: =Q107 -> 0 | U104: =S107 -> 0 | W104: =U107 -> 0 | Y104: =W107 -> 0 | AA104: =Y107 -> 0
D105: Amortization expense during year | G105: =IF(ISERROR(-G99/('3. Cost_of_Service_Parameters'!G53*2)), 0, -G99/('3. Cost_of_Service_Parameters'!G53*2)) -> 0 | I105: =IF(ISERROR(-(I99/('3. Cost_of_Service_Parameters'!I53*2)+MIN((I98/'3. Cost_of_Service_Parameters'!I53),(I98+I104)))), 0, -(I99/('3. Cost_of_Service_Parameters'!I53*2)+MIN((I98/'3. Cost_of_Service_Parameters'!I53),(I98+I104)))) -> 0 | K105: =IF(ISERROR(-(K99/('3. Cost_of_Service_Parameters'!K53*2)+MIN((K98/'3. Cost_of_Service_Parameters'!K53),(K98+K104)))), 0, -(K99/('3. Cost_of_Service_Parameters'!K53*2)+MIN((K98/'3. Cost_of_Service_Parameters'!K53),(K98+K104)))) -> 0 | M105: =IF(ISERROR(-(M99/('3. Cost_of_Service_Parameters'!M53*2)+MIN((M98/'3. Cost_of_Service_Parameters'!M53),(M98+M104)))), 0,-(M99/('3. Cost_of_Service_Parameters'!M53*2)+MIN((M98/'3. Cost_of_Service_Parameters'!M53),(M98+M104)))) -> 0 | O105: =IF(ISERROR(-(O99/('3. Cost_of_Service_Parameters'!O53*2)+MIN((O98/'3. Cost_of_Service_Parameters'!O53),(O98+O104)))), 0, -(O99/('3. Cost_of_Service_Parameters'!O53*2)+MIN((O98/'3. Cost_of_Service_Parameters'!O53),(O98+O104)))) -> 0 | Q105: =IF(ISERROR(-(Q99/('3. Cost_of_Service_Parameters'!Q53*2)+MIN((Q98/'3. Cost_of_Service_Parameters'!Q53),(Q98+Q104)))), 0, -(Q99/('3. Cost_of_Service_Parameters'!Q53*2)+MIN((Q98/'3. Cost_of_Service_Parameters'!Q53),(Q98+Q104)))) -> 0 | S105: =IF(ISERROR(-(S99/('3. Cost_of_Service_Parameters'!S53*2)+MIN((S98/'3. Cost_of_Service_Parameters'!S53),(S98+S104)))), 0, -(S99/('3. Cost_of_Service_Parameters'!S53*2)+MIN((S98/'3. Cost_of_Service_Parameters'!S53),(S98+S104)))) -> 0 | U105: =IF(ISERROR(-(U99/('3. Cost_of_Service_Parameters'!U53*2)+MIN((U98/'3. Cost_of_Service_Parameters'!U53),(U98+U104)))), 0, -(U99/('3. Cost_of_Service_Parameters'!U53*2)+MIN((U98/'3. Cost_of_Service_Parameters'!U53),(U98+U104)))) -> 0 | W105: =IF(ISERROR(-(W99/('3. Cost_of_Service_Parameters'!W53*2)+MIN((W98/'3. Cost_of_Service_Parameters'!W53),(W98+W104)))), 0, -(W99/('3. Cost_of_Service_Parameters'!W53*2)+MIN((W98/'3. Cost_of_Service_Parameters'!W53),(W98+W104)))) -> 0 | Y105: =IF(ISERROR(-(Y99/('3. Cost_of_Service_Parameters'!Y53*2)+MIN((Y98/'3. Cost_of_Service_Parameters'!Y53),(Y98+Y104)))), 0, -(Y99/('3. Cost_of_Service_Parameters'!Y53*2)+MIN((Y98/'3. Cost_of_Service_Parameters'!Y53),(Y98+Y104)))) -> 0 | AA105: =IF(ISERROR(-(AA99/('3. Cost_of_Service_Parameters'!AA53*2)+MIN((AA98/'3. Cost_of_Service_Parameters'!AA53),(AA98+AA104)))), 0, -(AA99/('3. Cost_of_Service_Parameters'!AA53*2)+MIN((AA98/'3. Cost_of_Service_Parameters'!AA53),(AA98+AA104)))) -> 0
D106: Retirements/Removals (if applicable)
D107: Closing Balance | G107: =G104+G105-G106 -> 0 | I107: =I104+I105-I106 -> 0 | K107: =K104+K105-K106 -> 0 | M107: =M104+M105-M106 -> 0 | O107: =O104+O105-O106 -> 0 | Q107: =Q104+Q105-Q106 -> 0 | S107: =S104+S105-S106 -> 0 | U107: =U104+U105-U106 -> 0 | W107: =W104+W105-W106 -> 0 | Y107: =Y104+Y105-Y106 -> 0 | AA107: =AA104+AA105-AA106 -> 0
C109: Net Book Value
D110: Opening Balance | G110: =G98+G104 -> 0 | I110: =G111 -> 0 | K110: =I111 -> 0 | M110: =K111 -> 0 | O110: =M111 -> 0 | Q110: =O111 -> 0 | S110: =Q111 -> 0 | U110: =S111 -> 0 | W110: =U111 -> 0 | Y110: =W111 -> 0 | AA110: =Y111 -> 0
D111: Closing Balance | G111: =G101+G107 -> 0 | I111: =I101+I107 -> 0 | K111: =K101+K107 -> 0 | M111: =M101+M107 -> 0 | O111: =O101+O107 -> 0 | Q111: =Q101+Q107 -> 0 | S111: =S101+S107 -> 0 | U111: =U101+U107 -> 0 | W111: =W101+W107 -> 0 | Y111: =Y101+Y107 -> 0 | AA111: =AA101+AA107 -> 0
D112: Average Net Book Value | G112: =AVERAGE(G110:G111) -> 0 | I112: =AVERAGE(I110:I111) -> 0 | K112: =AVERAGE(K110:K111) -> 0 | M112: =AVERAGE(M110:M111) -> 0 | O112: =AVERAGE(O110:O111) -> 0 | Q112: =AVERAGE(Q110:Q111) -> 0 | S112: =AVERAGE(S110:S111) -> 0 | U112: =AVERAGE(U110:U111) -> 0 | W112: =AVERAGE(W110:W111) -> 0 | Y112: =AVERAGE(Y110:Y111) -> 0 | AA112: =AVERAGE(AA110:AA111) -> 0

Sheet 5. SM_Rev_Reqt
G18: 2006 | I18: 2007 | K18: 2008 | M18: 2009 | O18: 2010 | Q18: 2011 | S18: 2012 | U18: 2013 | W18: 2014 | Y18: 2015 | AA18: 2016
B19: Average Net Fixed Asset Values (from Sheet 4)
C20: Smart Meters | G20: ='4. SM_Assets_and_Rate_Base'!G36 -> 0 | I20: ='4. SM_Assets_and_Rate_Base'!I36 -> 0 | K20: ='4. SM_Assets_and_Rate_Base'!K36 -> 0 | M20: ='4. SM_Assets_and_Rate_Base'!M36 -> 0 | O20: ='4. SM_Assets_and_Rate_Base'!O36 -> 0 | Q20: ='4. SM_Assets_and_Rate_Base'!Q36 -> 0 | S20: ='4. SM_Assets_and_Rate_Base'!S36 -> 0 | U20: ='4. SM_Assets_and_Rate_Base'!U36 -> 0 | W20: ='4. SM_Assets_and_Rate_Base'!W36 -> 0 | Y20: ='4. SM_Assets_and_Rate_Base'!Y36 -> 0 | AA20: ='4. SM_Assets_and_Rate_Base'!AA36 -> 0
C21: Computer Hardware | G21: ='4. SM_Assets_and_Rate_Base'!G55 -> 0 | I21: ='4. SM_Assets_and_Rate_Base'!I55 -> 0 | K21: ='4. SM_Assets_and_Rate_Base'!K55 -> 0 | M21: ='4. SM_Assets_and_Rate_Base'!M55 -> 0 | O21: ='4. SM_Assets_and_Rate_Base'!O55 -> 0 | Q21: ='4. SM_Assets_and_Rate_Base'!Q55 -> 17761.4955 | S21: ='4. SM_Assets_and_Rate_Base'!S55 -> 31575.992 | U21: ='4. SM_Assets_and_Rate_Base'!U55 -> 23681.994 | W21: ='4. SM_Assets_and_Rate_Base'!W55 -> 15787.996 | Y21: ='4. SM_Assets_and_Rate_Base'!Y55 -> 7893.998 | AA21: ='4. SM_Assets_and_Rate_Base'!AA55 -> 1973.4995
C22: Computer Software | G22: ='4. SM_Assets_and_Rate_Base'!G74 -> 0 | I22: ='4. SM_Assets_and_Rate_Base'!I74 -> 0 | K22: ='4. SM_Assets_and_Rate_Base'!K74 -> 0 | M22: ='4. SM_Assets_and_Rate_Base'!M74 -> 0 | O22: ='4. SM_Assets_and_Rate_Base'!O74 -> 0 | Q22: ='4. SM_Assets_and_Rate_Base'!Q74 -> 0 | S22: ='4. SM_Assets_and_Rate_Base'!S74 -> 0 | U22: ='4. SM_Assets_and_Rate_Base'!U74 -> 0 | W22: ='4. SM_Assets_and_Rate_Base'!W74 -> 0 | Y22: ='4. SM_Assets_and_Rate_Base'!Y74 -> 0 | AA22: ='4. SM_Assets_and_Rate_Base'!AA74 -> 0
C23: Tools & Equipment | G23: ='4. SM_Assets_and_Rate_Base'!G93 -> 0 | I23: ='4. SM_Assets_and_Rate_Base'!I93 -> 0 | K23: ='4. SM_Assets_and_Rate_Base'!K93 -> 0 | M23: ='4. SM_Assets_and_Rate_Base'!M93 -> 0 | O23: ='4. SM_Assets_and_Rate_Base'!O93 -> 0 | Q23: ='4. SM_Assets_and_Rate_Base'!Q93 -> 0 | S23: ='4. SM_Assets_and_Rate_Base'!S93 -> 0 | U23: ='4. SM_Assets_and_Rate_Base'!U93 -> 0 | W23: ='4. SM_Assets_and_Rate_Base'!W93 -> 0 | Y23: ='4. SM_Assets_and_Rate_Base'!Y93 -> 0 | AA23: ='4. SM_Assets_and_Rate_Base'!AA93 -> 0
C24: Other Equipment | G24: ='4. SM_Assets_and_Rate_Base'!G112 -> 0 | I24: ='4. SM_Assets_and_Rate_Base'!I112 -> 0 | K24: ='4. SM_Assets_and_Rate_Base'!K112 -> 0 | M24: ='4. SM_Assets_and_Rate_Base'!M112 -> 0 | O24: ='4. SM_Assets_and_Rate_Base'!O112 -> 0 | Q24: ='4. SM_Assets_and_Rate_Base'!Q112 -> 0 | S24: ='4. SM_Assets_and_Rate_Base'!S112 -> 0 | U24: ='4. SM_Assets_and_Rate_Base'!U112 -> 0 | W24: ='4. SM_Assets_and_Rate_Base'!W112 -> 0 | Y24: ='4. SM_Assets_and_Rate_Base'!Y112 -> 0 | AA24: ='4. SM_Assets_and_Rate_Base'!AA112 -> 0
C25: Total Net Fixed Assets | G25: =SUM(G20:G24) -> 0 | I25: =SUM(I20:I24) -> 0 | K25: =SUM(K20:K24) -> 0 | M25: =SUM(M20:M24) -> 0 | O25: =SUM(O20:O24) -> 0 | Q25: =SUM(Q20:Q24) -> 17761.4955 | S25: =SUM(S20:S24) -> 31575.992 | U25: =SUM(U20:U24) -> 23681.994 | W25: =SUM(W20:W24) -> 15787.996 | Y25: =SUM(Y20:Y24) -> 7893.998 | AA25: =SUM(AA20:AA24) -> 1973.4995
B27: Working Capital
C28: Operating Expenses (from Sheet 2) | G28: ='2. Smart_Meter_Costs'!G174 -> 0 | I28: ='2. Smart_Meter_Costs'!I174 -> 0 | K28: ='2. Smart_Meter_Costs'!K174 -> 0 | M28: ='2. Smart_Meter_Costs'!M174 -> 0 | O28: ='2. Smart_Meter_Costs'!O174 -> 0 | Q28: ='2. Smart_Meter_Costs'!Q174 -> 0 | S28: ='2. Smart_Meter_Costs'!S174 -> 0 | U28: ='2. Smart_Meter_Costs'!U174 -> 0 | W28: ='2. Smart_Meter_Costs'!W174 -> 0 | Y28: ='2. Smart_Meter_Costs'!Y174 -> 0 | AA28: ='2. Smart_Meter_Costs'!AA174 -> 0
C29: Working Capital Factor (from Sheet 3) | G29: ='3. Cost_of_Service_Parameters'!G36 -> 0 | I29: ='3. Cost_of_Service_Parameters'!I36 -> 0 | K29: ='3. Cost_of_Service_Parameters'!K36 -> 0 | M29: ='3. Cost_of_Service_Parameters'!M36 -> 0 | O29: ='3. Cost_of_Service_Parameters'!O36 -> 0 | Q29: ='3. Cost_of_Service_Parameters'!Q36 -> 0.15 | S29: ='3. Cost_of_Service_Parameters'!S36 -> 0.15 | U29: ='3. Cost_of_Service_Parameters'!U36 -> 0.15 | W29: ='3. Cost_of_Service_Parameters'!W36 -> 0.15 | Y29: ='3. Cost_of_Service_Parameters'!Y36 -> 0.15 | AA29: ='3. Cost_of_Service_Parameters'!AA36 -> 0.075
C30: Working Capital Allowance | G30: =G28*G29 -> 0 | I30: =I28*I29 -> 0 | K30: =K28*K29 -> 0 | M30: =M28*M29 -> 0 | O30: =O28*O29 -> 0 | Q30: =Q28*Q29 -> 0 | S30: =S28*S29 -> 0 | U30: =U28*U29 -> 0 | W30: =W28*W29 -> 0 | Y30: =Y28*Y29 -> 0 | AA30: =AA28*AA29 -> 0
B32: Incremental Smart Meter Rate Base | G32: =G25+G30 -> 0 | I32: =I25+I30 -> 0 | K32: =K25+K30 -> 0 | M32: =M25+M30 -> 0 | O32: =O25+O30 -> 0 | Q32: =Q25+Q30 -> 17761.4955 | S32: =S25+S30 -> 31575.992 | U32: =U25+U30 -> 23681.994 | W32: =W25+W30 -> 15787.996 | Y32: =Y25+Y30 -> 7893.998 | AA32: =AA25+AA30 -> 1973.4995
B34: Return on Rate Base
C35: Capital Structure
C36: Deemed Short Term Debt | G36: =G$32*'3. Cost_of_Service_Parameters'!G22 -> 0 | I36: =I$32*'3. Cost_of_Service_Parameters'!I22 -> 0 | K36: =K$32*'3. Cost_of_Service_Parameters'!K22 -> 0 | M36: =M$32*'3. Cost_of_Service_Parameters'!M22 -> 0 | O36: =O$32*'3. Cost_of_Service_Parameters'!O22 -> 0 | Q36: =Q$32*'3. Cost_of_Service_Parameters'!Q22 -> 710.45982 | S36: =S$32*'3. Cost_of_Service_Parameters'!S22 -> 1263.03968 | U36: =U$32*'3. Cost_of_Service_Parameters'!U22 -> 947.27976 | W36: =W$32*'3. Cost_of_Service_Parameters'!W22 -> 631.51984 | Y36: =Y$32*'3. Cost_of_Service_Parameters'!Y22 -> 315.75992 | AA36: =AA$32*'3. Cost_of_Service_Parameters'!AA22 -> 78.93998
C37: Deemed Long Term Debt | G37: =G$32*'3. Cost_of_Service_Parameters'!G23 -> 0 | I37: =I$32*'3. Cost_of_Service_Parameters'!I23 -> 0 | K37: =K$32*'3. Cost_of_Service_Parameters'!K23 -> 0 | M37: =M$32*'3. Cost_of_Service_Parameters'!M23 -> 0 | O37: =O$32*'3. Cost_of_Service_Parameters'!O23 -> 0 | Q37: =Q$32*'3. Cost_of_Service_Parameters'!Q23 -> 9946.43748 | S37: =S$32*'3. Cost_of_Service_Parameters'!S23 -> 17682.55552 | U37: =U$32*'3. Cost_of_Service_Parameters'!U23 -> 13261.91664 | W37: =W$32*'3. Cost_of_Service_Parameters'!W23 -> 8841.27776 | Y37: =Y$32*'3. Cost_of_Service_Parameters'!Y23 -> 4420.63888 | AA37: =AA$32*'3. Cost_of_Service_Parameters'!AA23 -> 1105.15972
C38: Equity | G38: =G$32*'3. Cost_of_Service_Parameters'!G24 -> 0 | I38: =I$32*'3. Cost_of_Service_Parameters'!I24 -> 0 | K38: =K$32*'3. Cost_of_Service_Parameters'!K24 -> 0 | M38: =M$32*'3. Cost_of_Service_Parameters'!M24 -> 0 | O38: =O$32*'3. Cost_of_Service_Parameters'!O24 -> 0 | Q38: =Q$32*'3. Cost_of_Service_Parameters'!Q24 -> 7104.5982 | S38: =S$32*'3. Cost_of_Service_Parameters'!S24 -> 12630.3968 | U38: =U$32*'3. Cost_of_Service_Parameters'!U24 -> 9472.7976 | W38: =W$32*'3. Cost_of_Service_Parameters'!W24 -> 6315.1984 | Y38: =Y$32*'3. Cost_of_Service_Parameters'!Y24 -> 3157.5992 | AA38: =AA$32*'3. Cost_of_Service_Parameters'!AA24 -> 789.3998
C39: Preferred Shares | G39: =G$32*'3. Cost_of_Service_Parameters'!G25 -> 0 | I39: =I$32*'3. Cost_of_Service_Parameters'!I25 -> 0 | K39: =K$32*'3. Cost_of_Service_Parameters'!K25 -> 0 | M39: =M$32*'3. Cost_of_Service_Parameters'!M25 -> 0 | O39: =O$32*'3. Cost_of_Service_Parameters'!O25 -> 0 | Q39: =Q$32*'3. Cost_of_Service_Parameters'!Q25 -> 0 | S39: =S$32*'3. Cost_of_Service_Parameters'!S25 -> 0 | U39: =U$32*'3. Cost_of_Service_Parameters'!U25 -> 0 | W39: =W$32*'3. Cost_of_Service_Parameters'!W25 -> 0 | Y39: =Y$32*'3. Cost_of_Service_Parameters'!Y25 -> 0 | AA39: =AA$32*'3. Cost_of_Service_Parameters'!AA25 -> 0
C40: Total Capitalization | G40: =SUM(G36:G39) -> 0 | I40: =SUM(I36:I39) -> 0 | K40: =SUM(K36:K39) -> 0 | M40: =SUM(M36:M39) -> 0 | O40: =SUM(O36:O39) -> 0 | Q40: =SUM(Q36:Q39) -> 17761.4955 | S40: =SUM(S36:S39) -> 31575.992 | U40: =SUM(U36:U39) -> 23681.994 | W40: =SUM(W36:W39) -> 15787.996 | Y40: =SUM(Y36:Y39) -> 7893.998 | AA40: =SUM(AA36:AA39) -> 1973.4995
G41: =IF(G40=G32,"","Error") ->  | I41: =IF(I40=I32,"","Error") ->  | K41: =IF(K40=K32,"","Error") ->  | M41: =IF(M40=M32,"","Error") ->  | O41: =IF(O40=O32,"","Error") ->  | Q41: =IF(Q40=Q32,"","Error") ->  | S41: =IF(S40=S32,"","Error") ->  | U41: =IF(U40=U32,"","Error") ->  | W41: =IF(W40=W32,"","Error") ->  | Y41: =IF(Y40=Y32,"","Error") ->  | AA41: =IF(AA40=AA32,"","Error") -> 
C42: Return on
C43: Deemed Short Term Debt | G43: =G36*'3. Cost_of_Service_Parameters'!G29 -> 0 | I43: =I36*'3. Cost_of_Service_Parameters'!I29 -> 0 | K43: =K36*'3. Cost_of_Service_Parameters'!K29 -> 0 | M43: =M36*'3. Cost_of_Service_Parameters'!M29 -> 0 | O43: =O36*'3. Cost_of_Service_Parameters'!O29 -> 0 | Q43: =Q36*'3. Cost_of_Service_Parameters'!Q29 -> 31.75755395 | S43: =S36*'3. Cost_of_Service_Parameters'!S29 -> 26.27122534 | U43: =U36*'3. Cost_of_Service_Parameters'!U29 -> 19.70341901 | W43: =W36*'3. Cost_of_Service_Parameters'!W29 -> 13.13561267 | Y43: =Y36*'3. Cost_of_Service_Parameters'!Y29 -> 6.567806336 | AA43: =AA36*'3. Cost_of_Service_Parameters'!AA29 -> 1.30250967
C44: Deemed Long Term Debt | G44: =G37*'3. Cost_of_Service_Parameters'!G30 -> 0 | I44: =I37*'3. Cost_of_Service_Parameters'!I30 -> 0 | K44: =K37*'3. Cost_of_Service_Parameters'!K30 -> 0 | M44: =M37*'3. Cost_of_Service_Parameters'!M30 -> 0 | O44: =O37*'3. Cost_of_Service_Parameters'!O30 -> 0 | Q44: =Q37*'3. Cost_of_Service_Parameters'!Q30 -> 496.3272303 | S44: =S37*'3. Cost_of_Service_Parameters'!S30 -> 663.095832 | U44: =U37*'3. Cost_of_Service_Parameters'!U30 -> 497.321874 | W44: =W37*'3. Cost_of_Service_Parameters'!W30 -> 331.547916 | Y44: =Y37*'3. Cost_of_Service_Parameters'!Y30 -> 165.773958 | AA44: =AA37*'3. Cost_of_Service_Parameters'!AA30 -> 37.13336659
C45: Equity | G45: =G38*'3. Cost_of_Service_Parameters'!G31 -> 0 | I45: =I38*'3. Cost_of_Service_Parameters'!I31 -> 0 | K45: =K38*'3. Cost_of_Service_Parameters'!K31 -> 0 | M45: =M38*'3. Cost_of_Service_Parameters'!M31 -> 0 | O45: =O38*'3. Cost_of_Service_Parameters'!O31 -> 0 | Q45: =Q38*'3. Cost_of_Service_Parameters'!Q31 -> 608.8640657 | S45: =S38*'3. Cost_of_Service_Parameters'!S31 -> 1151.892188 | U45: =U38*'3. Cost_of_Service_Parameters'!U31 -> 863.9191411 | W45: =W38*'3. Cost_of_Service_Parameters'!W31 -> 575.9460941 | Y45: =Y38*'3. Cost_of_Service_Parameters'!Y31 -> 287.973047 | AA45: =AA38*'3. Cost_of_Service_Parameters'!AA31 -> 72.54584162
C46: Preferred Shares | G46: =G39*'3. Cost_of_Service_Parameters'!G32 -> 0 | I46: =I39*'3. Cost_of_Service_Parameters'!I32 -> 0 | K46: =K39*'3. Cost_of_Service_Parameters'!K32 -> 0 | M46: =M39*'3. Cost_of_Service_Parameters'!M32 -> 0 | O46: =O39*'3. Cost_of_Service_Parameters'!O32 -> 0 | Q46: =Q39*'3. Cost_of_Service_Parameters'!Q32 -> 0 | S46: =S39*'3. Cost_of_Service_Parameters'!S32 -> 0 | U46: =U39*'3. Cost_of_Service_Parameters'!U32 -> 0 | W46: =W39*'3. Cost_of_Service_Parameters'!W32 -> 0 | Y46: =Y39*'3. Cost_of_Service_Parameters'!Y32 -> 0 | AA46: =AA39*'3. Cost_of_Service_Parameters'!AA32 -> 0
C47: Total Return on Capital | G47: =SUM(G43:G46) -> 0 | I47: =SUM(I43:I46) -> 0 | K47: =SUM(K43:K46) -> 0 | M47: =SUM(M43:M46) -> 0 | O47: =SUM(O43:O46) -> 0 | Q47: =SUM(Q43:Q46) -> 1136.94885 | S47: =SUM(S43:S46) -> 1841.259246 | U47: =SUM(U43:U46) -> 1380.944434 | W47: =SUM(W43:W46) -> 920.6296228 | Y47: =SUM(Y43:Y46) -> 460.3148114 | AA47: =SUM(AA43:AA46) -> 110.9817179
B50: Operating Expenses | G50: =G28 -> 0 | I50: =I28 -> 0 | K50: =K28 -> 0 | M50: =M28 -> 0 | O50: =O28 -> 0 | Q50: =Q28 -> 0 | S50: =S28 -> 0 | U50: =U28 -> 0 | W50: =W28 -> 0 | Y50: =Y28 -> 0 | AA50: =AA28 -> 0
B52: Amortization Expenses (from Sheet 4)
C53: Smart Meters | G53: =-'4. SM_Assets_and_Rate_Base'!G29 -> 0 | I53: =-'4. SM_Assets_and_Rate_Base'!I29 -> 0 | K53: =-'4. SM_Assets_and_Rate_Base'!K29 -> 0 | M53: =-'4. SM_Assets_and_Rate_Base'!M29 -> 0 | O53: =-'4. SM_Assets_and_Rate_Base'!O29 -> 0 | Q53: =-'4. SM_Assets_and_Rate_Base'!Q29 -> 0 | S53: =-'4. SM_Assets_and_Rate_Base'!S29 -> 0 | U53: =-'4. SM_Assets_and_Rate_Base'!U29 -> 0 | W53: =-'4. SM_Assets_and_Rate_Base'!W29 -> 0 | Y53: =-'4. SM_Assets_and_Rate_Base'!Y29 -> 0 | AA53: =-'4. SM_Assets_and_Rate_Base'!AA29 -> 0
C54: Computer Hardware | G54: =-'4. SM_Assets_and_Rate_Base'!G48 -> 0 | I54: =-'4. SM_Assets_and_Rate_Base'!I48 -> 0 | K54: =-'4. SM_Assets_and_Rate_Base'!K48 -> 0 | M54: =-'4. SM_Assets_and_Rate_Base'!M48 -> 0 | O54: =-'4. SM_Assets_and_Rate_Base'!O48 -> 0 | Q54: =-'4. SM_Assets_and_Rate_Base'!Q48 -> 3946.999 | S54: =-'4. SM_Assets_and_Rate_Base'!S48 -> 7893.998 | U54: =-'4. SM_Assets_and_Rate_Base'!U48 -> 7893.998 | W54: =-'4. SM_Assets_and_Rate_Base'!W48 -> 7893.998 | Y54: =-'4. SM_Assets_and_Rate_Base'!Y48 -> 7893.998 | AA54: =-'4. SM_Assets_and_Rate_Base'!AA48 -> 3946.999
C55: Computer Software | G55: =-'4. SM_Assets_and_Rate_Base'!G67 -> 0 | I55: =-'4. SM_Assets_and_Rate_Base'!I67 -> 0 | K55: =-'4. SM_Assets_and_Rate_Base'!K67 -> 0 | M55: =-'4. SM_Assets_and_Rate_Base'!M67 -> 0 | O55: =-'4. SM_Assets_and_Rate_Base'!O67 -> 0 | Q55: =-'4. SM_Assets_and_Rate_Base'!Q67 -> 0 | S55: =-'4. SM_Assets_and_Rate_Base'!S67 -> 0 | U55: =-'4. SM_Assets_and_Rate_Base'!U67 -> 0 | W55: =-'4. SM_Assets_and_Rate_Base'!W67 -> 0 | Y55: =-'4. SM_Assets_and_Rate_Base'!Y67 -> 0 | AA55: =-'4. SM_Assets_and_Rate_Base'!AA67 -> 0
C56: Tools & Equipment | G56: =-'4. SM_Assets_and_Rate_Base'!G86 -> 0 | I56: =-'4. SM_Assets_and_Rate_Base'!I86 -> 0 | K56: =-'4. SM_Assets_and_Rate_Base'!K86 -> 0 | M56: =-'4. SM_Assets_and_Rate_Base'!M86 -> 0 | O56: =-'4. SM_Assets_and_Rate_Base'!O86 -> 0 | Q56: =-'4. SM_Assets_and_Rate_Base'!Q86 -> 0 | S56: =-'4. SM_Assets_and_Rate_Base'!S86 -> 0 | U56: =-'4. SM_Assets_and_Rate_Base'!U86 -> 0 | W56: =-'4. SM_Assets_and_Rate_Base'!W86 -> 0 | Y56: =-'4. SM_Assets_and_Rate_Base'!Y86 -> 0 | AA56: =-'4. SM_Assets_and_Rate_Base'!AA86 -> 0
C57: Other Equipment | G57: =-'4. SM_Assets_and_Rate_Base'!G105 -> 0 | I57: =-'4. SM_Assets_and_Rate_Base'!I105 -> 0 | K57: =-'4. SM_Assets_and_Rate_Base'!K105 -> 0 | M57: =-'4. SM_Assets_and_Rate_Base'!M105 -> 0 | O57: =-'4. SM_Assets_and_Rate_Base'!O105 -> 0 | Q57: =-'4. SM_Assets_and_Rate_Base'!Q105 -> 0 | S57: =-'4. SM_Assets_and_Rate_Base'!S105 -> 0 | U57: =-'4. SM_Assets_and_Rate_Base'!U105 -> 0 | W57: =-'4. SM_Assets_and_Rate_Base'!W105 -> 0 | Y57: =-'4. SM_Assets_and_Rate_Base'!Y105 -> 0 | AA57: =-'4. SM_Assets_and_Rate_Base'!AA105 -> 0
C58: Total Amortization Expense in Year | G58: =SUM(G53:G57) -> 0 | I58: =SUM(I53:I57) -> 0 | K58: =SUM(K53:K57) -> 0 | M58: =SUM(M53:M57) -> 0 | O58: =SUM(O53:O57) -> 0 | Q58: =SUM(Q53:Q57) -> 3946.999 | S58: =SUM(S53:S57) -> 7893.998 | U58: =SUM(U53:U57) -> 7893.998 | W58: =SUM(W53:W57) -> 7893.998 | Y58: =SUM(Y53:Y57) -> 7893.998 | AA58: =SUM(AA53:AA57) -> 3946.999
B60: Incremental Revenue Requirement before Taxes/PILs | G60: =G47+G50+G58 -> 0 | I60: =I47+I50+I58 -> 0 | K60: =K47+K50+K58 -> 0 | M60: =M47+M50+M58 -> 0 | O60: =O47+O50+O58 -> 0 | Q60: =Q47+Q50+Q58 -> 5083.94785 | S60: =S47+S50+S58 -> 9735.257246 | U60: =U47+U50+U58 -> 9274.942434 | W60: =W47+W50+W58 -> 8814.627623 | Y60: =Y47+Y50+Y58 -> 8354.312811 | AA60: =AA47+AA50+AA58 -> 4057.980718
B62: Calculation of Taxable Income
C63: Incremental Operating Expenses | G63: =G50 -> 0 | I63: =I50 -> 0 | K63: =K50 -> 0 | M63: =M50 -> 0 | O63: =O50 -> 0 | Q63: =Q50 -> 0 | S63: =S50 -> 0 | U63: =U50 -> 0 | W63: =W50 -> 0 | Y63: =Y50 -> 0 | AA63: =AA50 -> 0
C64: Amortization Expense | G64: =G58 -> 0 | I64: =I58 -> 0 | K64: =K58 -> 0 | M64: =M58 -> 0 | O64: =O58 -> 0 | Q64: =Q58 -> 3946.999 | S64: =S58 -> 7893.998 | U64: =U58 -> 7893.998 | W64: =W58 -> 7893.998 | Y64: =Y58 -> 7893.998 | AA64: =AA58 -> 3946.999
C65: Interest Expense | G65: =G43+G44 -> 0 | I65: =I43+I44 -> 0 | K65: =K43+K44 -> 0 | M65: =M43+M44 -> 0 | O65: =O43+O44 -> 0 | Q65: =Q43+Q44 -> 528.0847842 | S65: =S43+S44 -> 689.3670573 | U65: =U43+U44 -> 517.025293 | W65: =W43+W44 -> 344.6835287 | Y65: =Y43+Y44 -> 172.3417643 | AA65: =AA43+AA44 -> 38.43587626
C66: Net Income for Taxes/PILs | G66: =G60-SUM(G63:G65) -> 0 | I66: =I60-SUM(I63:I65) -> 0 | K66: =K60-SUM(K63:K65) -> 0 | M66: =M60-SUM(M63:M65) -> 0 | O66: =O60-SUM(O63:O65) -> 0 | Q66: =Q60-SUM(Q63:Q65) -> 608.8640657 | S66: =S60-SUM(S63:S65) -> 1151.892188 | U66: =U60-SUM(U63:U65) -> 863.9191411 | W66: =W60-SUM(W63:W65) -> 575.9460941 | Y66: =Y60-SUM(Y63:Y65) -> 287.973047 | AA66: =AA60-SUM(AA63:AA65) -> 72.54584162
B68: Grossed-up Taxes/PILs (from Sheet 7) | G68: ='7_Taxes_PILs'!C59 -> 0 | I68: ='7_Taxes_PILs'!E59 -> 0 | K68: ='7_Taxes_PILs'!G59 -> 0 | M68: ='7_Taxes_PILs'!I59 -> 0 | O68: ='7_Taxes_PILs'!K59 -> 0 | Q68: ='7_Taxes_PILs'!M59 -> -1155.32491 | S68: ='7_Taxes_PILs'!O59 -> -1227.667562 | U68: ='7_Taxes_PILs'!Q59 -> 307.344054 | W68: ='7_Taxes_PILs'!S59 -> 969.0463793 | Y68: ='7_Taxes_PILs'!U59 -> 1237.759524 | AA68: ='7_Taxes_PILs'!W59 -> 618.9290281
B70: Revenue Requirement, including Grossed-up Taxes/PILs | G70: =G60+G68 -> 0 | I70: =I60+I68 -> 0 | K70: =K60+K68 -> 0 | M70: =M60+M68 -> 0 | O70: =O60+O68 -> 0 | Q70: =Q60+Q68 -> 3928.62294 | S70: =S60+S68 -> 8507.589683 | U70: =U60+U68 -> 9582.286488 | W70: =W60+W68 -> 9783.674002 | Y70: =Y60+Y68 -> 9592.072335 | AA70: =AA60+AA68 -> 4676.909746

Sheet 6. UCC_Calculation
A18: For PILs Calculation
A20: UCC - Smart Meters | B20: ='2. Smart_Meter_Costs'!G18 -> 2006 | D20: ='2. Smart_Meter_Costs'!I18 -> 2007 | F20: ='2. Smart_Meter_Costs'!K18 -> 2008 | H20: ='2. Smart_Meter_Costs'!M18 -> 2009 | J20: ='2. Smart_Meter_Costs'!O18 -> 2010 | L20: ='2. Smart_Meter_Costs'!Q18 -> 2011 | N20: ='2. Smart_Meter_Costs'!S18 -> 2012 | P20: ='2. Smart_Meter_Costs'!U18 -> 2013 | R20: ='2. Smart_Meter_Costs'!W18 -> 2014 | T20: ='2. Smart_Meter_Costs'!Y18 -> 2015 | V20: ='2. Smart_Meter_Costs'!AA18 -> 2016
B21: ='2. Smart_Meter_Costs'!G19 -> Audited Actual | D21: ='2. Smart_Meter_Costs'!I19 -> Audited Actual | F21: ='2. Smart_Meter_Costs'!K19 -> Audited Actual | H21: ='2. Smart_Meter_Costs'!M19 -> Audited Actual | J21: ='2. Smart_Meter_Costs'!O19 -> Audited Actual | L21: ='2. Smart_Meter_Costs'!Q19 -> Audited Actual | N21: ='2. Smart_Meter_Costs'!S19 -> Audited Actual | P21: ='2. Smart_Meter_Costs'!U19 -> Audited Actual | R21: ='2. Smart_Meter_Costs'!W19 -> Forecast | T21: ='2. Smart_Meter_Costs'!Y19 -> Forecast | V21: ='2. Smart_Meter_Costs'!AA19 -> Forecast
A23: Opening UCC | B23: 0 | D23: =B26-B31 -> 0 | F23: =D26-D31 -> 0 | H23: =F26-F31 -> 0 | J23: =H26-H31 -> 0 | L23: =J26-J31 -> 0 | N23: =L26-L31 -> 0 | P23: =N26-N31 -> 0 | R23: =P26-P31 -> 0 | T23: =R26-R31 -> 0 | V23: =T26-T31 -> 0
A24: Capital Additions | B24: ='4. SM_Assets_and_Rate_Base'!G23 -> 0 | D24: ='4. SM_Assets_and_Rate_Base'!I23 -> 0 | F24: ='4. SM_Assets_and_Rate_Base'!K23 -> 0 | H24: ='4. SM_Assets_and_Rate_Base'!M23 -> 0 | J24: ='4. SM_Assets_and_Rate_Base'!O23 -> 0 | L24: ='4. SM_Assets_and_Rate_Base'!Q23 -> 0 | N24: ='4. SM_Assets_and_Rate_Base'!S23 -> 0 | P24: ='4. SM_Assets_and_Rate_Base'!U23 -> 0 | R24: ='4. SM_Assets_and_Rate_Base'!W23 -> 0 | T24: ='4. SM_Assets_and_Rate_Base'!Y23 -> 0 | V24: ='4. SM_Assets_and_Rate_Base'!AA23 -> 0
A25: Retirements/Removals (if applicable)
A26: UCC Before Half Year Rule | B26: =SUM(B23:B24)-B25 -> 0 | D26: =SUM(D23:D24)-D25 -> 0 | F26: =SUM(F23:F24)-F25 -> 0 | H26: =SUM(H23:H24)-H25 -> 0 | J26: =SUM(J23:J24)-J25 -> 0 | L26: =SUM(L23:L24)-L25 -> 0 | N26: =SUM(N23:N24)-N25 -> 0 | P26: =SUM(P23:P24)-P25 -> 0 | R26: =SUM(R23:R24)-R25 -> 0 | T26: =SUM(T23:T24)-T25 -> 0 | V26: =SUM(V23:V24)-V25 -> 0
A27: Half Year Rule (1/2 Additions - Disposals) | B27: =IF(((B24-B25)/2)<0, 0, (B24-B25)/2) -> 0 | D27: =IF(((D24-D25)/2)<0, 0, (D24-D25)/2) -> 0 | F27: =IF(((F24-F25)/2)<0, 0, (F24-F25)/2) -> 0 | H27: =IF(((H24-H25)/2)<0, 0, (H24-H25)/2) -> 0 | J27: =IF(((J24-J25)/2)<0, 0, (J24-J25)/2) -> 0 | L27: =IF(((L24-L25)/2)<0, 0, (L24-L25)/2) -> 0 | N27: =IF(((N24-N25)/2)<0, 0, (N24-N25)/2) -> 0 | P27: =IF(((P24-P25)/2)<0, 0, (P24-P25)/2) -> 0 | R27: =IF(((R24-R25)/2)<0, 0, (R24-R25)/2) -> 0 | T27: =IF(((T24-T25)/2)<0, 0, (T24-T25)/2) -> 0 | V27: =IF(((V24-V25)/2)<0, 0, (V24-V25)/2) -> 0
A28: Reduced UCC | B28: =B27+B23 -> 0 | D28: =D27+D23 -> 0 | F28: =F27+F23 -> 0 | H28: =H27+H23 -> 0 | J28: =J27+J23 -> 0 | L28: =L27+L23 -> 0 | N28: =N27+N23 -> 0 | P28: =P27+P23 -> 0 | R28: =R27+R23 -> 0 | T28: =T27+T23 -> 0 | V28: =V27+V23 -> 0
A29: CCA Rate Class | B29: ='3. Cost_of_Service_Parameters'!G57 -> 0 | D29: ='3. Cost_of_Service_Parameters'!I57 -> 0 | F29: ='3. Cost_of_Service_Parameters'!K57 -> 0 | H29: ='3. Cost_of_Service_Parameters'!M57 -> 0 | J29: ='3. Cost_of_Service_Parameters'!O57 -> 0 | L29: ='3. Cost_of_Service_Parameters'!Q57 -> 0 | N29: ='3. Cost_of_Service_Parameters'!S57 -> 0 | P29: ='3. Cost_of_Service_Parameters'!U57 -> 0 | R29: ='3. Cost_of_Service_Parameters'!W57 -> 0 | T29: ='3. Cost_of_Service_Parameters'!Y57 -> 0 | V29: ='3. Cost_of_Service_Parameters'!AA57 -> 0
A30: CCA Rate | B30: ='3. Cost_of_Service_Parameters'!G58 -> 0 | D30: ='3. Cost_of_Service_Parameters'!I58 -> 0 | F30: ='3. Cost_of_Service_Parameters'!K58 -> 0 | H30: ='3. Cost_of_Service_Parameters'!M58 -> 0 | J30: ='3. Cost_of_Service_Parameters'!O58 -> 0 | L30: ='3. Cost_of_Service_Parameters'!Q58 -> 0 | N30: ='3. Cost_of_Service_Parameters'!S58 -> 0 | P30: ='3. Cost_of_Service_Parameters'!U58 -> 0 | R30: ='3. Cost_of_Service_Parameters'!W58 -> 0 | T30: ='3. Cost_of_Service_Parameters'!Y58 -> 0 | V30: ='3. Cost_of_Service_Parameters'!AA58 -> 0
A31: CCA | B31: =B28*B30 -> 0 | D31: =D28*D30 -> 0 | F31: =F28*F30 -> 0 | H31: =H28*H30 -> 0 | J31: =J28*J30 -> 0 | L31: =L28*L30 -> 0 | N31: =N28*N30 -> 0 | P31: =P28*P30 -> 0 | R31: =R28*R30 -> 0 | T31: =T28*T30 -> 0 | V31: =V28*V30 -> 0
A32: Closing UCC | B32: =IF((B26-B31)<0, 0, B26-B31) -> 0 | D32: =IF((D26-D31)<0, 0, D26-D31) -> 0 | F32: =IF((F26-F31)<0, 0, F26-F31) -> 0 | H32: =IF((H26-H31)<0, 0, H26-H31) -> 0 | J32: =IF((J26-J31)<0, 0, J26-J31) -> 0 | L32: =IF((L26-L31)<0, 0, L26-L31) -> 0 | N32: =IF((N26-N31)<0, 0, N26-N31) -> 0 | P32: =IF((P26-P31)<0, 0, P26-P31) -> 0 | R32: =IF((R26-R31)<0, 0, R26-R31) -> 0 | T32: =IF((T26-T31)<0, 0, T26-T31) -> 0 | V32: =IF((V26-V31)<0, 0, V26-V31) -> 0
A34: UCC - Computer Equipment | B34: =B20 -> 2006 | D34: 2007 | F34: 2008 | H34: 2009 | J34: 2010 | L34: 2011 | N34: =N20 -> 2012 | P34: =P20 -> 2013 | R34: =R20 -> 2014 | T34: =T20 -> 2015 | V34: =V20 -> 2016
B35: Audited Actual | D35: Audited Actual | F35: Audited Actual | H35: Audited Actual | J35: Audited Actual | L35: Audited Actual | N35: =N21 -> Audited Actual | P35: =P21 -> Audited Actual | R35: =R21 -> Forecast | T35: =T21 -> Forecast | V35: =V21 -> Forecast
A37: Opening UCC | B37: 0 | D37: =B41-B46 -> 0 | F37: =D41-D46 -> 0 | H37: =F41-F46 -> 0 | J37: =H41-H46 -> 0 | L37: =J41-J46 -> 0 | N37: =L41-L46 -> 28615.74275 | P37: =N41-N46 -> 12877.08424 | R37: =P41-P46 -> 5794.687907 | T37: =R41-R46 -> 2607.609558 | V37: =T41-T46 -> 1173.424301
A38: Capital Additions Computer Hardware | B38: ='2. Smart_Meter_Costs'!G183 -> 0 | D38: ='2. Smart_Meter_Costs'!I183 -> 0 | F38: ='2. Smart_Meter_Costs'!K183 -> 0 | H38: ='2. Smart_Meter_Costs'!M183 -> 0 | J38: ='2. Smart_Meter_Costs'!O183 -> 0 | L38: ='2. Smart_Meter_Costs'!Q183 -> 39469.99 | N38: ='2. Smart_Meter_Costs'!S183 -> 0 | P38: ='2. Smart_Meter_Costs'!U183 -> 0 | R38: ='2. Smart_Meter_Costs'!W183 -> 0 | T38: ='2. Smart_Meter_Costs'!Y183 -> 0 | V38: ='2. Smart_Meter_Costs'!AA183 -> 0
A39: Capital Additions Computer Software | B39: ='2. Smart_Meter_Costs'!G185 -> 0 | D39: ='2. Smart_Meter_Costs'!I185 -> 0 | F39: ='2. Smart_Meter_Costs'!K185 -> 0 | H39: ='2. Smart_Meter_Costs'!M185 -> 0 | J39: ='2. Smart_Meter_Costs'!O185 -> 0 | L39: ='2. Smart_Meter_Costs'!Q185 -> 0 | N39: ='2. Smart_Meter_Costs'!S185 -> 0 | P39: ='2. Smart_Meter_Costs'!U185 -> 0 | R39: ='2. Smart_Meter_Costs'!W185 -> 0 | T39: ='2. Smart_Meter_Costs'!Y185 -> 0 | V39: ='2. Smart_Meter_Costs'!AA185 -> 0
A40: Retirements/Removals (if applicable)
A41: UCC Before Half Year Rule | B41: =SUM(B37:B39)-B40 -> 0 | D41: =SUM(D37:D39)-D40 -> 0 | F41: =SUM(F37:F39)-F40 -> 0 | H41: =SUM(H37:H39)-H40 -> 0 | J41: =SUM(J37:J39)-J40 -> 0 | L41: =SUM(L37:L39)-L40 -> 39469.99 | N41: =SUM(N37:N39)-N40 -> 28615.74275 | P41: =SUM(P37:P39)-P40 -> 12877.08424 | R41: =SUM(R37:R39)-R40 -> 5794.687907 | T41: =SUM(T37:T39)-T40 -> 2607.609558 | V41: =SUM(V37:V39)-V40 -> 1173.424301
A42: Half Year Rule (1/2 Additions - Disposals) | B42: =IF((SUM(B38:B39)/2)<0, 0, SUM(B38:B39)/2) -> 0 | D42: =IF((SUM(D38:D39)/2)<0, 0, SUM(D38:D39)/2) -> 0 | F42: =IF((SUM(F38:F39)/2)<0, 0, SUM(F38:F39)/2) -> 0 | H42: =IF((SUM(H38:H39)/2)<0, 0, SUM(H38:H39)/2) -> 0 | J42: =IF((SUM(J38:J39)/2)<0, 0, SUM(J38:J39)/2) -> 0 | L42: =IF((SUM(L38:L39)/2)<0, 0, SUM(L38:L39)/2) -> 19734.995 | N42: =IF((SUM(N38:N39)/2)<0, 0, SUM(N38:N39)/2) -> 0 | P42: =IF((SUM(P38:P39)/2)<0, 0, SUM(P38:P39)/2) -> 0 | R42: =IF((SUM(R38:R39)/2)<0, 0, SUM(R38:R39)/2) -> 0 | T42: =IF((SUM(T38:T39)/2)<0, 0, SUM(T38:T39)/2) -> 0 | V42: =IF((SUM(V38:V39)/2)<0, 0, SUM(V38:V39)/2) -> 0
A43: Reduced UCC | B43: =B42+B37 -> 0 | D43: =D42+D37 -> 0 | F43: =F42+F37 -> 0 | H43: =H42+H37 -> 0 | J43: =J42+J37 -> 0 | L43: =L42+L37 -> 19734.995 | N43: =N42+N37 -> 28615.74275 | P43: =P42+P37 -> 12877.08424 | R43: =R42+R37 -> 5794.687907 | T43: =T42+T37 -> 2607.609558 | V43: =V42+V37 -> 1173.424301
A44: CCA Rate Class | B44: ='3. Cost_of_Service_Parameters'!G60 -> 0 | D44: ='3. Cost_of_Service_Parameters'!I60 -> 0 | F44: ='3. Cost_of_Service_Parameters'!K60 -> 0 | H44: ='3. Cost_of_Service_Parameters'!M60 -> 0 | J44: ='3. Cost_of_Service_Parameters'!O60 -> 0 | L44: ='3. Cost_of_Service_Parameters'!Q60 -> 50 | N44: ='3. Cost_of_Service_Parameters'!S60 -> 50 | P44: ='3. Cost_of_Service_Parameters'!U60 -> 50 | R44: ='3. Cost_of_Service_Parameters'!W60 -> 50 | T44: ='3. Cost_of_Service_Parameters'!Y60 -> 50 | V44: ='3. Cost_of_Service_Parameters'!AA60 -> 50
A45: CCA Rate | B45: ='3. Cost_of_Service_Parameters'!G61 -> 0 | D45: ='3. Cost_of_Service_Parameters'!I61 -> 0 | F45: ='3. Cost_of_Service_Parameters'!K61 -> 0 | H45: ='3. Cost_of_Service_Parameters'!M61 -> 0 | J45: ='3. Cost_of_Service_Parameters'!O61 -> 0 | L45: ='3. Cost_of_Service_Parameters'!Q61 -> 0.55 | N45: ='3. Cost_of_Service_Parameters'!S61 -> 0.55 | P45: ='3. Cost_of_Service_Parameters'!U61 -> 0.55 | R45: ='3. Cost_of_Service_Parameters'!W61 -> 0.55 | T45: ='3. Cost_of_Service_Parameters'!Y61 -> 0.55 | V45: ='3. Cost_of_Service_Parameters'!AA61 -> 0.55
A46: CCA | B46: =B45*B43 -> 0 | D46: =D45*D43 -> 0 | F46: =F45*F43 -> 0 | H46: =H45*H43 -> 0 | J46: =J45*J43 -> 0 | L46: =L45*L43 -> 10854.24725 | N46: =N45*N43 -> 15738.65851 | P46: =P45*P43 -> 7082.396331 | R46: =R45*R43 -> 3187.078349 | T46: =T45*T43 -> 1434.185257 | V46: =V45*V43 -> 645.3833656
A47: Closing UCC | B47: =IF((B41-B46)<0, 0, B41-B46) -> 0 | D47: =IF((D41-D46)<0, 0, D41-D46) -> 0 | F47: =IF((F41-F46)<0, 0, F41-F46) -> 0 | H47: =IF((H41-H46)<0, 0, H41-H46) -> 0 | J47: =IF((J41-J46)<0, 0, J41-J46) -> 0 | L47: =IF((L41-L46)<0, 0, L41-L46) -> 28615.74275 | N47: =IF((N41-N46)<0, 0, N41-N46) -> 12877.08424 | P47: =IF((P41-P46)<0, 0, P41-P46) -> 5794.687907 | R47: =IF((R41-R46)<0, 0, R41-R46) -> 2607.609558 | T47: =IF((T41-T46)<0, 0, T41-T46) -> 1173.424301 | V47: =IF((V41-V46)<0, 0, V41-V46) -> 528.0409355
A49: UCC - General Equipment | B49: =B34 -> 2006 | D49: 2007 | F49: 2008 | H49: 2009 | J49: 2010 | L49: 2011 | N49: =N34 -> 2012 | P49: =P34 -> 2013 | R49: =R34 -> 2014 | T49: =T34 -> 2015 | V49: =V34 -> 2016
B50: Audited Actual | D50: Audited Actual | F50: Audited Actual | H50: Audited Actual | J50: Audited Actual | L50: Audited Actual | N50: =N35 -> Audited Actual | P50: =P35 -> Audited Actual | R50: =R35 -> Forecast | T50: =T35 -> Forecast | V50: =V35 -> Forecast
A52: Opening UCC | B52: 0 | D52: =B56-B61 -> 0 | F52: =D56-D61 -> 0 | H52: =F56-F61 -> 0 | J52: =H56-H61 -> 0 | L52: =J56-J61 -> 0 | N52: =L56-L61 -> 0 | P52: =N56-N61 -> 0 | R52: =P56-P61 -> 0 | T52: =R56-R61 -> 0 | V52: =T56-T61 -> 0
A53: Capital Additions Tools & Equipment | B53: ='2. Smart_Meter_Costs'!G187 -> 0 | D53: ='2. Smart_Meter_Costs'!I187 -> 0 | F53: ='2. Smart_Meter_Costs'!K187 -> 0 | H53: ='2. Smart_Meter_Costs'!M187 -> 0 | J53: ='2. Smart_Meter_Costs'!O187 -> 0 | L53: ='2. Smart_Meter_Costs'!Q187 -> 0 | N53: ='2. Smart_Meter_Costs'!S187 -> 0 | P53: ='2. Smart_Meter_Costs'!U187 -> 0 | R53: ='2. Smart_Meter_Costs'!W187 -> 0 | T53: ='2. Smart_Meter_Costs'!Y187 -> 0 | V53: ='2. Smart_Meter_Costs'!AA187 -> 0
A54: Capital Additions Other Equipment | B54: ='2. Smart_Meter_Costs'!G189 -> 0 | D54: ='2. Smart_Meter_Costs'!I189 -> 0 | F54: ='2. Smart_Meter_Costs'!K189 -> 0 | H54: ='2. Smart_Meter_Costs'!M189 -> 0 | J54: ='2. Smart_Meter_Costs'!O189 -> 0 | L54: ='2. Smart_Meter_Costs'!Q189 -> 0 | N54: ='2. Smart_Meter_Costs'!S189 -> 0 | P54: ='2. Smart_Meter_Costs'!U189 -> 0 | R54: ='2. Smart_Meter_Costs'!W189 -> 0 | T54: ='2. Smart_Meter_Costs'!Y189 -> 0 | V54: ='2. Smart_Meter_Costs'!AA189 -> 0
A55: Retirements/Removals (if applicable)
A56: UCC Before Half Year Rule | B56: =SUM(B52:B54)-B55 -> 0 | D56: =SUM(D52:D54)-D55 -> 0 | F56: =SUM(F52:F54)-F55 -> 0 | H56: =SUM(H52:H54)-H55 -> 0 | J56: =SUM(J52:J54)-J55 -> 0 | L56: =SUM(L52:L54)-L55 -> 0 | N56: =SUM(N52:N54)-N55 -> 0 | P56: =SUM(P52:P54)-P55 -> 0 | R56: =SUM(R52:R54)-R55 -> 0 | T56: =SUM(T52:T54)-T55 -> 0 | V56: =SUM(V52:V54)-V55 -> 0
A57: Half Year Rule (1/2 Additions - Disposals) | B57: =IF(((SUM(B53:B54)-B55)/2)<0, 0, (SUM(B53:B54)-B55)/2) -> 0 | D57: =IF(((SUM(D53:D54)-D55)/2)<0, 0, (SUM(D53:D54)-D55)/2) -> 0 | F57: =IF(((SUM(F53:F54)-F55)/2)<0, 0, (SUM(F53:F54)-F55)/2) -> 0 | H57: =IF(((SUM(H53:H54)-H55)/2)<0, 0, (SUM(H53:H54)-H55)/2) -> 0 | J57: =IF(((SUM(J53:J54)-J55)/2)<0, 0, (SUM(J53:J54)-J55)/2) -> 0 | L57: =IF(((SUM(L53:L54)-L55)/2)<0, 0, (SUM(L53:L54)-L55)/2) -> 0 | N57: =IF(((SUM(N53:N54)-N55)/2)<0, 0, (SUM(N53:N54)-N55)/2) -> 0 | P57: =IF(((SUM(P53:P54)-P55)/2)<0, 0, (SUM(P53:P54)-P55)/2) -> 0 | R57: =IF(((SUM(R53:R54)-R55)/2)<0, 0, (SUM(R53:R54)-R55)/2) -> 0 | T57: =IF(((SUM(T53:T54)-T55)/2)<0, 0, (SUM(T53:T54)-T55)/2) -> 0 | V57: =IF(((SUM(V53:V54)-V55)/2)<0, 0, (SUM(V53:V54)-V55)/2) -> 0
A58: Reduced UCC | B58: =B57+B52 -> 0 | D58: =D57+D52 -> 0 | F58: =F57+F52 -> 0 | H58: =H57+H52 -> 0 | J58: =J57+J52 -> 0 | L58: =L57+L52 -> 0 | N58: =N57+N52 -> 0 | P58: =P57+P52 -> 0 | R58: =R57+R52 -> 0 | T58: =T57+T52 -> 0 | V58: =V57+V52 -> 0
A59: CCA Rate Class | B59: ='3. Cost_of_Service_Parameters'!G63 -> 0 | D59: ='3. Cost_of_Service_Parameters'!I63 -> 0 | F59: ='3. Cost_of_Service_Parameters'!K63 -> 0 | H59: ='3. Cost_of_Service_Parameters'!M63 -> 0 | J59: ='3. Cost_of_Service_Parameters'!O63 -> 0 | L59: ='3. Cost_of_Service_Parameters'!Q63 -> 0 | N59: ='3. Cost_of_Service_Parameters'!S63 -> 0 | P59: ='3. Cost_of_Service_Parameters'!U63 -> 0 | R59: ='3. Cost_of_Service_Parameters'!W63 -> 0 | T59: ='3. Cost_of_Service_Parameters'!Y63 -> 0 | V59: ='3. Cost_of_Service_Parameters'!AA63 -> 0
A60: CCA Rate | B60: ='3. Cost_of_Service_Parameters'!G64 -> 0 | D60: ='3. Cost_of_Service_Parameters'!I64 -> 0 | F60: ='3. Cost_of_Service_Parameters'!K64 -> 0 | H60: ='3. Cost_of_Service_Parameters'!M64 -> 0 | J60: ='3. Cost_of_Service_Parameters'!O64 -> 0 | L60: ='3. Cost_of_Service_Parameters'!Q64 -> 0 | N60: ='3. Cost_of_Service_Parameters'!S64 -> 0 | P60: ='3. Cost_of_Service_Parameters'!U64 -> 0 | R60: ='3. Cost_of_Service_Parameters'!W64 -> 0 | T60: ='3. Cost_of_Service_Parameters'!Y64 -> 0 | V60: ='3. Cost_of_Service_Parameters'!AA64 -> 0
A61: CCA | B61: =B60*B58 -> 0 | D61: =D60*D58 -> 0 | F61: =F60*F58 -> 0 | H61: =H60*H58 -> 0 | J61: =J60*J58 -> 0 | L61: =L60*L58 -> 0 | N61: =N60*N58 -> 0 | P61: =P60*P58 -> 0 | R61: =R60*R58 -> 0 | T61: =T60*T58 -> 0 | V61: =V60*V58 -> 0
A62: Closing UCC | B62: =IF((B56-B61)<0, 0, B56-B61) -> 0 | D62: =IF((D56-D61)<0, 0, D56-D61) -> 0 | F62: =IF((F56-F61)<0, 0, F56-F61) -> 0 | H62: =IF((H56-H61)<0, 0, H56-H61) -> 0 | J62: =IF((J56-J61)<0, 0, J56-J61) -> 0 | L62: =IF((L56-L61)<0, 0, L56-L61) -> 0 | N62: =IF((N56-N61)<0, 0, N56-N61) -> 0 | P62: =IF((P56-P61)<0, 0, P56-P61) -> 0 | R62: =IF((R56-R61)<0, 0, R56-R61) -> 0 | T62: =IF((T56-T61)<0, 0, T56-T61) -> 0 | V62: =IF((V56-V61)<0, 0, V56-V61) -> 0
A64: UCC - Applications Software | B64: =B49 -> 2006 | D64: =D49 -> 2007 | F64: =F49 -> 2008 | H64: =H49 -> 2009 | J64: =J49 -> 2010 | L64: =L49 -> 2011 | N64: =N49 -> 2012 | P64: =P49 -> 2013 | R64: =R49 -> 2014 | T64: =T49 -> 2015 | V64: =V49 -> 2016
B65: =B50 -> Audited Actual | D65: =D50 -> Audited Actual | F65: =F50 -> Audited Actual | H65: =H50 -> Audited Actual | J65: =J50 -> Audited Actual | L65: =L50 -> Audited Actual | N65: =N50 -> Audited Actual | P65: =P50 -> Audited Actual | R65: =R50 -> Forecast | T65: =T50 -> Forecast | V65: =V50 -> Forecast
A67: Opening UCC | B67: 0 | D67: =B70-B75 -> 0 | F67: =D70-D75 -> 0 | H67: =F70-F75 -> 0 | J67: =H70-H75 -> 0 | L67: =J70-J75 -> 0 | N67: =L70-L75 -> 0 | P67: =N70-N75 -> 0 | R67: =P70-P75 -> 0 | T67: =R70-R75 -> 0 | V67: =T70-T75 -> 0
A68: Capital Additions Applications Software | B68: ='2. Smart_Meter_Costs'!G191 -> 0 | D68: ='2. Smart_Meter_Costs'!I191 -> 0 | F68: ='2. Smart_Meter_Costs'!K191 -> 0 | H68: ='2. Smart_Meter_Costs'!M191 -> 0 | J68: ='2. Smart_Meter_Costs'!O191 -> 0 | L68: ='2. Smart_Meter_Costs'!Q191 -> 0 | N68: ='2. Smart_Meter_Costs'!S191 -> 0 | P68: ='2. Smart_Meter_Costs'!U191 -> 0 | R68: ='2. Smart_Meter_Costs'!W191 -> 0 | T68: ='2. Smart_Meter_Costs'!Y191 -> 0 | V68: ='2. Smart_Meter_Costs'!AA191 -> 0
A69: Retirements/Removals (if applicable)
A70: UCC Before Half Year Rule | B70: =SUM(B67:B68)-B69 -> 0 | D70: =SUM(D67:D68)-D69 -> 0 | F70: =SUM(F67:F68)-F69 -> 0 | H70: =SUM(H67:H68)-H69 -> 0 | J70: =SUM(J67:J68)-J69 -> 0 | L70: =SUM(L67:L68)-L69 -> 0 | N70: =SUM(N67:N68)-N69 -> 0 | P70: =SUM(P67:P68)-P69 -> 0 | R70: =SUM(R67:R68)-R69 -> 0 | T70: =SUM(T67:T68)-T69 -> 0 | V70: =SUM(V67:V68)-V69 -> 0
A71: Half Year Rule (1/2 Additions - Disposals) | B71: =IF(((SUM(B68:B68)-B69)/2)<0, 0, (SUM(B68:B68)-B69)/2) -> 0 | D71: =IF(((SUM(D68:D68)-D69)/2)<0, 0, (SUM(D68:D68)-D69)/2) -> 0 | F71: =IF(((SUM(F68:F68)-F69)/2)<0, 0, (SUM(F68:F68)-F69)/2) -> 0 | H71: =IF(((SUM(H68:H68)-H69)/2)<0, 0, (SUM(H68:H68)-H69)/2) -> 0 | J71: =IF(((SUM(J68:J68)-J69)/2)<0, 0, (SUM(J68:J68)-J69)/2) -> 0 | L71: =IF(((SUM(L68:L68)-L69)/2)<0, 0, (SUM(L68:L68)-L69)/2) -> 0 | N71: =IF(((SUM(N68:N68)-N69)/2)<0, 0, (SUM(N68:N68)-N69)/2) -> 0 | P71: =IF(((SUM(P68:P68)-P69)/2)<0, 0, (SUM(P68:P68)-P69)/2) -> 0 | R71: =IF(((SUM(R68:R68)-R69)/2)<0, 0, (SUM(R68:R68)-R69)/2) -> 0 | T71: =IF(((SUM(T68:T68)-T69)/2)<0, 0, (SUM(T68:T68)-T69)/2) -> 0 | V71: =IF(((SUM(V68:V68)-V69)/2)<0, 0, (SUM(V68:V68)-V69)/2) -> 0
A72: Reduced UCC | B72: =B71+B67 -> 0 | D72: =D71+D67 -> 0 | F72: =F71+F67 -> 0 | H72: =H71+H67 -> 0 | J72: =J71+J67 -> 0 | L72: =L71+L67 -> 0 | N72: =N71+N67 -> 0 | P72: =P71+P67 -> 0 | R72: =R71+R67 -> 0 | T72: =T71+T67 -> 0 | V72: =V71+V67 -> 0
A73: CCA Rate Class | B73: ='3. Cost_of_Service_Parameters'!G66 -> 0 | D73: ='3. Cost_of_Service_Parameters'!I66 -> 0 | F73: ='3. Cost_of_Service_Parameters'!K66 -> 0 | H73: ='3. Cost_of_Service_Parameters'!M66 -> 0 | J73: ='3. Cost_of_Service_Parameters'!O66 -> 0 | L73: ='3. Cost_of_Service_Parameters'!Q66 -> 0 | N73: ='3. Cost_of_Service_Parameters'!S66 -> 0 | P73: ='3. Cost_of_Service_Parameters'!U66 -> 0 | R73: ='3. Cost_of_Service_Parameters'!W66 -> 0 | T73: ='3. Cost_of_Service_Parameters'!Y66 -> 0 | V73: ='3. Cost_of_Service_Parameters'!AA66 -> 0
A74: CCA Rate | B74: ='3. Cost_of_Service_Parameters'!G67 -> 0 | D74: ='3. Cost_of_Service_Parameters'!I67 -> 0 | F74: ='3. Cost_of_Service_Parameters'!K67 -> 0 | H74: ='3. Cost_of_Service_Parameters'!M67 -> 0 | J74: ='3. Cost_of_Service_Parameters'!O67 -> 0 | L74: ='3. Cost_of_Service_Parameters'!Q67 -> 0 | N74: ='3. Cost_of_Service_Parameters'!S67 -> 0 | P74: ='3. Cost_of_Service_Parameters'!U67 -> 0 | R74: ='3. Cost_of_Service_Parameters'!W67 -> 0 | T74: ='3. Cost_of_Service_Parameters'!Y67 -> 0 | V74: ='3. Cost_of_Service_Parameters'!AA67 -> 0
A75: CCA | B75: =B74*B72 -> 0 | D75: =D74*D72 -> 0 | F75: =F74*F72 -> 0 | H75: =H74*H72 -> 0 | J75: =J74*J72 -> 0 | L75: =L74*L72 -> 0 | N75: =N74*N72 -> 0 | P75: =P74*P72 -> 0 | R75: =R74*R72 -> 0 | T75: =T74*T72 -> 0 | V75: =V74*V72 -> 0
A76: Closing UCC | B76: =IF((B70-B75)<0, 0, B70-B75) -> 0 | D76: =IF((D70-D75)<0, 0, D70-D75) -> 0 | F76: =IF((F70-F75)<0, 0, F70-F75) -> 0 | H76: =IF((H70-H75)<0, 0, H70-H75) -> 0 | J76: =IF((J70-J75)<0, 0, J70-J75) -> 0 | L76: =IF((L70-L75)<0, 0, L70-L75) -> 0 | N76: =IF((N70-N75)<0, 0, N70-N75) -> 0 | P76: =IF((P70-P75)<0, 0, P70-P75) -> 0 | R76: =IF((R70-R75)<0, 0, R70-R75) -> 0 | T76: =IF((T70-T75)<0, 0, T70-T75) -> 0 | V76: =IF((V70-V75)<0, 0, V70-V75) -> 0

Sheet 7_Taxes_PILs
A18: PILs Calculation
C20: ='2. Smart_Meter_Costs'!G18& " " &'2. Smart_Meter_Costs'!G19 -> 2006 Audited Actual | E20: ='2. Smart_Meter_Costs'!I18& " " &'2. Smart_Meter_Costs'!I19 -> 2007 Audited Actual | G20: ='2. Smart_Meter_Costs'!K18& " " &'2. Smart_Meter_Costs'!K19 -> 2008 Audited Actual | I20: ='2. Smart_Meter_Costs'!M18& " " &'2. Smart_Meter_Costs'!M19 -> 2009 Audited Actual | K20: ='2. Smart_Meter_Costs'!O18& " " &'2. Smart_Meter_Costs'!O19 -> 2010 Audited Actual | M20: ='2. Smart_Meter_Costs'!Q18& " " &'2. Smart_Meter_Costs'!Q19 -> 2011 Audited Actual | O20: ='2. Smart_Meter_Costs'!S18& " " &'2. Smart_Meter_Costs'!S19 -> 2012 Audited Actual | Q20: ='2. Smart_Meter_Costs'!U18& " " &'2. Smart_Meter_Costs'!U19 -> 2013 Audited Actual | S20: ='2. Smart_Meter_Costs'!W18& " " &'2. Smart_Meter_Costs'!W19 -> 2014 Forecast | U20: ='2. Smart_Meter_Costs'!Y18& " " &'2. Smart_Meter_Costs'!Y19 -> 2015 Forecast | W20: ='2. Smart_Meter_Costs'!AA18& " " &'2. Smart_Meter_Costs'!AA19 -> 2016 Forecast
A22: INCOME TAX
B23: Net Income | C23: ='5. SM_Rev_Reqt'!G$66 -> 0 | E23: ='5. SM_Rev_Reqt'!I$66 -> 0 | G23: ='5. SM_Rev_Reqt'!K$66 -> 0 | I23: ='5. SM_Rev_Reqt'!M$66 -> 0 | K23: ='5. SM_Rev_Reqt'!O$66 -> 0 | M23: ='5. SM_Rev_Reqt'!Q$66 -> 608.8640657 | O23: ='5. SM_Rev_Reqt'!S$66 -> 1151.892188 | Q23: ='5. SM_Rev_Reqt'!U$66 -> 863.9191411 | S23: ='5. SM_Rev_Reqt'!W$66 -> 575.9460941 | U23: ='5. SM_Rev_Reqt'!Y$66 -> 287.973047 | W23: ='5. SM_Rev_Reqt'!AA$66 -> 72.54584162
B24: Amortization | C24: ='5. SM_Rev_Reqt'!G$64 -> 0 | E24: ='5. SM_Rev_Reqt'!I$64 -> 0 | G24: ='5. SM_Rev_Reqt'!K$64 -> 0 | I24: ='5. SM_Rev_Reqt'!M$64 -> 0 | K24: ='5. SM_Rev_Reqt'!O$64 -> 0 | M24: ='5. SM_Rev_Reqt'!Q$64 -> 3946.999 | O24: ='5. SM_Rev_Reqt'!S$64 -> 7893.998 | Q24: ='5. SM_Rev_Reqt'!U$64 -> 7893.998 | S24: ='5. SM_Rev_Reqt'!W$64 -> 7893.998 | U24: ='5. SM_Rev_Reqt'!Y$64 -> 7893.998 | W24: ='5. SM_Rev_Reqt'!AA$64 -> 3946.999
B25: CCA - Smart Meters | C25: =-'6. UCC_Calculation'!B31 -> 0 | E25: =-'6. UCC_Calculation'!D31 -> 0 | G25: =-'6. UCC_Calculation'!F31 -> 0 | I25: =-'6. UCC_Calculation'!H31 -> 0 | K25: =-'6. UCC_Calculation'!J31 -> 0 | M25: =-'6. UCC_Calculation'!L31 -> 0 | O25: =-'6. UCC_Calculation'!N31 -> 0 | Q25: =-'6. UCC_Calculation'!P31 -> 0 | S25: =-'6. UCC_Calculation'!R31 -> 0 | U25: =-'6. UCC_Calculation'!T31 -> 0 | W25: =-'6. UCC_Calculation'!V31 -> 0
B26: CCA - Computers | C26: =-'6. UCC_Calculation'!B46 -> 0 | E26: =-'6. UCC_Calculation'!D46 -> 0 | G26: =-'6. UCC_Calculation'!F46 -> 0 | I26: =-'6. UCC_Calculation'!H46 -> 0 | K26: =-'6. UCC_Calculation'!J46 -> 0 | M26: =-'6. UCC_Calculation'!L46 -> -10854.24725 | O26: =-'6. UCC_Calculation'!N46 -> -15738.65851 | Q26: =-'6. UCC_Calculation'!P46 -> -7082.396331 | S26: =-'6. UCC_Calculation'!R46 -> -3187.078349 | U26: =-'6. UCC_Calculation'!T46 -> -1434.185257 | W26: =-'6. UCC_Calculation'!V46 -> -645.3833656
B27: CCA - Applications Software | C27: =-'6. UCC_Calculation'!B75 -> 0 | E27: =-'6. UCC_Calculation'!D75 -> 0 | G27: =-'6. UCC_Calculation'!F75 -> 0 | I27: =-'6. UCC_Calculation'!H75 -> 0 | K27: =-'6. UCC_Calculation'!J75 -> 0 | M27: =-'6. UCC_Calculation'!L75 -> 0 | O27: =-'6. UCC_Calculation'!N75 -> 0 | Q27: =-'6. UCC_Calculation'!P75 -> 0 | S27: =-'6. UCC_Calculation'!R75 -> 0 | U27: =-'6. UCC_Calculation'!T75 -> 0 | W27: =-'6. UCC_Calculation'!V75 -> 0
B28: CCA - Other Equipment | C28: =-'6. UCC_Calculation'!B61 -> 0 | E28: =-'6. UCC_Calculation'!D61 -> 0 | G28: =-'6. UCC_Calculation'!F61 -> 0 | I28: =-'6. UCC_Calculation'!H61 -> 0 | K28: =-'6. UCC_Calculation'!J61 -> 0 | M28: =-'6. UCC_Calculation'!L61 -> 0 | O28: =-'6. UCC_Calculation'!N61 -> 0 | Q28: =-'6. UCC_Calculation'!P61 -> 0 | S28: =-'6. UCC_Calculation'!R61 -> 0 | U28: =-'6. UCC_Calculation'!T61 -> 0 | W28: =-'6. UCC_Calculation'!V61 -> 0
B29: Change in taxable income | C29: =SUM(C23:C28) -> 0 | E29: 0 | G29: 0 | I29: 0 | K29: 0 | M29: -6298.384184 | O29: -6692.768324 | Q29: 1675.52081 | S29: =SUM(S23:S28) -> 5282.865745 | U29: 6747.78579 | W29: =SUM(W23:W28) -> 3374.161476
B31: Tax Rate (from Sheet 3) | C31: ='3. Cost_of_Service_Parameters'!G40 -> 0.3612 | E31: ='3. Cost_of_Service_Parameters'!I40 -> 0.3612 | G31: ='3. Cost_of_Service_Parameters'!K40 -> 0.335 | I31: ='3. Cost_of_Service_Parameters'!M40 -> 0.33 | K31: ='3. Cost_of_Service_Parameters'!O40 -> 0.31 | M31: ='3. Cost_of_Service_Parameters'!Q40 -> 0.155 | O31: ='3. Cost_of_Service_Parameters'!S40 -> 0.155 | Q31: ='3. Cost_of_Service_Parameters'!U40 -> 0.155 | S31: ='3. Cost_of_Service_Parameters'!W40 -> 0.155 | U31: ='3. Cost_of_Service_Parameters'!Y40 -> 0.155 | W31: ='3. Cost_of_Service_Parameters'!AA40 -> 0.155
B33: Income Taxes Payable | C33: =C29*C31 -> 0 | E33: 0 | G33: 0 | I33: 0 | K33: 0 | M33: -976.2495486 | O33: -1037.37909 | Q33: =Q29*Q31 -> 259.7057256 | S33: =S29*S31 -> 818.8441905 | U33: =U29*U31 -> 1045.906797 | W33: =W29*W31 -> 522.9950288
A35: ONTARIO CAPITAL TAX
B36: Smart Meters | C36: ='4. SM_Assets_and_Rate_Base'!G35 -> 0 | E36: ='4. SM_Assets_and_Rate_Base'!I35 -> 0 | G36: ='4. SM_Assets_and_Rate_Base'!K35 -> 0 | I36: ='4. SM_Assets_and_Rate_Base'!M35 -> 0 | K36: ='4. SM_Assets_and_Rate_Base'!O35 -> 0 | M36: ='4. SM_Assets_and_Rate_Base'!Q35 -> 0 | O36: ='4. SM_Assets_and_Rate_Base'!S35 -> 0 | Q36: ='4. SM_Assets_and_Rate_Base'!U35 -> 0 | S36: ='4. SM_Assets_and_Rate_Base'!W35 -> 0 | U36: ='4. SM_Assets_and_Rate_Base'!Y35 -> 0 | W36: ='4. SM_Assets_and_Rate_Base'!AA35 -> 0
B37: Computer Hardware | C37: ='4. SM_Assets_and_Rate_Base'!G54 -> 0 | E37: ='4. SM_Assets_and_Rate_Base'!I54 -> 0 | G37: ='4. SM_Assets_and_Rate_Base'!K54 -> 0 | I37: ='4. SM_Assets_and_Rate_Base'!M54 -> 0 | K37: ='4. SM_Assets_and_Rate_Base'!O54 -> 0 | M37: ='4. SM_Assets_and_Rate_Base'!Q54 -> 35522.991 | O37: ='4. SM_Assets_and_Rate_Base'!S54 -> 27628.993 | Q37: ='4. SM_Assets_and_Rate_Base'!U54 -> 19734.995 | S37: ='4. SM_Assets_and_Rate_Base'!W54 -> 11840.997 | U37: ='4. SM_Assets_and_Rate_Base'!Y54 -> 3946.999 | W37: ='4. SM_Assets_and_Rate_Base'!AA54 -> 0
B38: Computer Software (Including Application Software) | C38: ='4. SM_Assets_and_Rate_Base'!G73 -> 0 | E38: ='4. SM_Assets_and_Rate_Base'!I73 -> 0 | G38: ='4. SM_Assets_and_Rate_Base'!K73 -> 0 | I38: ='4. SM_Assets_and_Rate_Base'!M73 -> 0 | K38: ='4. SM_Assets_and_Rate_Base'!O73 -> 0 | M38: ='4. SM_Assets_and_Rate_Base'!Q73 -> 0 | O38: ='4. SM_Assets_and_Rate_Base'!S73 -> 0 | Q38: ='4. SM_Assets_and_Rate_Base'!U73 -> 0 | S38: ='4. SM_Assets_and_Rate_Base'!W73 -> 0 | U38: ='4. SM_Assets_and_Rate_Base'!Y73 -> 0 | W38: ='4. SM_Assets_and_Rate_Base'!AA73 -> 0
B39: Tools & Equipment | C39: ='4. SM_Assets_and_Rate_Base'!G92 -> 0 | E39: ='4. SM_Assets_and_Rate_Base'!I92 -> 0 | G39: ='4. SM_Assets_and_Rate_Base'!K92 -> 0 | I39: ='4. SM_Assets_and_Rate_Base'!M92 -> 0 | K39: ='4. SM_Assets_and_Rate_Base'!O92 -> 0 | M39: ='4. SM_Assets_and_Rate_Base'!Q92 -> 0 | O39: ='4. SM_Assets_and_Rate_Base'!S92 -> 0 | Q39: ='4. SM_Assets_and_Rate_Base'!U92 -> 0 | S39: ='4. SM_Assets_and_Rate_Base'!W92 -> 0 | U39: ='4. SM_Assets_and_Rate_Base'!Y92 -> 0 | W39: ='4. SM_Assets_and_Rate_Base'!AA92 -> 0
B40: Other Equipment | C40: ='4. SM_Assets_and_Rate_Base'!G111 -> 0 | E40: ='4. SM_Assets_and_Rate_Base'!I111 -> 0 | G40: ='4. SM_Assets_and_Rate_Base'!K111 -> 0 | I40: ='4. SM_Assets_and_Rate_Base'!M111 -> 0 | K40: ='4. SM_Assets_and_Rate_Base'!O111 -> 0 | M40: ='4. SM_Assets_and_Rate_Base'!Q111 -> 0 | O40: ='4. SM_Assets_and_Rate_Base'!S111 -> 0 | Q40: ='4. SM_Assets_and_Rate_Base'!U111 -> 0 | S40: ='4. SM_Assets_and_Rate_Base'!W111 -> 0 | U40: ='4. SM_Assets_and_Rate_Base'!Y111 -> 0 | W40: ='4. SM_Assets_and_Rate_Base'!AA111 -> 0
B41: Rate Base | C41: =SUM(C36:C40) -> 0 | E41: =SUM(E36:E40) -> 0 | G41: =SUM(G36:G40) -> 0 | I41: =SUM(I36:I40) -> 0 | K41: =SUM(K36:K40) -> 0 | M41: =SUM(M36:M40) -> 35522.991 | O41: =SUM(O36:O40) -> 27628.993 | Q41: =SUM(Q36:Q40) -> 19734.995 | S41: =SUM(S36:S40) -> 11840.997 | U41: =SUM(U36:U40) -> 3946.999 | W41: =SUM(W36:W40) -> 0
B42: Less: Exemption
B43: Deemed Taxable Capital | C43: =C41-C42 -> 0 | E43: 0 | G43: 0 | I43: 0 | K43: 0 | M43: 35522.991 | O43: 27628.993 | Q43: 19734.995 | S43: =S41-S42 -> 11840.997 | U43: 3946.999 | W43: =W41-W42 -> 0
B45: Ontario Capital Tax Rate (from Sheet 3) | C45: ='3. Cost_of_Service_Parameters'!G41 -> 0.003 | E45: ='3. Cost_of_Service_Parameters'!I41 -> 0.00225 | G45: ='3. Cost_of_Service_Parameters'!K41 -> 0.00225 | I45: ='3. Cost_of_Service_Parameters'!M41 -> 0.00225 | K45: ='3. Cost_of_Service_Parameters'!O41 -> 0.00075 | M45: ='3. Cost_of_Service_Parameters'!Q41 -> 0 | O45: ='3. Cost_of_Service_Parameters'!S41 -> 0 | Q45: ='3. Cost_of_Service_Parameters'!U41 -> 0 | S45: ='3. Cost_of_Service_Parameters'!W41 -> 0 | U45: ='3. Cost_of_Service_Parameters'!Y41 -> 0 | W45: ='3. Cost_of_Service_Parameters'!AA41 -> 0
B47: Net Amount (Taxable Capital x Rate) | C47: =C43*C45 -> 0 | E47: 0 | G47: 0 | I47: 0 | K47: 0 | M47: 0 | O47: 0 | Q47: =Q43*Q45 -> 0 | S47: =S43*S45 -> 0 | U47: =U43*U45 -> 0 | W47: =W43*W45 -> 0
B50: Change in Income Taxes Payable | C50: =C33 -> 0 | E50: 0 | G50: 0 | I50: 0 | K50: 0 | M50: -976.2495486 | O50: -1037.37909 | Q50: =Q33 -> 259.7057256 | S50: =S33 -> 818.8441905 | U50: =U33 -> 1045.906797 | W50: =W33 -> 522.9950288
B51: Change in OCT | C51: =C47 -> 0 | E51: 0 | G51: 0 | I51: 0 | K51: 0 | M51: 0 | O51: 0 | Q51: =Q47 -> 0 | S51: =S47 -> 0 | U51: =U47 -> 0 | W51: =W47 -> 0
B52: PILs | C52: =SUM(C50:C51) -> 0 | E52: 0 | G52: 0 | I52: 0 | K52: 0 | M52: -976.2495486 | O52: -1037.37909 | Q52: 259.7057256 | S52: =SUM(S50:S51) -> 818.8441905 | U52: 1045.906797 | W52: =SUM(W50:W51) -> 522.9950288
A55: Gross Up PILs
B56: Tax Rate | C56: =C31 -> 0.3612 | E56: =E31 -> 0.3612 | G56: 0.335 | I56: 0.33 | K56: 0.31 | M56: 0.155 | O56: 0.155 | Q56: =Q31 -> 0.155 | S56: =S31 -> 0.155 | U56: =U31 -> 0.155 | W56: =W31 -> 0.155
B57: Change in Income Taxes Payable | C57: =C50/(1-C56) -> 0 | E57: 0 | G57: 0 | I57: 0 | K57: 0 | M57: -1155.32491 | O57: -1227.667562 | Q57: 307.344054 | S57: =S50/(1-S56) -> 969.0463793 | U57: 1237.759524 | W57: =W50/(1-W56) -> 618.9290281
B58: Change in OCT | C58: =C51 -> 0 | E58: 0 | G58: 0 | I58: 0 | K58: 0 | M58: 0 | O58: 0 | Q58: =Q51 -> 0 | S58: =S51 -> 0 | U58: =U51 -> 0 | W58: =W51 -> 0
B59: PILs | C59: =SUM(C57:C58) -> 0 | E59: 0 | G59: 0 | I59: 0 | K59: 0 | M59: -1155.32491 | O59: -1227.667562 | Q59: 307.344054 | S59: =SUM(S57:S58) -> 969.0463793 | U59: 1237.759524 | W59: =SUM(W57:W58) -> 618.9290281

Sheet 8. Funding_Adder_Revs
B13: This worksheet calculates the funding adder revenues.
J20: Account 1555 - Sub-account Funding Adder Revenues
B22: Prescribed Interest Rates | C22: Approved Deferral and Variance Accounts | D22: CWIP | F22: Date | G22: Year | H22: Quarter | J22: Opening Balance (Principal) | K22: Funding Adder Revenues | L22: Interest Rate | M22: Interest | N22: Closing Balance | O22: Annual amounts | P22: Board Approved Smart Meter Funding Adder (from Tariff)
B24: 2006 Q1 | F24: 2006-01-01 | G24: =YEAR(F24) -> 2006 | H24: =IF(MONTH(F24)=0,"",IF(MONTH(F24)<4,"Q1",IF(MONTH(F24)<7,"Q2",IF(MONTH(F24)<10,"Q3","Q4")))) -> Q1 | I24: =CONCATENATE(G24," ",H24) -> 2006 Q1 | J24: 0 | L24: =VLOOKUP(I24,$B$22:$D$59,2) -> 0 | M24: =ROUND(J24*L24/12,2) -> 0 | N24: =J24+K24+M24 -> 0
B25: 2006 Q2 | C25: 0.0414 | D25: 0.0468 | F25: 2006-02-01 | G25: =YEAR(F25) -> 2006 | H25: =IF(MONTH(F25)=0,"",IF(MONTH(F25)<4,"Q1",IF(MONTH(F25)<7,"Q2",IF(MONTH(F25)<10,"Q3","Q4")))) -> Q1 | I25: =CONCATENATE(G25," ",H25) -> 2006 Q1 | J25: =J24+K24 -> 0 | L25: 0 | M25: =ROUND(J25*L25/12,2) -> 0 | N25: =J25+K25+M25 -> 0
B26: 2006 Q3 | C26: 0.0459 | D26: 0.0505 | F26: 2006-03-01 | G26: 2006 | H26: Q1 | I26: 2006 Q1 | J26: =J25+K25 -> 0 | L26: 0 | M26: 0 | N26: 0
B27: 2006 Q4 | C27: 0.0459 | D27: 0.0472 | F27: 2006-04-01 | G27: 2006 | H27: Q2 | I27: 2006 Q2 | J27: 0 | L27: 0.0414 | M27: 0 | N27: 0
B28: 2007 Q1 | C28: 0.0459 | D28: 0.0472 | F28: 2006-05-01 | G28: 2006 | H28: Q2 | I28: 2006 Q2 | J28: 0 | L28: 0.0414 | M28: 0 | N28: 0
B29: 2007 Q2 | C29: 0.0459 | D29: 0.0472 | F29: 2006-06-01 | G29: 2006 | H29: Q2 | I29: 2006 Q2 | J29: 0 | L29: 0.0414 | M29: 0 | N29: 0
B30: 2007 Q3 | C30: 0.0459 | D30: 0.0518 | F30: 2006-07-01 | G30: 2006 | H30: Q3 | I30: 2006 Q3 | J30: 0 | L30: 0.0459 | M30: 0 | N30: 0
B31: 2007 Q4 | C31: 0.0514 | D31: 0.0518 | F31: 2006-08-01 | G31: 2006 | H31: Q3 | I31: 2006 Q3 | J31: 0 | L31: 0.0459 | M31: 0 | N31: 0
B32: 2008 Q1 | C32: 0.0514 | D32: 0.0518 | F32: 2006-09-01 | G32: 2006 | H32: Q3 | I32: 2006 Q3 | J32: 0 | L32: 0.0459 | M32: 0 | N32: 0
B33: 2008 Q2 | C33: 0.0408 | D33: 0.0518 | F33: 2006-10-01 | G33: 2006 | H33: Q4 | I33: 2006 Q4 | J33: 0 | L33: 0.0459 | M33: 0 | N33: 0
B34: 2008 Q3 | C34: 0.0335 | D34: 0.0543 | F34: 2006-11-01 | G34: 2006 | H34: Q4 | I34: 2006 Q4 | J34: 0 | L34: 0.0459 | M34: 0 | N34: 0
B35: 2008 Q4 | C35: 0.0335 | D35: 0.0543 | F35: 2006-12-01 | G35: 2006 | H35: Q4 | I35: 2006 Q4 | J35: 0 | L35: 0.0459 | M35: 0 | N35: 0 | O35: =SUM(K24:K35)+SUM(M24:M35) -> 0
B36: 2009 Q1 | C36: 0.0245 | D36: 0.0661 | F36: 2007-01-01 | G36: 2007 | H36: Q1 | I36: 2007 Q1 | J36: 0 | L36: 0.0459 | M36: 0 | N36: 0
B37: 2009 Q2 | C37: 0.01 | D37: 0.0661 | F37: 2007-02-01 | G37: 2007 | H37: Q1 | I37: 2007 Q1 | J37: 0 | L37: 0.0459 | M37: 0 | N37: 0
B38: 2009 Q3 | C38: 0.0055 | D38: 0.0567 | F38: 2007-03-01 | G38: 2007 | H38: Q1 | I38: 2007 Q1 | J38: 0 | L38: 0.0459 | M38: 0 | N38: 0
B39: 2009 Q4 | C39: 0.0055 | D39: 0.0466 | F39: 2007-04-01 | G39: 2007 | H39: Q2 | I39: 2007 Q2 | J39: 0 | L39: 0.0459 | M39: 0 | N39: 0
B40: 2010 Q1 | C40: 0.0055 | D40: 0.0434 | F40: 2007-05-01 | G40: 2007 | H40: Q2 | I40: 2007 Q2 | J40: 0 | L40: 0.0459 | M40: 0 | N40: 0
B41: 2010 Q2 | C41: 0.0055 | D41: 0.0434 | F41: 2007-06-01 | G41: 2007 | H41: Q2 | I41: 2007 Q2 | J41: 0 | L41: 0.0459 | M41: 0 | N41: 0
B42: 2010 Q3 | C42: 0.0089 | D42: 0.0466 | F42: 2007-07-01 | G42: 2007 | H42: Q3 | I42: 2007 Q3 | J42: 0 | L42: 0.0459 | M42: 0 | N42: 0
B43: 2010 Q4 | C43: 0.012 | D43: 0.0401 | F43: 2007-08-01 | G43: 2007 | H43: Q3 | I43: 2007 Q3 | J43: 0 | L43: 0.0459 | M43: 0 | N43: 0
B44: 2011 Q1 | C44: 0.0147 | D44: 0.0429 | F44: 2007-09-01 | G44: 2007 | H44: Q3 | I44: 2007 Q3 | J44: 0 | L44: 0.0459 | M44: 0 | N44: 0
B45: 2011 Q2 | C45: 0.0147 | D45: 0.0429 | F45: 2007-10-01 | G45: 2007 | H45: Q4 | I45: 2007 Q4 | J45: 0 | L45: 0.0514 | M45: 0 | N45: 0
B46: 2011 Q3 | C46: 0.0147 | D46: 0.0429 | F46: 2007-11-01 | G46: 2007 | H46: Q4 | I46: 2007 Q4 | J46: 0 | L46: 0.0514 | M46: 0 | N46: 0
B47: 2011 Q4 | C47: =C46 -> 0.0147 | D47: 0.0392 | F47: 2007-12-01 | G47: 2007 | H47: Q4 | I47: 2007 Q4 | J47: 0 | L47: 0.0514 | M47: 0 | N47: 0 | O47: =SUM(K36:K47)+SUM(M36:M47) -> 0
B48: 2012 Q1 | C48: 0.0147 | D48: 0.0392 | F48: 2008-01-01 | G48: 2008 | H48: Q1 | I48: 2008 Q1 | J48: 0 | L48: 0.0514 | M48: 0 | N48: 0
B49: 2012 Q2 | C49: 0.0147 | D49: 0.0351 | F49: 2008-02-01 | G49: 2008 | H49: Q1 | I49: 2008 Q1 | J49: 0 | L49: 0.0514 | M49: 0 | N49: 0
B50: 2012 Q3 | C50: 0.0147 | D50: 0.0351 | F50: 2008-03-01 | G50: 2008 | H50: Q1 | I50: 2008 Q1 | J50: 0 | L50: 0.0514 | M50: 0 | N50: 0
B51: 2012 Q4 | C51: 0.0147 | D51: 0.0323 | F51: 2008-04-01 | G51: 2008 | H51: Q2 | I51: 2008 Q2 | J51: 0 | L51: 0.0408 | M51: 0 | N51: 0
B52: 2013 Q1 | C52: 0.0147 | D52: 0.0323 | F52: 2008-05-01 | G52: 2008 | H52: Q2 | I52: 2008 Q2 | J52: 0 | L52: 0.0408 | M52: 0 | N52: 0
B53: 2013 Q2 | C53: 0.0147 | D53: 0.0323 | F53: 2008-06-01 | G53: 2008 | H53: Q2 | I53: 2008 Q2 | J53: 0 | L53: 0.0408 | M53: 0 | N53: 0
B54: 2013 Q3 | C54: 0.0147 | D54: 0.0323 | F54: 2008-07-01 | G54: 2008 | H54: Q3 | I54: 2008 Q3 | J54: 0 | L54: 0.0335 | M54: 0 | N54: 0
B55: 2013 Q4 | C55: 0.0147 | D55: 0.037 | F55: 2008-08-01 | G55: 2008 | H55: Q3 | I55: 2008 Q3 | J55: 0 | L55: 0.0335 | M55: 0 | N55: 0
B56: 2014 Q1 | C56: 0.0147 | D56: 0.037 | F56: 2008-09-01 | G56: 2008 | H56: Q3 | I56: 2008 Q3 | J56: 0 | L56: =VLOOKUP(I56,$B$22:$D$59,2) -> 0.0335 | M56: 0 | N56: 0
B57: 2014 Q2 | C57: 0.0147 | D57: 0.0317 | F57: 2008-10-01 | G57: 2008 | H57: Q4 | I57: 2008 Q4 | J57: 0 | L57: 0.0335 | M57: 0 | N57: 0
B58: 2014 Q3 | C58: 0.0147 | D58: 0.0317 | F58: 2008-11-01 | G58: 2008 | H58: Q4 | I58: 2008 Q4 | J58: 0 | L58: 0.0335 | M58: 0 | N58: 0
B59: 2014 Q4 | C59: 0.0147 | D59: 0.0317 | F59: 2008-12-01 | G59: 2008 | H59: Q4 | I59: 2008 Q4 | J59: 0 | L59: 0.0335 | M59: 0 | N59: 0 | O59: =SUM(K48:K59)+SUM(M48:M59) -> 0
B60: 2015 Q1 | C60: 0.0147 | D60: 0.0289 | F60: 2009-01-01 | G60: 2009 | H60: Q1 | I60: 2009 Q1 | J60: 0 | L60: 0.0245 | M60: 0 | N60: 0
B61: 2015 Q2 | C61: 0.011 | D61: 0.0228 | F61: 2009-02-01 | G61: 2009 | H61: Q1 | I61: 2009 Q1 | J61: 0 | L61: 0.0245 | M61: 0 | N61: 0
B62: 2015 Q3 | C62: 0.011 | D62: 0.0255 | F62: 2009-03-01 | G62: 2009 | H62: Q1 | I62: 2009 Q1 | J62: 0 | L62: 0.0245 | M62: 0 | N62: 0
B63: 2015 Q4 | C63: 0.011 | D63: 0.0255 | F63: 2009-04-01 | G63: 2009 | H63: Q2 | I63: 2009 Q2 | J63: 0 | L63: 0.01 | M63: 0 | N63: 0
B64: 2016 Q1 | C64: 0.011 | D64: 0.0255 | F64: 2009-05-01 | G64: 2009 | H64: Q2 | I64: 2009 Q2 | J64: 0 | L64: 0.01 | M64: 0 | N64: 0
B65: 2016 Q2 | C65: 0.011 | D65: 0.0255 | F65: 2009-06-01 | G65: 2009 | H65: Q2 | I65: 2009 Q2 | J65: 0 | L65: 0.01 | M65: 0 | N65: 0
B66: 2016 Q3 | C66: 0.011 | D66: 0.0255 | F66: 2009-07-01 | G66: 2009 | H66: Q3 | I66: 2009 Q3 | J66: 0 | L66: 0.0055 | M66: 0 | N66: 0
B67: 2016 Q4 | C67: 0.011 | D67: 0.0255 | F67: 2009-08-01 | G67: 2009 | H67: Q3 | I67: 2009 Q3 | J67: 0 | L67: 0.0055 | M67: 0 | N67: 0
F68: 2009-09-01 | G68: 2009 | H68: Q3 | I68: 2009 Q3 | J68: 0 | L68: 0.0055 | M68: 0 | N68: 0
F69: 2009-10-01 | G69: 2009 | H69: Q4 | I69: 2009 Q4 | J69: 0 | L69: 0.0055 | M69: 0 | N69: 0
F70: 2009-11-01 | G70: 2009 | H70: Q4 | I70: 2009 Q4 | J70: 0 | L70: 0.0055 | M70: 0 | N70: 0
F71: 2009-12-01 | G71: 2009 | H71: Q4 | I71: 2009 Q4 | J71: 0 | L71: 0.0055 | M71: 0 | N71: 0 | O71: =SUM(K60:K71)+SUM(M60:M71) -> 0
F72: 2010-01-01 | G72: 2010 | H72: Q1 | I72: 2010 Q1 | J72: 0 | L72: 0.0055 | M72: 0 | N72: 0
F73: 2010-02-01 | G73: 2010 | H73: Q1 | I73: 2010 Q1 | J73: 0 | L73: 0.0055 | M73: 0 | N73: 0
F74: 2010-03-01 | G74: 2010 | H74: Q1 | I74: 2010 Q1 | J74: 0 | L74: 0.0055 | M74: 0 | N74: 0
F75: 2010-04-01 | G75: 2010 | H75: Q2 | I75: 2010 Q2 | J75: 0 | L75: 0.0055 | M75: 0 | N75: 0
F76: 2010-05-01 | G76: 2010 | H76: Q2 | I76: 2010 Q2 | J76: 0 | L76: 0.0055 | M76: 0 | N76: 0
F77: 2010-06-01 | G77: 2010 | H77: Q2 | I77: 2010 Q2 | J77: 0 | L77: 0.0055 | M77: 0 | N77: 0
F78: 2010-07-01 | G78: 2010 | H78: Q3 | I78: 2010 Q3 | J78: 0 | L78: 0.0089 | M78: 0 | N78: 0
F79: 2010-08-01 | G79: 2010 | H79: Q3 | I79: 2010 Q3 | J79: 0 | L79: 0.0089 | M79: 0 | N79: 0
F80: 2010-09-01 | G80: 2010 | H80: Q3 | I80: 2010 Q3 | J80: 0 | L80: 0.0089 | M80: 0 | N80: 0
F81: 2010-10-01 | G81: 2010 | H81: Q4 | I81: 2010 Q4 | J81: 0 | L81: 0.012 | M81: 0 | N81: 0
F82: 2010-11-01 | G82: 2010 | H82: Q4 | I82: 2010 Q4 | J82: 0 | L82: 0.012 | M82: 0 | N82: 0
F83: 2010-12-01 | G83: 2010 | H83: Q4 | I83: 2010 Q4 | J83: 0 | L83: 0.012 | M83: 0 | N83: 0 | O83: =SUM(K72:K83)+SUM(M72:M83) -> 0
F84: 2011-01-01 | G84: 2011 | H84: Q1 | I84: 2011 Q1 | J84: 0 | L84: 0.0147 | M84: 0 | N84: 0
F85: 2011-02-01 | G85: 2011 | H85: Q1 | I85: 2011 Q1 | J85: 0 | L85: 0.0147 | M85: 0 | N85: 0
F86: 2011-03-01 | G86: 2011 | H86: Q1 | I86: 2011 Q1 | J86: 0 | L86: 0.0147 | M86: 0 | N86: 0
F87: 2011-04-01 | G87: 2011 | H87: Q2 | I87: 2011 Q2 | J87: 0 | L87: 0.0147 | M87: 0 | N87: 0
F88: 2011-05-01 | G88: 2011 | H88: Q2 | I88: 2011 Q2 | J88: 0 | L88: =VLOOKUP(I88,$B$22:$D$59,2) -> 0.0147 | M88: 0 | N88: 0
F89: 2011-06-01 | G89: =YEAR(F89) -> 2011 | H89: =IF(MONTH(F89)=0,"",IF(MONTH(F89)<4,"Q1",IF(MONTH(F89)<7,"Q2",IF(MONTH(F89)<10,"Q3","Q4")))) -> Q2 | I89: =CONCATENATE(G89," ",H89) -> 2011 Q2 | J89: 0 | L89: 0.0147 | M89: =ROUND(J89*L89/12,2) -> 0 | N89: =J89+K89+M89 -> 0
F90: 2011-07-01 | G90: 2011 | H90: Q3 | I90: 2011 Q3 | J90: =J89+K89 -> 0 | L90: 0.0147 | M90: 0 | N90: 0
F91: 2011-08-01 | G91: 2011 | H91: Q3 | I91: 2011 Q3 | J91: 0 | L91: 0.0147 | M91: 0 | N91: 0
F92: 2011-09-01 | G92: 2011 | H92: Q3 | I92: 2011 Q3 | J92: 0 | L92: 0.0147 | M92: 0 | N92: 0
F93: 2011-10-01 | G93: 2011 | H93: Q4 | I93: 2011 Q4 | J93: 0 | L93: 0.0147 | M93: 0 | N93: 0
F94: 2011-11-01 | G94: 2011 | H94: Q4 | I94: 2011 Q4 | J94: 0 | L94: 0.0147 | M94: 0 | N94: 0
F95: 2011-12-01 | G95: 2011 | H95: Q4 | I95: 2011 Q4 | J95: 0 | L95: 0.0147 | M95: 0 | N95: 0 | O95: =SUM(K84:K95)+SUM(M84:M95) -> 0
F96: 2012-01-01 | G96: 2012 | H96: Q1 | I96: 2012 Q1 | J96: 0 | L96: 0.0147 | M96: 0 | N96: 0
F97: 2012-02-01 | G97: 2012 | H97: Q1 | I97: 2012 Q1 | J97: 0 | L97: 0.0147 | M97: 0 | N97: 0
F98: 2012-03-01 | G98: 2012 | H98: Q1 | I98: 2012 Q1 | J98: 0 | L98: 0.0147 | M98: 0 | N98: 0
F99: 2012-04-01 | G99: 2012 | H99: Q2 | I99: 2012 Q2 | J99: 0 | L99: =VLOOKUP(I99,$B$22:$D$63,2) -> 0.0147 | M99: 0 | N99: 0
F100: 2012-05-01 | G100: 2012 | H100: Q2 | I100: 2012 Q2 | J100: 0 | L100: =VLOOKUP(I100,$B$22:$D$63,2) -> 0.0147 | M100: 0 | N100: 0
F101: 2012-06-01 | G101: 2012 | H101: Q2 | I101: 2012 Q2 | J101: 0 | L101: 0.0147 | M101: 0 | N101: 0
F102: 2012-07-01 | G102: 2012 | H102: Q3 | I102: 2012 Q3 | J102: 0 | L102: 0.0147 | M102: 0 | N102: 0
F103: 2012-08-01 | G103: 2012 | H103: Q3 | I103: 2012 Q3 | J103: 0 | L103: 0.0147 | M103: 0 | N103: 0
F104: 2012-09-01 | G104: 2012 | H104: Q3 | I104: 2012 Q3 | J104: 0 | L104: 0.0147 | M104: 0 | N104: 0
F105: 2012-10-01 | G105: 2012 | H105: Q4 | I105: 2012 Q4 | J105: 0 | L105: 0.0147 | M105: 0 | N105: 0
F106: 2012-11-01 | G106: 2012 | H106: Q4 | I106: 2012 Q4 | J106: 0 | L106: 0.0147 | M106: 0 | N106: 0
F107: 2012-12-01 | G107: 2012 | H107: Q4 | I107: 2012 Q4 | J107: 0 | L107: 0.0147 | M107: 0 | N107: 0 | O107: =SUM(K96:K107)+SUM(M96:M107) -> 0
F108: 2013-01-01 | G108: 2013 | H108: Q1 | I108: 2013 Q1 | J108: 0 | L108: 0.0147 | M108: =ROUND(J108*L108/12,2) -> 0 | N108: =J108+K108+M108 -> 0
F109: 2013-02-01 | G109: 2013 | H109: Q1 | I109: 2013 Q1 | J109: 0 | L109: 0.0147 | M109: 0 | N109: 0
F110: 2013-03-01 | G110: 2013 | H110: Q1 | I110: 2013 Q1 | J110: 0 | L110: 0.0147 | M110: 0 | N110: 0
F111: 2013-04-01 | G111: 2013 | H111: Q2 | I111: 2013 Q2 | J111: 0 | L111: 0.0147 | M111: 0 | N111: 0
F112: 2013-05-01 | G112: 2013 | H112: Q2 | I112: 2013 Q2 | J112: 0 | L112: 0.0147 | M112: 0 | N112: 0
F113: 2013-06-01 | G113: 2013 | H113: Q2 | I113: 2013 Q2 | J113: 0 | L113: 0.0147 | M113: 0 | N113: 0
F114: 2013-07-01 | G114: 2013 | H114: Q3 | I114: 2013 Q3 | J114: 0 | L114: 0.0147 | M114: 0 | N114: 0
F115: 2013-08-01 | G115: 2013 | H115: Q3 | I115: 2013 Q3 | J115: 0 | L115: 0.0147 | M115: 0 | N115: 0
F116: 2013-09-01 | G116: 2013 | H116: Q3 | I116: 2013 Q3 | J116: 0 | L116: 0.0147 | M116: 0 | N116: 0
F117: 2013-10-01 | G117: 2013 | H117: Q4 | I117: 2013 Q4 | J117: 0 | L117: 0.0147 | M117: 0 | N117: 0
F118: 2013-11-01 | G118: 2013 | H118: Q4 | I118: 2013 Q4 | J118: 0 | L118: 0.0147 | M118: 0 | N118: 0
F119: 2013-12-01 | G119: 2013 | H119: Q4 | I119: 2013 Q4 | J119: 0 | L119: 0.0147 | M119: 0 | N119: 0 | O119: =SUM(K108:K119)+SUM(M108:M119) -> 0
F120: 2014-01-01 | G120: =YEAR(F120) -> 2014 | H120: =IF(MONTH(F120)=0,"",IF(MONTH(F120)<4,"Q1",IF(MONTH(F120)<7,"Q2",IF(MONTH(F120)<10,"Q3","Q4")))) -> Q1 | I120: =CONCATENATE(G120," ",H120) -> 2014 Q1 | J120: =J119+K119 -> 0 | L120: 0.0147 | M120: =ROUND(J120*L120/12,2) -> 0 | N120: =J120+K120+M120 -> 0
F121: 2014-02-01 | G121: 2014 | H121: Q1 | I121: 2014 Q1 | J121: 0 | L121: 0.0147 | M121: 0 | N121: 0
F122: 2014-03-01 | G122: 2014 | H122: Q1 | I122: 2014 Q1 | J122: 0 | L122: 0.0147 | M122: 0 | N122: 0
F123: 2014-04-01 | G123: 2014 | H123: Q2 | I123: 2014 Q2 | J123: 0 | L123: 0.0147 | M123: 0 | N123: 0
F124: 2014-05-01 | G124: 2014 | H124: Q2 | I124: 2014 Q2 | J124: 0 | L124: 0.0147 | M124: 0 | N124: 0
F125: 2014-06-01 | G125: 2014 | H125: Q2 | I125: 2014 Q2 | J125: 0 | L125: 0.0147 | M125: 0 | N125: 0
F126: 2014-07-01 | G126: 2014 | H126: Q3 | I126: 2014 Q3 | J126: 0 | L126: 0.0147 | M126: 0 | N126: 0
F127: 2014-08-01 | G127: 2014 | H127: Q3 | I127: 2014 Q3 | J127: 0 | L127: 0.0147 | M127: 0 | N127: 0
F128: 2014-09-01 | G128: 2014 | H128: Q3 | I128: 2014 Q3 | J128: 0 | L128: 0.0147 | M128: 0 | N128: 0
F129: 2014-10-01 | G129: 2014 | H129: Q4 | I129: 2014 Q4 | J129: 0 | L129: 0.0147 | M129: 0 | N129: 0
F130: 2014-11-01 | G130: 2014 | H130: Q4 | I130: 2014 Q4 | J130: 0 | L130: 0.0147 | M130: 0 | N130: 0
F131: 2014-12-01 | G131: 2014 | H131: Q4 | I131: 2014 Q4 | J131: 0 | L131: 0.0147 | M131: 0 | N131: 0 | O131: =SUM(K120:K131)+SUM(M120:M131) -> 0
F132: 2015-01-01 | G132: =YEAR(F132) -> 2015 | H132: =IF(MONTH(F132)=0,"",IF(MONTH(F132)<4,"Q1",IF(MONTH(F132)<7,"Q2",IF(MONTH(F132)<10,"Q3","Q4")))) -> Q1 | I132: =CONCATENATE(G132," ",H132) -> 2015 Q1 | J132: =J131+K131 -> 0 | L132: 0.0147 | M132: =ROUND(J132*L132/12,2) -> 0 | N132: =J132+K132+M132 -> 0
F133: 2015-02-01 | G133: 2015 | H133: Q1 | I133: 2015 Q1 | J133: 0 | L133: 0.0147 | M133: 0 | N133: 0
F134: 2015-03-01 | G134: 2015 | H134: Q1 | I134: 2015 Q1 | J134: 0 | L134: 0.0147 | M134: 0 | N134: 0
F135: 2015-04-01 | G135: 2015 | H135: Q2 | I135: 2015 Q2 | J135: 0 | L135: 0.011 | M135: 0 | N135: 0
F136: 2015-05-01 | G136: 2015 | H136: Q2 | I136: 2015 Q2 | J136: 0 | L136: 0.011 | M136: 0 | N136: 0
F137: 2015-06-01 | G137: 2015 | H137: Q2 | I137: 2015 Q2 | J137: 0 | L137: 0.011 | M137: 0 | N137: 0
F138: 2015-07-01 | G138: 2015 | H138: Q3 | I138: 2015 Q3 | J138: 0 | L138: 0.011 | M138: 0 | N138: 0
F139: 2015-08-01 | G139: 2015 | H139: Q3 | I139: 2015 Q3 | J139: 0 | L139: 0.011 | M139: 0 | N139: 0
F140: 2015-09-01 | G140: 2015 | H140: Q3 | I140: 2015 Q3 | J140: 0 | L140: 0.011 | M140: 0 | N140: 0
F141: 2015-10-01 | G141: 2015 | H141: Q4 | I141: 2015 Q4 | J141: 0 | L141: 0.011 | M141: 0 | N141: 0
F142: 2015-11-01 | G142: 2015 | H142: Q4 | I142: 2015 Q4 | J142: 0 | L142: 0.011 | M142: 0 | N142: 0
F143: 2015-12-01 | G143: 2015 | H143: Q4 | I143: 2015 Q4 | J143: 0 | L143: 0.011 | M143: 0 | N143: 0 | O143: =SUM(K132:K143)+SUM(M132:M143) -> 0
F144: 2016-01-01 | G144: 2016 | H144: Q1 | I144: 2016 Q1 | J144: =J143+K143 -> 0 | L144: =VLOOKUP(I144,$B$22:$D$67,2) -> 0.011 | M144: =ROUND(J144*L144/12,2) -> 0 | N144: =J144+K144+M144 -> 0
F145: 2016-02-01 | G145: 2016 | H145: Q1 | I145: 2016 Q1 | J145: 0 | L145: 0.011 | M145: 0 | N145: 0
F146: 2016-03-01 | G146: 2016 | H146: Q1 | I146: 2016 Q1 | J146: 0 | L146: 0.011 | M146: 0 | N146: 0
F147: 2016-04-01 | G147: 2016 | H147: Q2 | I147: 2016 Q2 | J147: 0 | L147: 0.011 | M147: 0 | N147: 0
F148: 2016-05-01 | G148: 2016 | H148: Q2 | I148: 2016 Q2 | J148: 0 | L148: 0.011 | M148: 0 | N148: 0
F149: 2016-06-01 | G149: 2016 | H149: Q2 | I149: 2016 Q2 | J149: 0 | L149: 0.011 | M149: 0 | N149: 0
F150: 2016-07-01 | G150: 2016 | H150: Q3 | I150: 2016 Q3 | J150: 0 | L150: 0.011 | M150: 0 | N150: 0
F151: 2016-08-01 | G151: 2016 | H151: Q3 | I151: 2016 Q3 | J151: 0 | L151: 0.011 | M151: 0 | N151: 0
F152: 2016-09-01 | G152: 2016 | H152: Q3 | I152: 2016 Q3 | J152: 0 | L152: 0.011 | M152: 0 | N152: 0
F153: 2016-10-01 | G153: 2016 | H153: Q4 | I153: 2016 Q4 | J153: 0 | L153: 0.011 | M153: 0 | N153: 0
F154: 2016-11-01 | G154: 2016 | H154: Q4 | I154: 2016 Q4 | J154: 0 | L154: 0.011 | M154: 0 | N154: 0
F155: 2016-12-01 | G155: 2016 | H155: Q4 | I155: 2016 Q4 | J155: 0 | L155: 0.011 | M155: 0 | N155: 0 | O155: =SUM(K144:K155)+SUM(M144:M155) -> 0
F157: Total Funding Adder Revenues Collected | K157: =SUM(K24:K155) -> 0 | M157: =SUM(M24:M155) -> 0 | N157: =K157+M157 -> 0 | O157: =SUM(O24:O155) -> 0

Sheet 8A. Opex_Interest_monthly
B13: This worksheet calculates the interest on OM&A and amortization/depreciation expense, based on monthly data.
J21: Account 1556 - Sub-accounts Operating Expenses, Amortization Expenses, Carrying Charges
B23: Prescribed Interest Rates | C23: Approved Deferral and Variance Accounts | D23: CWIP | F23: Date | G23: Year | H23: Quarter | J23: Opening Balance (Principal) | K23: OM&A Expenses | L23: Amortization / Depreciation Expense | M23: Closing Balance (Principal) | N23: (Annual) Interest Rate | O23: Interest (on opening balance) | P23: Cumulative Interest
B25: ='8. Funding_Adder_Revs'!B24 -> 2006 Q1 | C25: ='8. Funding_Adder_Revs'!C24 -> 0 | D25: ='8. Funding_Adder_Revs'!D24 -> 0 | F25: ='8. Funding_Adder_Revs'!F24 -> 2006-01-01 | G25: ='8. Funding_Adder_Revs'!G24 -> 2006 | H25: ='8. Funding_Adder_Revs'!H24 -> Q1 | J25: 0 | M25: =J25+K25+L25 -> 0 | N25: ='8. Funding_Adder_Revs'!L24 -> 0 | O25: =J25*N25/12 -> 0 | P25: =O25 -> 0
B26: ='8. Funding_Adder_Revs'!B25 -> 2006 Q2 | C26: ='8. Funding_Adder_Revs'!C25 -> 0.0414 | D26: ='8. Funding_Adder_Revs'!D25 -> 0.0468 | F26: ='8. Funding_Adder_Revs'!F25 -> 2006-02-01 | G26: ='8. Funding_Adder_Revs'!G25 -> 2006 | H26: ='8. Funding_Adder_Revs'!H25 -> Q1 | J26: =M25 -> 0 | M26: =J26+K26+L26 -> 0 | N26: ='8. Funding_Adder_Revs'!L25 -> 0 | O26: =J26*N26/12 -> 0 | P26: =O26+P25 -> 0
B27: ='8. Funding_Adder_Revs'!B26 -> 2006 Q3 | C27: ='8. Funding_Adder_Revs'!C26 -> 0.0459 | D27: ='8. Funding_Adder_Revs'!D26 -> 0.0505 | F27: ='8. Funding_Adder_Revs'!F26 -> 2006-03-01 | G27: ='8. Funding_Adder_Revs'!G26 -> 2006 | H27: ='8. Funding_Adder_Revs'!H26 -> Q1 | J27: =M26 -> 0 | M27: 0 | N27: ='8. Funding_Adder_Revs'!L26 -> 0 | O27: 0 | P27: =O27+P26 -> 0
B28: ='8. Funding_Adder_Revs'!B27 -> 2006 Q4 | C28: ='8. Funding_Adder_Revs'!C27 -> 0.0459 | D28: ='8. Funding_Adder_Revs'!D27 -> 0.0472 | F28: ='8. Funding_Adder_Revs'!F27 -> 2006-04-01 | G28: ='8. Funding_Adder_Revs'!G27 -> 2006 | H28: ='8. Funding_Adder_Revs'!H27 -> Q2 | J28: 0 | M28: 0 | N28: ='8. Funding_Adder_Revs'!L27 -> 0.0414 | O28: 0 | P28: 0
B29: ='8. Funding_Adder_Revs'!B28 -> 2007 Q1 | C29: ='8. Funding_Adder_Revs'!C28 -> 0.0459 | D29: ='8. Funding_Adder_Revs'!D28 -> 0.0472 | F29: ='8. Funding_Adder_Revs'!F28 -> 2006-05-01 | G29: ='8. Funding_Adder_Revs'!G28 -> 2006 | H29: ='8. Funding_Adder_Revs'!H28 -> Q2 | J29: 0 | M29: 0 | N29: ='8. Funding_Adder_Revs'!L28 -> 0.0414 | O29: 0 | P29: 0
B30: ='8. Funding_Adder_Revs'!B29 -> 2007 Q2 | C30: ='8. Funding_Adder_Revs'!C29 -> 0.0459 | D30: ='8. Funding_Adder_Revs'!D29 -> 0.0472 | F30: ='8. Funding_Adder_Revs'!F29 -> 2006-06-01 | G30: ='8. Funding_Adder_Revs'!G29 -> 2006 | H30: ='8. Funding_Adder_Revs'!H29 -> Q2 | J30: 0 | M30: 0 | N30: ='8. Funding_Adder_Revs'!L29 -> 0.0414 | O30: 0 | P30: 0
B31: ='8. Funding_Adder_Revs'!B30 -> 2007 Q3 | C31: ='8. Funding_Adder_Revs'!C30 -> 0.0459 | D31: ='8. Funding_Adder_Revs'!D30 -> 0.0518 | F31: ='8. Funding_Adder_Revs'!F30 -> 2006-07-01 | G31: ='8. Funding_Adder_Revs'!G30 -> 2006 | H31: ='8. Funding_Adder_Revs'!H30 -> Q3 | J31: 0 | M31: 0 | N31: ='8. Funding_Adder_Revs'!L30 -> 0.0459 | O31: 0 | P31: 0
B32: ='8. Funding_Adder_Revs'!B31 -> 2007 Q4 | C32: ='8. Funding_Adder_Revs'!C31 -> 0.0514 | D32: ='8. Funding_Adder_Revs'!D31 -> 0.0518 | F32: ='8. Funding_Adder_Revs'!F31 -> 2006-08-01 | G32: ='8. Funding_Adder_Revs'!G31 -> 2006 | H32: ='8. Funding_Adder_Revs'!H31 -> Q3 | J32: 0 | M32: 0 | N32: ='8. Funding_Adder_Revs'!L31 -> 0.0459 | O32: 0 | P32: 0
B33: ='8. Funding_Adder_Revs'!B32 -> 2008 Q1 | C33: ='8. Funding_Adder_Revs'!C32 -> 0.0514 | D33: ='8. Funding_Adder_Revs'!D32 -> 0.0518 | F33: ='8. Funding_Adder_Revs'!F32 -> 2006-09-01 | G33: ='8. Funding_Adder_Revs'!G32 -> 2006 | H33: ='8. Funding_Adder_Revs'!H32 -> Q3 | J33: 0 | M33: 0 | N33: ='8. Funding_Adder_Revs'!L32 -> 0.0459 | O33: 0 | P33: 0
B34: ='8. Funding_Adder_Revs'!B33 -> 2008 Q2 | C34: ='8. Funding_Adder_Revs'!C33 -> 0.0408 | D34: ='8. Funding_Adder_Revs'!D33 -> 0.0518 | F34: ='8. Funding_Adder_Revs'!F33 -> 2006-10-01 | G34: ='8. Funding_Adder_Revs'!G33 -> 2006 | H34: ='8. Funding_Adder_Revs'!H33 -> Q4 | J34: 0 | M34: 0 | N34: ='8. Funding_Adder_Revs'!L33 -> 0.0459 | O34: 0 | P34: 0
B35: ='8. Funding_Adder_Revs'!B34 -> 2008 Q3 | C35: ='8. Funding_Adder_Revs'!C34 -> 0.0335 | D35: ='8. Funding_Adder_Revs'!D34 -> 0.0543 | F35: ='8. Funding_Adder_Revs'!F34 -> 2006-11-01 | G35: ='8. Funding_Adder_Revs'!G34 -> 2006 | H35: ='8. Funding_Adder_Revs'!H34 -> Q4 | J35: 0 | M35: 0 | N35: ='8. Funding_Adder_Revs'!L34 -> 0.0459 | O35: 0 | P35: 0
B36: ='8. Funding_Adder_Revs'!B35 -> 2008 Q4 | C36: ='8. Funding_Adder_Revs'!C35 -> 0.0335 | D36: ='8. Funding_Adder_Revs'!D35 -> 0.0543 | F36: ='8. Funding_Adder_Revs'!F35 -> 2006-12-01 | G36: ='8. Funding_Adder_Revs'!G35 -> 2006 | H36: ='8. Funding_Adder_Revs'!H35 -> Q4 | J36: 0 | M36: 0 | N36: ='8. Funding_Adder_Revs'!L35 -> 0.0459 | O36: 0 | P36: 0
B37: ='8. Funding_Adder_Revs'!B36 -> 2009 Q1 | C37: ='8. Funding_Adder_Revs'!C36 -> 0.0245 | D37: ='8. Funding_Adder_Revs'!D36 -> 0.0661 | F37: ='8. Funding_Adder_Revs'!F36 -> 2007-01-01 | G37: ='8. Funding_Adder_Revs'!G36 -> 2007 | H37: ='8. Funding_Adder_Revs'!H36 -> Q1 | J37: 0 | M37: 0 | N37: ='8. Funding_Adder_Revs'!L36 -> 0.0459 | O37: 0 | P37: 0
B38: ='8. Funding_Adder_Revs'!B37 -> 2009 Q2 | C38: ='8. Funding_Adder_Revs'!C37 -> 0.01 | D38: ='8. Funding_Adder_Revs'!D37 -> 0.0661 | F38: ='8. Funding_Adder_Revs'!F37 -> 2007-02-01 | G38: ='8. Funding_Adder_Revs'!G37 -> 2007 | H38: ='8. Funding_Adder_Revs'!H37 -> Q1 | J38: 0 | M38: 0 | N38: ='8. Funding_Adder_Revs'!L37 -> 0.0459 | O38: 0 | P38: 0
B39: ='8. Funding_Adder_Revs'!B38 -> 2009 Q3 | C39: ='8. Funding_Adder_Revs'!C38 -> 0.0055 | D39: ='8. Funding_Adder_Revs'!D38 -> 0.0567 | F39: ='8. Funding_Adder_Revs'!F38 -> 2007-03-01 | G39: ='8. Funding_Adder_Revs'!G38 -> 2007 | H39: ='8. Funding_Adder_Revs'!H38 -> Q1 | J39: 0 | M39: 0 | N39: ='8. Funding_Adder_Revs'!L38 -> 0.0459 | O39: 0 | P39: 0
B40: ='8. Funding_Adder_Revs'!B39 -> 2009 Q4 | C40: ='8. Funding_Adder_Revs'!C39 -> 0.0055 | D40: ='8. Funding_Adder_Revs'!D39 -> 0.0466 | F40: ='8. Funding_Adder_Revs'!F39 -> 2007-04-01 | G40: ='8. Funding_Adder_Revs'!G39 -> 2007 | H40: ='8. Funding_Adder_Revs'!H39 -> Q2 | J40: 0 | M40: 0 | N40: ='8. Funding_Adder_Revs'!L39 -> 0.0459 | O40: 0 | P40: 0
B41: ='8. Funding_Adder_Revs'!B40 -> 2010 Q1 | C41: ='8. Funding_Adder_Revs'!C40 -> 0.0055 | D41: ='8. Funding_Adder_Revs'!D40 -> 0.0434 | F41: ='8. Funding_Adder_Revs'!F40 -> 2007-05-01 | G41: ='8. Funding_Adder_Revs'!G40 -> 2007 | H41: ='8. Funding_Adder_Revs'!H40 -> Q2 | J41: 0 | M41: 0 | N41: ='8. Funding_Adder_Revs'!L40 -> 0.0459 | O41: 0 | P41: 0
B42: ='8. Funding_Adder_Revs'!B41 -> 2010 Q2 | C42: ='8. Funding_Adder_Revs'!C41 -> 0.0055 | D42: ='8. Funding_Adder_Revs'!D41 -> 0.0434 | F42: ='8. Funding_Adder_Revs'!F41 -> 2007-06-01 | G42: ='8. Funding_Adder_Revs'!G41 -> 2007 | H42: ='8. Funding_Adder_Revs'!H41 -> Q2 | J42: 0 | M42: 0 | N42: ='8. Funding_Adder_Revs'!L41 -> 0.0459 | O42: 0 | P42: 0
B43: ='8. Funding_Adder_Revs'!B42 -> 2010 Q3 | C43: ='8. Funding_Adder_Revs'!C42 -> 0.0089 | D43: ='8. Funding_Adder_Revs'!D42 -> 0.0466 | F43: ='8. Funding_Adder_Revs'!F42 -> 2007-07-01 | G43: ='8. Funding_Adder_Revs'!G42 -> 2007 | H43: ='8. Funding_Adder_Revs'!H42 -> Q3 | J43: 0 | M43: 0 | N43: ='8. Funding_Adder_Revs'!L42 -> 0.0459 | O43: 0 | P43: 0
B44: ='8. Funding_Adder_Revs'!B43 -> 2010 Q4 | C44: ='8. Funding_Adder_Revs'!C43 -> 0.012 | D44: ='8. Funding_Adder_Revs'!D43 -> 0.0401 | F44: ='8. Funding_Adder_Revs'!F43 -> 2007-08-01 | G44: ='8. Funding_Adder_Revs'!G43 -> 2007 | H44: ='8. Funding_Adder_Revs'!H43 -> Q3 | J44: 0 | M44: 0 | N44: ='8. Funding_Adder_Revs'!L43 -> 0.0459 | O44: 0 | P44: 0
B45: ='8. Funding_Adder_Revs'!B44 -> 2011 Q1 | C45: ='8. Funding_Adder_Revs'!C44 -> 0.0147 | D45: ='8. Funding_Adder_Revs'!D44 -> 0.0429 | F45: ='8. Funding_Adder_Revs'!F44 -> 2007-09-01 | G45: ='8. Funding_Adder_Revs'!G44 -> 2007 | H45: ='8. Funding_Adder_Revs'!H44 -> Q3 | J45: 0 | M45: 0 | N45: ='8. Funding_Adder_Revs'!L44 -> 0.0459 | O45: 0 | P45: 0
B46: ='8. Funding_Adder_Revs'!B45 -> 2011 Q2 | C46: ='8. Funding_Adder_Revs'!C45 -> 0.0147 | D46: ='8. Funding_Adder_Revs'!D45 -> 0.0429 | F46: ='8. Funding_Adder_Revs'!F45 -> 2007-10-01 | G46: ='8. Funding_Adder_Revs'!G45 -> 2007 | H46: ='8. Funding_Adder_Revs'!H45 -> Q4 | J46: 0 | M46: 0 | N46: ='8. Funding_Adder_Revs'!L45 -> 0.0514 | O46: 0 | P46: 0
B47: ='8. Funding_Adder_Revs'!B46 -> 2011 Q3 | C47: ='8. Funding_Adder_Revs'!C46 -> 0.0147 | D47: ='8. Funding_Adder_Revs'!D46 -> 0.0429 | F47: ='8. Funding_Adder_Revs'!F46 -> 2007-11-01 | G47: ='8. Funding_Adder_Revs'!G46 -> 2007 | H47: ='8. Funding_Adder_Revs'!H46 -> Q4 | J47: 0 | M47: 0 | N47: ='8. Funding_Adder_Revs'!L46 -> 0.0514 | O47: 0 | P47: 0
B48: ='8. Funding_Adder_Revs'!B47 -> 2011 Q4 | C48: ='8. Funding_Adder_Revs'!C47 -> 0.0147 | D48: ='8. Funding_Adder_Revs'!D47 -> 0.0392 | F48: ='8. Funding_Adder_Revs'!F47 -> 2007-12-01 | G48: ='8. Funding_Adder_Revs'!G47 -> 2007 | H48: ='8. Funding_Adder_Revs'!H47 -> Q4 | J48: 0 | M48: 0 | N48: ='8. Funding_Adder_Revs'!L47 -> 0.0514 | O48: 0 | P48: 0
B49: ='8. Funding_Adder_Revs'!B48 -> 2012 Q1 | C49: ='8. Funding_Adder_Revs'!C48 -> 0.0147 | D49: ='8. Funding_Adder_Revs'!D48 -> 0.0392 | F49: ='8. Funding_Adder_Revs'!F48 -> 2008-01-01 | G49: ='8. Funding_Adder_Revs'!G48 -> 2008 | H49: ='8. Funding_Adder_Revs'!H48 -> Q1 | J49: 0 | M49: 0 | N49: ='8. Funding_Adder_Revs'!L48 -> 0.0514 | O49: 0 | P49: 0
B50: ='8. Funding_Adder_Revs'!B49 -> 2012 Q2 | C50: ='8. Funding_Adder_Revs'!C49 -> 0.0147 | D50: ='8. Funding_Adder_Revs'!D49 -> 0.0351 | F50: ='8. Funding_Adder_Revs'!F49 -> 2008-02-01 | G50: ='8. Funding_Adder_Revs'!G49 -> 2008 | H50: ='8. Funding_Adder_Revs'!H49 -> Q1 | J50: 0 | M50: 0 | N50: ='8. Funding_Adder_Revs'!L49 -> 0.0514 | O50: 0 | P50: 0
B51: ='8. Funding_Adder_Revs'!B50 -> 2012 Q3 | C51: ='8. Funding_Adder_Revs'!C50 -> 0.0147 | D51: ='8. Funding_Adder_Revs'!D50 -> 0.0351 | F51: ='8. Funding_Adder_Revs'!F50 -> 2008-03-01 | G51: ='8. Funding_Adder_Revs'!G50 -> 2008 | H51: ='8. Funding_Adder_Revs'!H50 -> Q1 | J51: 0 | M51: 0 | N51: ='8. Funding_Adder_Revs'!L50 -> 0.0514 | O51: 0 | P51: 0
B52: ='8. Funding_Adder_Revs'!B51 -> 2012 Q4 | C52: ='8. Funding_Adder_Revs'!C51 -> 0.0147 | D52: ='8. Funding_Adder_Revs'!D51 -> 0.0323 | F52: ='8. Funding_Adder_Revs'!F51 -> 2008-04-01 | G52: ='8. Funding_Adder_Revs'!G51 -> 2008 | H52: ='8. Funding_Adder_Revs'!H51 -> Q2 | J52: 0 | M52: 0 | N52: ='8. Funding_Adder_Revs'!L51 -> 0.0408 | O52: 0 | P52: 0
B53: ='8. Funding_Adder_Revs'!B52 -> 2013 Q1 | C53: ='8. Funding_Adder_Revs'!C52 -> 0.0147 | D53: ='8. Funding_Adder_Revs'!D52 -> 0.0323 | F53: ='8. Funding_Adder_Revs'!F52 -> 2008-05-01 | G53: ='8. Funding_Adder_Revs'!G52 -> 2008 | H53: ='8. Funding_Adder_Revs'!H52 -> Q2 | J53: 0 | M53: 0 | N53: ='8. Funding_Adder_Revs'!L52 -> 0.0408 | O53: 0 | P53: 0
B54: ='8. Funding_Adder_Revs'!B53 -> 2013 Q2 | C54: ='8. Funding_Adder_Revs'!C53 -> 0.0147 | D54: ='8. Funding_Adder_Revs'!D53 -> 0.0323 | F54: ='8. Funding_Adder_Revs'!F53 -> 2008-06-01 | G54: ='8. Funding_Adder_Revs'!G53 -> 2008 | H54: ='8. Funding_Adder_Revs'!H53 -> Q2 | J54: 0 | M54: 0 | N54: ='8. Funding_Adder_Revs'!L53 -> 0.0408 | O54: 0 | P54: 0
B55: ='8. Funding_Adder_Revs'!B54 -> 2013 Q3 | C55: ='8. Funding_Adder_Revs'!C54 -> 0.0147 | D55: ='8. Funding_Adder_Revs'!D54 -> 0.0323 | F55: ='8. Funding_Adder_Revs'!F54 -> 2008-07-01 | G55: ='8. Funding_Adder_Revs'!G54 -> 2008 | H55: ='8. Funding_Adder_Revs'!H54 -> Q3 | J55: 0 | M55: 0 | N55: ='8. Funding_Adder_Revs'!L54 -> 0.0335 | O55: 0 | P55: 0
B56: ='8. Funding_Adder_Revs'!B55 -> 2013 Q4 | C56: ='8. Funding_Adder_Revs'!C55 -> 0.0147 | D56: ='8. Funding_Adder_Revs'!D55 -> 0.037 | F56: ='8. Funding_Adder_Revs'!F55 -> 2008-08-01 | G56: ='8. Funding_Adder_Revs'!G55 -> 2008 | H56: ='8. Funding_Adder_Revs'!H55 -> Q3 | J56: 0 | M56: 0 | N56: ='8. Funding_Adder_Revs'!L55 -> 0.0335 | O56: 0 | P56: 0
B57: ='8. Funding_Adder_Revs'!B56 -> 2014 Q1 | C57: ='8. Funding_Adder_Revs'!C56 -> 0.0147 | D57: ='8. Funding_Adder_Revs'!D56 -> 0.037 | F57: ='8. Funding_Adder_Revs'!F56 -> 2008-09-01 | G57: ='8. Funding_Adder_Revs'!G56 -> 2008 | H57: ='8. Funding_Adder_Revs'!H56 -> Q3 | J57: 0 | M57: 0 | N57: ='8. Funding_Adder_Revs'!L56 -> 0.0335 | O57: 0 | P57: 0
B58: ='8. Funding_Adder_Revs'!B57 -> 2014 Q2 | C58: ='8. Funding_Adder_Revs'!C57 -> 0.0147 | D58: ='8. Funding_Adder_Revs'!D57 -> 0.0317 | F58: ='8. Funding_Adder_Revs'!F57 -> 2008-10-01 | G58: ='8. Funding_Adder_Revs'!G57 -> 2008 | H58: ='8. Funding_Adder_Revs'!H57 -> Q4 | J58: 0 | M58: 0 | N58: ='8. Funding_Adder_Revs'!L57 -> 0.0335 | O58: 0 | P58: 0
B59: ='8. Funding_Adder_Revs'!B58 -> 2014 Q3 | C59: ='8. Funding_Adder_Revs'!C58 -> 0.0147 | D59: ='8. Funding_Adder_Revs'!D58 -> 0.0317 | F59: ='8. Funding_Adder_Revs'!F58 -> 2008-11-01 | G59: ='8. Funding_Adder_Revs'!G58 -> 2008 | H59: ='8. Funding_Adder_Revs'!H58 -> Q4 | J59: 0 | M59: 0 | N59: ='8. Funding_Adder_Revs'!L58 -> 0.0335 | O59: 0 | P59: 0
B60: ='8. Funding_Adder_Revs'!B59 -> 2014 Q4 | C60: ='8. Funding_Adder_Revs'!C59 -> 0.0147 | D60: ='8. Funding_Adder_Revs'!D59 -> 0.0317 | F60: ='8. Funding_Adder_Revs'!F59 -> 2008-12-01 | G60: ='8. Funding_Adder_Revs'!G59 -> 2008 | H60: ='8. Funding_Adder_Revs'!H59 -> Q4 | J60: 0 | M60: 0 | N60: ='8. Funding_Adder_Revs'!L59 -> 0.0335 | O60: 0 | P60: 0
B61: ='8. Funding_Adder_Revs'!B60 -> 2015 Q1 | C61: ='8. Funding_Adder_Revs'!C60 -> 0.0147 | D61: ='8. Funding_Adder_Revs'!D60 -> 0.0289 | F61: ='8. Funding_Adder_Revs'!F60 -> 2009-01-01 | G61: ='8. Funding_Adder_Revs'!G60 -> 2009 | H61: ='8. Funding_Adder_Revs'!H60 -> Q1 | J61: 0 | M61: 0 | N61: ='8. Funding_Adder_Revs'!L60 -> 0.0245 | O61: 0 | P61: 0
B62: ='8. Funding_Adder_Revs'!B61 -> 2015 Q2 | C62: ='8. Funding_Adder_Revs'!C61 -> 0.011 | D62: ='8. Funding_Adder_Revs'!D61 -> 0.0228 | F62: ='8. Funding_Adder_Revs'!F61 -> 2009-02-01 | G62: ='8. Funding_Adder_Revs'!G61 -> 2009 | H62: ='8. Funding_Adder_Revs'!H61 -> Q1 | J62: 0 | M62: 0 | N62: ='8. Funding_Adder_Revs'!L61 -> 0.0245 | O62: 0 | P62: 0
B63: ='8. Funding_Adder_Revs'!B62 -> 2015 Q3 | C63: ='8. Funding_Adder_Revs'!C62 -> 0.011 | D63: ='8. Funding_Adder_Revs'!D62 -> 0.0255 | F63: ='8. Funding_Adder_Revs'!F62 -> 2009-03-01 | G63: ='8. Funding_Adder_Revs'!G62 -> 2009 | H63: ='8. Funding_Adder_Revs'!H62 -> Q1 | J63: 0 | M63: 0 | N63: ='8. Funding_Adder_Revs'!L62 -> 0.0245 | O63: 0 | P63: 0
B64: ='8. Funding_Adder_Revs'!B63 -> 2015 Q4 | C64: ='8. Funding_Adder_Revs'!C63 -> 0.011 | D64: ='8. Funding_Adder_Revs'!D63 -> 0.0255 | F64: ='8. Funding_Adder_Revs'!F63 -> 2009-04-01 | G64: ='8. Funding_Adder_Revs'!G63 -> 2009 | H64: ='8. Funding_Adder_Revs'!H63 -> Q2 | J64: 0 | M64: 0 | N64: ='8. Funding_Adder_Revs'!L63 -> 0.01 | O64: 0 | P64: 0
B65: ='8. Funding_Adder_Revs'!B64 -> 2016 Q1 | C65: ='8. Funding_Adder_Revs'!C64 -> 0.011 | D65: ='8. Funding_Adder_Revs'!D64 -> 0.0255 | F65: ='8. Funding_Adder_Revs'!F64 -> 2009-05-01 | G65: ='8. Funding_Adder_Revs'!G64 -> 2009 | H65: ='8. Funding_Adder_Revs'!H64 -> Q2 | J65: 0 | M65: 0 | N65: ='8. Funding_Adder_Revs'!L64 -> 0.01 | O65: 0 | P65: 0
B66: ='8. Funding_Adder_Revs'!B65 -> 2016 Q2 | C66: ='8. Funding_Adder_Revs'!C65 -> 0.011 | D66: ='8. Funding_Adder_Revs'!D65 -> 0.0255 | F66: ='8. Funding_Adder_Revs'!F65 -> 2009-06-01 | G66: ='8. Funding_Adder_Revs'!G65 -> 2009 | H66: ='8. Funding_Adder_Revs'!H65 -> Q2 | J66: 0 | M66: 0 | N66: ='8. Funding_Adder_Revs'!L65 -> 0.01 | O66: 0 | P66: 0
B67: ='8. Funding_Adder_Revs'!B66 -> 2016 Q3 | C67: ='8. Funding_Adder_Revs'!C66 -> 0.011 | D67: ='8. Funding_Adder_Revs'!D66 -> 0.0255 | F67: ='8. Funding_Adder_Revs'!F66 -> 2009-07-01 | G67: ='8. Funding_Adder_Revs'!G66 -> 2009 | H67: ='8. Funding_Adder_Revs'!H66 -> Q3 | J67: 0 | M67: 0 | N67: ='8. Funding_Adder_Revs'!L66 -> 0.0055 | O67: 0 | P67: 0
B68: ='8. Funding_Adder_Revs'!B67 -> 2016 Q4 | C68: ='8. Funding_Adder_Revs'!C67 -> 0.011 | D68: ='8. Funding_Adder_Revs'!D67 -> 0.0255 | F68: ='8. Funding_Adder_Revs'!F67 -> 2009-08-01 | G68: ='8. Funding_Adder_Revs'!G67 -> 2009 | H68: ='8. Funding_Adder_Revs'!H67 -> Q3 | J68: 0 | M68: 0 | N68: ='8. Funding_Adder_Revs'!L67 -> 0.0055 | O68: 0 | P68: 0
F69: ='8. Funding_Adder_Revs'!F68 -> 2009-09-01 | G69: ='8. Funding_Adder_Revs'!G68 -> 2009 | H69: ='8. Funding_Adder_Revs'!H68 -> Q3 | J69: 0 | M69: 0 | N69: ='8. Funding_Adder_Revs'!L68 -> 0.0055 | O69: 0 | P69: 0
F70: ='8. Funding_Adder_Revs'!F69 -> 2009-10-01 | G70: ='8. Funding_Adder_Revs'!G69 -> 2009 | H70: ='8. Funding_Adder_Revs'!H69 -> Q4 | J70: 0 | M70: 0 | N70: ='8. Funding_Adder_Revs'!L69 -> 0.0055 | O70: 0 | P70: 0
F71: ='8. Funding_Adder_Revs'!F70 -> 2009-11-01 | G71: ='8. Funding_Adder_Revs'!G70 -> 2009 | H71: ='8. Funding_Adder_Revs'!H70 -> Q4 | J71: 0 | M71: 0 | N71: ='8. Funding_Adder_Revs'!L70 -> 0.0055 | O71: 0 | P71: 0
F72: ='8. Funding_Adder_Revs'!F71 -> 2009-12-01 | G72: ='8. Funding_Adder_Revs'!G71 -> 2009 | H72: ='8. Funding_Adder_Revs'!H71 -> Q4 | J72: 0 | M72: 0 | N72: ='8. Funding_Adder_Revs'!L71 -> 0.0055 | O72: 0 | P72: 0
F73: ='8. Funding_Adder_Revs'!F72 -> 2010-01-01 | G73: ='8. Funding_Adder_Revs'!G72 -> 2010 | H73: ='8. Funding_Adder_Revs'!H72 -> Q1 | J73: 0 | M73: 0 | N73: ='8. Funding_Adder_Revs'!L72 -> 0.0055 | O73: 0 | P73: 0
F74: ='8. Funding_Adder_Revs'!F73 -> 2010-02-01 | G74: ='8. Funding_Adder_Revs'!G73 -> 2010 | H74: ='8. Funding_Adder_Revs'!H73 -> Q1 | J74: 0 | M74: 0 | N74: ='8. Funding_Adder_Revs'!L73 -> 0.0055 | O74: 0 | P74: 0
F75: ='8. Funding_Adder_Revs'!F74 -> 2010-03-01 | G75: ='8. Funding_Adder_Revs'!G74 -> 2010 | H75: ='8. Funding_Adder_Revs'!H74 -> Q1 | J75: 0 | M75: 0 | N75: ='8. Funding_Adder_Revs'!L74 -> 0.0055 | O75: 0 | P75: 0
F76: ='8. Funding_Adder_Revs'!F75 -> 2010-04-01 | G76: ='8. Funding_Adder_Revs'!G75 -> 2010 | H76: ='8. Funding_Adder_Revs'!H75 -> Q2 | J76: 0 | M76: 0 | N76: ='8. Funding_Adder_Revs'!L75 -> 0.0055 | O76: 0 | P76: 0
F77: ='8. Funding_Adder_Revs'!F76 -> 2010-05-01 | G77: ='8. Funding_Adder_Revs'!G76 -> 2010 | H77: ='8. Funding_Adder_Revs'!H76 -> Q2 | J77: 0 | M77: 0 | N77: ='8. Funding_Adder_Revs'!L76 -> 0.0055 | O77: 0 | P77: 0
F78: ='8. Funding_Adder_Revs'!F77 -> 2010-06-01 | G78: ='8. Funding_Adder_Revs'!G77 -> 2010 | H78: ='8. Funding_Adder_Revs'!H77 -> Q2 | J78: 0 | M78: 0 | N78: ='8. Funding_Adder_Revs'!L77 -> 0.0055 | O78: 0 | P78: 0
F79: ='8. Funding_Adder_Revs'!F78 -> 2010-07-01 | G79: ='8. Funding_Adder_Revs'!G78 -> 2010 | H79: ='8. Funding_Adder_Revs'!H78 -> Q3 | J79: 0 | M79: 0 | N79: ='8. Funding_Adder_Revs'!L78 -> 0.0089 | O79: 0 | P79: 0
F80: ='8. Funding_Adder_Revs'!F79 -> 2010-08-01 | G80: ='8. Funding_Adder_Revs'!G79 -> 2010 | H80: ='8. Funding_Adder_Revs'!H79 -> Q3 | J80: 0 | M80: 0 | N80: ='8. Funding_Adder_Revs'!L79 -> 0.0089 | O80: 0 | P80: 0
F81: ='8. Funding_Adder_Revs'!F80 -> 2010-09-01 | G81: ='8. Funding_Adder_Revs'!G80 -> 2010 | H81: ='8. Funding_Adder_Revs'!H80 -> Q3 | J81: 0 | M81: 0 | N81: ='8. Funding_Adder_Revs'!L80 -> 0.0089 | O81: 0 | P81: 0
F82: ='8. Funding_Adder_Revs'!F81 -> 2010-10-01 | G82: ='8. Funding_Adder_Revs'!G81 -> 2010 | H82: ='8. Funding_Adder_Revs'!H81 -> Q4 | J82: 0 | M82: 0 | N82: ='8. Funding_Adder_Revs'!L81 -> 0.012 | O82: 0 | P82: 0
F83: ='8. Funding_Adder_Revs'!F82 -> 2010-11-01 | G83: ='8. Funding_Adder_Revs'!G82 -> 2010 | H83: ='8. Funding_Adder_Revs'!H82 -> Q4 | J83: 0 | M83: 0 | N83: ='8. Funding_Adder_Revs'!L82 -> 0.012 | O83: 0 | P83: 0
F84: ='8. Funding_Adder_Revs'!F83 -> 2010-12-01 | G84: ='8. Funding_Adder_Revs'!G83 -> 2010 | H84: ='8. Funding_Adder_Revs'!H83 -> Q4 | J84: 0 | M84: 0 | N84: ='8. Funding_Adder_Revs'!L83 -> 0.012 | O84: 0 | P84: 0
F85: ='8. Funding_Adder_Revs'!F84 -> 2011-01-01 | G85: ='8. Funding_Adder_Revs'!G84 -> 2011 | H85: ='8. Funding_Adder_Revs'!H84 -> Q1 | J85: 0 | M85: 0 | N85: ='8. Funding_Adder_Revs'!L84 -> 0.0147 | O85: 0 | P85: 0
F86: ='8. Funding_Adder_Revs'!F85 -> 2011-02-01 | G86: ='8. Funding_Adder_Revs'!G85 -> 2011 | H86: ='8. Funding_Adder_Revs'!H85 -> Q1 | J86: 0 | M86: 0 | N86: ='8. Funding_Adder_Revs'!L85 -> 0.0147 | O86: 0 | P86: 0
F87: ='8. Funding_Adder_Revs'!F86 -> 2011-03-01 | G87: ='8. Funding_Adder_Revs'!G86 -> 2011 | H87: ='8. Funding_Adder_Revs'!H86 -> Q1 | J87: 0 | M87: 0 | N87: ='8. Funding_Adder_Revs'!L86 -> 0.0147 | O87: 0 | P87: 0
F88: ='8. Funding_Adder_Revs'!F87 -> 2011-04-01 | G88: ='8. Funding_Adder_Revs'!G87 -> 2011 | H88: ='8. Funding_Adder_Revs'!H87 -> Q2 | J88: 0 | M88: 0 | N88: ='8. Funding_Adder_Revs'!L87 -> 0.0147 | O88: 0 | P88: 0
F89: ='8. Funding_Adder_Revs'!F88 -> 2011-05-01 | G89: ='8. Funding_Adder_Revs'!G88 -> 2011 | H89: ='8. Funding_Adder_Revs'!H88 -> Q2 | J89: 0 | M89: 0 | N89: ='8. Funding_Adder_Revs'!L88 -> 0.0147 | O89: 0 | P89: 0
F90: ='8. Funding_Adder_Revs'!F89 -> 2011-06-01 | G90: ='8. Funding_Adder_Revs'!G89 -> 2011 | H90: ='8. Funding_Adder_Revs'!H89 -> Q2 | J90: 0 | M90: =J90+K90+L90 -> 0 | N90: ='8. Funding_Adder_Revs'!L89 -> 0.0147 | O90: =J90*N90/12 -> 0 | P90: 0
F91: ='8. Funding_Adder_Revs'!F90 -> 2011-07-01 | G91: ='8. Funding_Adder_Revs'!G90 -> 2011 | H91: ='8. Funding_Adder_Revs'!H90 -> Q3 | J91: =M90 -> 0 | M91: 0 | N91: ='8. Funding_Adder_Revs'!L90 -> 0.0147 | O91: 0 | P91: =O91+P90 -> 0
F92: ='8. Funding_Adder_Revs'!F91 -> 2011-08-01 | G92: ='8. Funding_Adder_Revs'!G91 -> 2011 | H92: ='8. Funding_Adder_Revs'!H91 -> Q3 | J92: 0 | M92: 0 | N92: ='8. Funding_Adder_Revs'!L91 -> 0.0147 | O92: 0 | P92: 0
F93: ='8. Funding_Adder_Revs'!F92 -> 2011-09-01 | G93: ='8. Funding_Adder_Revs'!G92 -> 2011 | H93: ='8. Funding_Adder_Revs'!H92 -> Q3 | J93: 0 | M93: 0 | N93: ='8. Funding_Adder_Revs'!L92 -> 0.0147 | O93: 0 | P93: 0
F94: ='8. Funding_Adder_Revs'!F93 -> 2011-10-01 | G94: ='8. Funding_Adder_Revs'!G93 -> 2011 | H94: ='8. Funding_Adder_Revs'!H93 -> Q4 | J94: 0 | M94: 0 | N94: ='8. Funding_Adder_Revs'!L93 -> 0.0147 | O94: 0 | P94: 0
F95: ='8. Funding_Adder_Revs'!F94 -> 2011-11-01 | G95: ='8. Funding_Adder_Revs'!G94 -> 2011 | H95: ='8. Funding_Adder_Revs'!H94 -> Q4 | J95: 0 | M95: 0 | N95: ='8. Funding_Adder_Revs'!L94 -> 0.0147 | O95: 0 | P95: 0
F96: ='8. Funding_Adder_Revs'!F95 -> 2011-12-01 | G96: ='8. Funding_Adder_Revs'!G95 -> 2011 | H96: ='8. Funding_Adder_Revs'!H95 -> Q4 | J96: 0 | M96: 0 | N96: ='8. Funding_Adder_Revs'!L95 -> 0.0147 | O96: 0 | P96: 0
F97: ='8. Funding_Adder_Revs'!F96 -> 2012-01-01 | G97: ='8. Funding_Adder_Revs'!G96 -> 2012 | H97: ='8. Funding_Adder_Revs'!H96 -> Q1 | J97: 0 | M97: 0 | N97: ='8. Funding_Adder_Revs'!L96 -> 0.0147 | O97: 0 | P97: 0
F98: ='8. Funding_Adder_Revs'!F97 -> 2012-02-01 | G98: ='8. Funding_Adder_Revs'!G97 -> 2012 | H98: ='8. Funding_Adder_Revs'!H97 -> Q1 | J98: 0 | M98: 0 | N98: ='8. Funding_Adder_Revs'!L97 -> 0.0147 | O98: 0 | P98: 0
F99: ='8. Funding_Adder_Revs'!F98 -> 2012-03-01 | G99: ='8. Funding_Adder_Revs'!G98 -> 2012 | H99: ='8. Funding_Adder_Revs'!H98 -> Q1 | J99: 0 | M99: 0 | N99: ='8. Funding_Adder_Revs'!L98 -> 0.0147 | O99: 0 | P99: 0
F100: ='8. Funding_Adder_Revs'!F99 -> 2012-04-01 | G100: ='8. Funding_Adder_Revs'!G99 -> 2012 | H100: ='8. Funding_Adder_Revs'!H99 -> Q2 | J100: 0 | M100: 0 | N100: ='8. Funding_Adder_Revs'!L99 -> 0.0147 | O100: 0 | P100: 0
F101: ='8. Funding_Adder_Revs'!F100 -> 2012-05-01 | G101: ='8. Funding_Adder_Revs'!G100 -> 2012 | H101: ='8. Funding_Adder_Revs'!H100 -> Q2 | J101: 0 | M101: 0 | N101: ='8. Funding_Adder_Revs'!L100 -> 0.0147 | O101: 0 | P101: 0
F102: ='8. Funding_Adder_Revs'!F101 -> 2012-06-01 | G102: ='8. Funding_Adder_Revs'!G101 -> 2012 | H102: ='8. Funding_Adder_Revs'!H101 -> Q2 | J102: 0 | M102: 0 | N102: ='8. Funding_Adder_Revs'!L101 -> 0.0147 | O102: 0 | P102: 0
F103: ='8. Funding_Adder_Revs'!F102 -> 2012-07-01 | G103: ='8. Funding_Adder_Revs'!G102 -> 2012 | H103: ='8. Funding_Adder_Revs'!H102 -> Q3 | J103: 0 | M103: 0 | N103: ='8. Funding_Adder_Revs'!L102 -> 0.0147 | O103: 0 | P103: 0
F104: ='8. Funding_Adder_Revs'!F103 -> 2012-08-01 | G104: ='8. Funding_Adder_Revs'!G103 -> 2012 | H104: ='8. Funding_Adder_Revs'!H103 -> Q3 | J104: 0 | M104: 0 | N104: ='8. Funding_Adder_Revs'!L103 -> 0.0147 | O104: 0 | P104: 0
F105: ='8. Funding_Adder_Revs'!F104 -> 2012-09-01 | G105: ='8. Funding_Adder_Revs'!G104 -> 2012 | H105: ='8. Funding_Adder_Revs'!H104 -> Q3 | J105: 0 | M105: 0 | N105: ='8. Funding_Adder_Revs'!L104 -> 0.0147 | O105: 0 | P105: 0
F106: ='8. Funding_Adder_Revs'!F105 -> 2012-10-01 | G106: ='8. Funding_Adder_Revs'!G105 -> 2012 | H106: ='8. Funding_Adder_Revs'!H105 -> Q4 | J106: 0 | M106: 0 | N106: ='8. Funding_Adder_Revs'!L105 -> 0.0147 | O106: 0 | P106: 0
F107: ='8. Funding_Adder_Revs'!F106 -> 2012-11-01 | G107: ='8. Funding_Adder_Revs'!G106 -> 2012 | H107: ='8. Funding_Adder_Revs'!H106 -> Q4 | J107: 0 | M107: 0 | N107: ='8. Funding_Adder_Revs'!L106 -> 0.0147 | O107: 0 | P107: 0
F108: ='8. Funding_Adder_Revs'!F107 -> 2012-12-01 | G108: ='8. Funding_Adder_Revs'!G107 -> 2012 | H108: ='8. Funding_Adder_Revs'!H107 -> Q4 | J108: 0 | M108: 0 | N108: ='8. Funding_Adder_Revs'!L107 -> 0.0147 | O108: 0 | P108: 0
F109: ='8. Funding_Adder_Revs'!F108 -> 2013-01-01 | G109: ='8. Funding_Adder_Revs'!G108 -> 2013 | H109: ='8. Funding_Adder_Revs'!H108 -> Q1 | J109: =M108 -> 0 | M109: =J109+K109+L109 -> 0 | N109: ='8. Funding_Adder_Revs'!L108 -> 0.0147 | O109: =J109*N109/12 -> 0 | P109: =O109+P108 -> 0
F110: ='8. Funding_Adder_Revs'!F109 -> 2013-02-01 | G110: ='8. Funding_Adder_Revs'!G109 -> 2013 | H110: ='8. Funding_Adder_Revs'!H109 -> Q1 | J110: 0 | M110: 0 | N110: ='8. Funding_Adder_Revs'!L109 -> 0.0147 | O110: 0 | P110: 0
F111: ='8. Funding_Adder_Revs'!F110 -> 2013-03-01 | G111: ='8. Funding_Adder_Revs'!G110 -> 2013 | H111: ='8. Funding_Adder_Revs'!H110 -> Q1 | J111: 0 | M111: 0 | N111: ='8. Funding_Adder_Revs'!L110 -> 0.0147 | O111: 0 | P111: 0
F112: ='8. Funding_Adder_Revs'!F111 -> 2013-04-01 | G112: ='8. Funding_Adder_Revs'!G111 -> 2013 | H112: ='8. Funding_Adder_Revs'!H111 -> Q2 | J112: 0 | M112: 0 | N112: ='8. Funding_Adder_Revs'!L111 -> 0.0147 | O112: 0 | P112: 0
F113: ='8. Funding_Adder_Revs'!F112 -> 2013-05-01 | G113: ='8. Funding_Adder_Revs'!G112 -> 2013 | H113: ='8. Funding_Adder_Revs'!H112 -> Q2 | J113: 0 | M113: 0 | N113: ='8. Funding_Adder_Revs'!L112 -> 0.0147 | O113: 0 | P113: 0
F114: ='8. Funding_Adder_Revs'!F113 -> 2013-06-01 | G114: ='8. Funding_Adder_Revs'!G113 -> 2013 | H114: ='8. Funding_Adder_Revs'!H113 -> Q2 | J114: 0 | M114: 0 | N114: ='8. Funding_Adder_Revs'!L113 -> 0.0147 | O114: 0 | P114: 0
F115: ='8. Funding_Adder_Revs'!F114 -> 2013-07-01 | G115: ='8. Funding_Adder_Revs'!G114 -> 2013 | H115: ='8. Funding_Adder_Revs'!H114 -> Q3 | J115: 0 | M115: 0 | N115: ='8. Funding_Adder_Revs'!L114 -> 0.0147 | O115: 0 | P115: 0
F116: ='8. Funding_Adder_Revs'!F115 -> 2013-08-01 | G116: ='8. Funding_Adder_Revs'!G115 -> 2013 | H116: ='8. Funding_Adder_Revs'!H115 -> Q3 | J116: 0 | M116: 0 | N116: ='8. Funding_Adder_Revs'!L115 -> 0.0147 | O116: 0 | P116: 0
F117: ='8. Funding_Adder_Revs'!F116 -> 2013-09-01 | G117: ='8. Funding_Adder_Revs'!G116 -> 2013 | H117: ='8. Funding_Adder_Revs'!H116 -> Q3 | J117: 0 | M117: 0 | N117: ='8. Funding_Adder_Revs'!L116 -> 0.0147 | O117: 0 | P117: 0
F118: ='8. Funding_Adder_Revs'!F117 -> 2013-10-01 | G118: ='8. Funding_Adder_Revs'!G117 -> 2013 | H118: ='8. Funding_Adder_Revs'!H117 -> Q4 | J118: 0 | M118: 0 | N118: ='8. Funding_Adder_Revs'!L117 -> 0.0147 | O118: 0 | P118: 0
F119: ='8. Funding_Adder_Revs'!F118 -> 2013-11-01 | G119: ='8. Funding_Adder_Revs'!G118 -> 2013 | H119: ='8. Funding_Adder_Revs'!H118 -> Q4 | J119: 0 | M119: 0 | N119: ='8. Funding_Adder_Revs'!L118 -> 0.0147 | O119: 0 | P119: 0
F120: ='8. Funding_Adder_Revs'!F119 -> 2013-12-01 | G120: ='8. Funding_Adder_Revs'!G119 -> 2013 | H120: ='8. Funding_Adder_Revs'!H119 -> Q4 | J120: 0 | M120: 0 | N120: ='8. Funding_Adder_Revs'!L119 -> 0.0147 | O120: 0 | P120: 0
F121: ='8. Funding_Adder_Revs'!F120 -> 2014-01-01 | G121: ='8. Funding_Adder_Revs'!G120 -> 2014 | H121: ='8. Funding_Adder_Revs'!H120 -> Q1 | J121: =M120 -> 0 | M121: =J121+K121+L121 -> 0 | N121: ='8. Funding_Adder_Revs'!L120 -> 0.0147 | O121: =J121*N121/12 -> 0 | P121: =O121+P120 -> 0
F122: ='8. Funding_Adder_Revs'!F121 -> 2014-02-01 | G122: ='8. Funding_Adder_Revs'!G121 -> 2014 | H122: ='8. Funding_Adder_Revs'!H121 -> Q1 | J122: 0 | M122: 0 | N122: ='8. Funding_Adder_Revs'!L121 -> 0.0147 | O122: 0 | P122: 0
F123: ='8. Funding_Adder_Revs'!F122 -> 2014-03-01 | G123: ='8. Funding_Adder_Revs'!G122 -> 2014 | H123: ='8. Funding_Adder_Revs'!H122 -> Q1 | J123: 0 | M123: 0 | N123: ='8. Funding_Adder_Revs'!L122 -> 0.0147 | O123: 0 | P123: 0
F124: ='8. Funding_Adder_Revs'!F123 -> 2014-04-01 | G124: ='8. Funding_Adder_Revs'!G123 -> 2014 | H124: ='8. Funding_Adder_Revs'!H123 -> Q2 | J124: 0 | M124: 0 | N124: ='8. Funding_Adder_Revs'!L123 -> 0.0147 | O124: 0 | P124: 0
F125: ='8. Funding_Adder_Revs'!F124 -> 2014-05-01 | G125: ='8. Funding_Adder_Revs'!G124 -> 2014 | H125: ='8. Funding_Adder_Revs'!H124 -> Q2 | J125: 0 | M125: 0 | N125: ='8. Funding_Adder_Revs'!L124 -> 0.0147 | O125: 0 | P125: 0
F126: ='8. Funding_Adder_Revs'!F125 -> 2014-06-01 | G126: ='8. Funding_Adder_Revs'!G125 -> 2014 | H126: ='8. Funding_Adder_Revs'!H125 -> Q2 | J126: 0 | M126: 0 | N126: ='8. Funding_Adder_Revs'!L125 -> 0.0147 | O126: 0 | P126: 0
F127: ='8. Funding_Adder_Revs'!F126 -> 2014-07-01 | G127: ='8. Funding_Adder_Revs'!G126 -> 2014 | H127: ='8. Funding_Adder_Revs'!H126 -> Q3 | J127: 0 | M127: 0 | N127: ='8. Funding_Adder_Revs'!L126 -> 0.0147 | O127: 0 | P127: 0
F128: ='8. Funding_Adder_Revs'!F127 -> 2014-08-01 | G128: ='8. Funding_Adder_Revs'!G127 -> 2014 | H128: ='8. Funding_Adder_Revs'!H127 -> Q3 | J128: 0 | M128: 0 | N128: ='8. Funding_Adder_Revs'!L127 -> 0.0147 | O128: 0 | P128: 0
F129: ='8. Funding_Adder_Revs'!F128 -> 2014-09-01 | G129: ='8. Funding_Adder_Revs'!G128 -> 2014 | H129: ='8. Funding_Adder_Revs'!H128 -> Q3 | J129: 0 | M129: 0 | N129: ='8. Funding_Adder_Revs'!L128 -> 0.0147 | O129: 0 | P129: 0
F130: ='8. Funding_Adder_Revs'!F129 -> 2014-10-01 | G130: ='8. Funding_Adder_Revs'!G129 -> 2014 | H130: ='8. Funding_Adder_Revs'!H129 -> Q4 | J130: 0 | M130: 0 | N130: ='8. Funding_Adder_Revs'!L129 -> 0.0147 | O130: 0 | P130: 0
F131: ='8. Funding_Adder_Revs'!F130 -> 2014-11-01 | G131: ='8. Funding_Adder_Revs'!G130 -> 2014 | H131: ='8. Funding_Adder_Revs'!H130 -> Q4 | J131: 0 | M131: 0 | N131: ='8. Funding_Adder_Revs'!L130 -> 0.0147 | O131: 0 | P131: 0
F132: ='8. Funding_Adder_Revs'!F131 -> 2014-12-01 | G132: ='8. Funding_Adder_Revs'!G131 -> 2014 | H132: ='8. Funding_Adder_Revs'!H131 -> Q4 | J132: 0 | M132: 0 | N132: ='8. Funding_Adder_Revs'!L131 -> 0.0147 | O132: 0 | P132: 0
F133: ='8. Funding_Adder_Revs'!F132 -> 2015-01-01 | G133: ='8. Funding_Adder_Revs'!G132 -> 2015 | H133: ='8. Funding_Adder_Revs'!H132 -> Q1 | J133: =M132 -> 0 | M133: =J133+K133+L133 -> 0 | N133: ='8. Funding_Adder_Revs'!L132 -> 0.0147 | O133: =J133*N133/12 -> 0 | P133: =O133+P132 -> 0
F134: ='8. Funding_Adder_Revs'!F133 -> 2015-02-01 | G134: ='8. Funding_Adder_Revs'!G133 -> 2015 | H134: ='8. Funding_Adder_Revs'!H133 -> Q1 | J134: 0 | M134: 0 | N134: ='8. Funding_Adder_Revs'!L133 -> 0.0147 | O134: 0 | P134: 0
F135: ='8. Funding_Adder_Revs'!F134 -> 2015-03-01 | G135: ='8. Funding_Adder_Revs'!G134 -> 2015 | H135: ='8. Funding_Adder_Revs'!H134 -> Q1 | J135: 0 | M135: 0 | N135: ='8. Funding_Adder_Revs'!L134 -> 0.0147 | O135: 0 | P135: 0
F136: ='8. Funding_Adder_Revs'!F135 -> 2015-04-01 | G136: ='8. Funding_Adder_Revs'!G135 -> 2015 | H136: ='8. Funding_Adder_Revs'!H135 -> Q2 | J136: 0 | M136: 0 | N136: ='8. Funding_Adder_Revs'!L135 -> 0.011 | O136: 0 | P136: 0
F137: ='8. Funding_Adder_Revs'!F136 -> 2015-05-01 | G137: ='8. Funding_Adder_Revs'!G136 -> 2015 | H137: ='8. Funding_Adder_Revs'!H136 -> Q2 | J137: 0 | M137: 0 | N137: ='8. Funding_Adder_Revs'!L136 -> 0.011 | O137: 0 | P137: 0
F138: ='8. Funding_Adder_Revs'!F137 -> 2015-06-01 | G138: ='8. Funding_Adder_Revs'!G137 -> 2015 | H138: ='8. Funding_Adder_Revs'!H137 -> Q2 | J138: 0 | M138: 0 | N138: ='8. Funding_Adder_Revs'!L137 -> 0.011 | O138: 0 | P138: 0
F139: ='8. Funding_Adder_Revs'!F138 -> 2015-07-01 | G139: ='8. Funding_Adder_Revs'!G138 -> 2015 | H139: ='8. Funding_Adder_Revs'!H138 -> Q3 | J139: 0 | M139: 0 | N139: ='8. Funding_Adder_Revs'!L138 -> 0.011 | O139: 0 | P139: 0
F140: ='8. Funding_Adder_Revs'!F139 -> 2015-08-01 | G140: ='8. Funding_Adder_Revs'!G139 -> 2015 | H140: ='8. Funding_Adder_Revs'!H139 -> Q3 | J140: 0 | M140: 0 | N140: ='8. Funding_Adder_Revs'!L139 -> 0.011 | O140: 0 | P140: 0
F141: ='8. Funding_Adder_Revs'!F140 -> 2015-09-01 | G141: ='8. Funding_Adder_Revs'!G140 -> 2015 | H141: ='8. Funding_Adder_Revs'!H140 -> Q3 | J141: 0 | M141: 0 | N141: ='8. Funding_Adder_Revs'!L140 -> 0.011 | O141: 0 | P141: 0
F142: ='8. Funding_Adder_Revs'!F141 -> 2015-10-01 | G142: ='8. Funding_Adder_Revs'!G141 -> 2015 | H142: ='8. Funding_Adder_Revs'!H141 -> Q4 | J142: 0 | M142: 0 | N142: ='8. Funding_Adder_Revs'!L141 -> 0.011 | O142: 0 | P142: 0
F143: ='8. Funding_Adder_Revs'!F142 -> 2015-11-01 | G143: ='8. Funding_Adder_Revs'!G142 -> 2015 | H143: ='8. Funding_Adder_Revs'!H142 -> Q4 | J143: 0 | M143: 0 | N143: ='8. Funding_Adder_Revs'!L142 -> 0.011 | O143: 0 | P143: 0
F144: ='8. Funding_Adder_Revs'!F143 -> 2015-12-01 | G144: ='8. Funding_Adder_Revs'!G143 -> 2015 | H144: ='8. Funding_Adder_Revs'!H143 -> Q4 | J144: 0 | M144: 0 | N144: ='8. Funding_Adder_Revs'!L143 -> 0.011 | O144: 0 | P144: 0
F145: ='8. Funding_Adder_Revs'!F144 -> 2016-01-01 | G145: ='8. Funding_Adder_Revs'!G144 -> 2016 | H145: ='8. Funding_Adder_Revs'!H144 -> Q1 | J145: =M144 -> 0 | M145: =J145+K145+L145 -> 0 | N145: ='8. Funding_Adder_Revs'!L144 -> 0.011 | O145: =J145*N145/12 -> 0 | P145: =O145+P144 -> 0
F146: ='8. Funding_Adder_Revs'!F145 -> 2016-02-01 | G146: ='8. Funding_Adder_Revs'!G145 -> 2016 | H146: ='8. Funding_Adder_Revs'!H145 -> Q1 | J146: 0 | M146: 0 | N146: ='8. Funding_Adder_Revs'!L145 -> 0.011 | O146: 0 | P146: 0
F147: ='8. Funding_Adder_Revs'!F146 -> 2016-03-01 | G147: ='8. Funding_Adder_Revs'!G146 -> 2016 | H147: ='8. Funding_Adder_Revs'!H146 -> Q1 | J147: 0 | M147: 0 | N147: ='8. Funding_Adder_Revs'!L146 -> 0.011 | O147: 0 | P147: 0
F148: ='8. Funding_Adder_Revs'!F147 -> 2016-04-01 | G148: ='8. Funding_Adder_Revs'!G147 -> 2016 | H148: ='8. Funding_Adder_Revs'!H147 -> Q2 | J148: 0 | M148: 0 | N148: ='8. Funding_Adder_Revs'!L147 -> 0.011 | O148: 0 | P148: 0
F149: ='8. Funding_Adder_Revs'!F148 -> 2016-05-01 | G149: ='8. Funding_Adder_Revs'!G148 -> 2016 | H149: ='8. Funding_Adder_Revs'!H148 -> Q2 | J149: 0 | M149: 0 | N149: ='8. Funding_Adder_Revs'!L148 -> 0.011 | O149: 0 | P149: 0
F150: ='8. Funding_Adder_Revs'!F149 -> 2016-06-01 | G150: ='8. Funding_Adder_Revs'!G149 -> 2016 | H150: ='8. Funding_Adder_Revs'!H149 -> Q2 | J150: 0 | M150: 0 | N150: ='8. Funding_Adder_Revs'!L149 -> 0.011 | O150: 0 | P150: 0
F151: ='8. Funding_Adder_Revs'!F150 -> 2016-07-01 | G151: ='8. Funding_Adder_Revs'!G150 -> 2016 | H151: ='8. Funding_Adder_Revs'!H150 -> Q3 | J151: 0 | M151: 0 | N151: ='8. Funding_Adder_Revs'!L150 -> 0.011 | O151: 0 | P151: 0
F152: ='8. Funding_Adder_Revs'!F151 -> 2016-08-01 | G152: ='8. Funding_Adder_Revs'!G151 -> 2016 | H152: ='8. Funding_Adder_Revs'!H151 -> Q3 | J152: 0 | M152: 0 | N152: ='8. Funding_Adder_Revs'!L151 -> 0.011 | O152: 0 | P152: 0
F153: ='8. Funding_Adder_Revs'!F152 -> 2016-09-01 | G153: ='8. Funding_Adder_Revs'!G152 -> 2016 | H153: ='8. Funding_Adder_Revs'!H152 -> Q3 | J153: 0 | M153: 0 | N153: ='8. Funding_Adder_Revs'!L152 -> 0.011 | O153: 0 | P153: 0
F154: ='8. Funding_Adder_Revs'!F153 -> 2016-10-01 | G154: ='8. Funding_Adder_Revs'!G153 -> 2016 | H154: ='8. Funding_Adder_Revs'!H153 -> Q4 | J154: 0 | M154: 0 | N154: ='8. Funding_Adder_Revs'!L153 -> 0.011 | O154: 0 | P154: 0
F155: ='8. Funding_Adder_Revs'!F154 -> 2016-11-01 | G155: ='8. Funding_Adder_Revs'!G154 -> 2016 | H155: ='8. Funding_Adder_Revs'!H154 -> Q4 | J155: 0 | M155: 0 | N155: ='8. Funding_Adder_Revs'!L154 -> 0.011 | O155: 0 | P155: 0
F156: ='8. Funding_Adder_Revs'!F155 -> 2016-12-01 | G156: ='8. Funding_Adder_Revs'!G155 -> 2016 | H156: ='8. Funding_Adder_Revs'!H155 -> Q4 | J156: 0 | M156: 0 | N156: ='8. Funding_Adder_Revs'!L155 -> 0.011 | O156: 0 | P156: 0
K158: =SUM(K25:K156) -> 0 | L158: =SUM(L25:L156) -> 0 | M158: =K158+L158 -> 0 | O158: =SUM(O25:O156) -> 0 | P158: =P156 -> 0

Sheet 8B. Opex_Interest_annual
B13: This worksheet calculates the interest on OM&A and amortization/depreciation expense, in the absence of monthly data.
B21: Year | D21: OM&A | F21: Amortization Expense | H21: Cumulative OM&A and Amortization Expense | J21: Average Cumulative OM&A and Amortization Expense | L21: Average Annual Prescribed Interest Rate for Deferral and Variance Accounts (from Sheets 8A and 8B) | N21: Simple Interest on OM&A and Amortization Expenses
D22: (from Sheet 5) | F22: (from Sheet 5)
B23: 2006 | D23: ='5. SM_Rev_Reqt'!G50 -> 0 | F23: ='5. SM_Rev_Reqt'!G58 -> 0 | H23: =D23+F23 -> 0 | J23: =H23/2 -> 0 | L23: =AVERAGE('8A. Opex_Interest_monthly'!$C$26:$C$28,'8A. Opex_Interest_monthly'!$C$26) -> 0.04365 | N23: =J23*L23 -> 0
B24: 2007 | D24: ='5. SM_Rev_Reqt'!I50 -> 0 | F24: ='5. SM_Rev_Reqt'!I58 -> 0 | H24: =H23+D24+F24 -> 0 | J24: =(H24+H23)/2 -> 0 | L24: =AVERAGE('8A. Opex_Interest_monthly'!$C$29:$C$32) -> 0.047275 | N24: 0
B25: 2008 | D25: ='5. SM_Rev_Reqt'!K50 -> 0 | F25: ='5. SM_Rev_Reqt'!K58 -> 0 | H25: 0 | J25: 0 | L25: =AVERAGE('8A. Opex_Interest_monthly'!$C$33:$C$36) -> 0.0398 | N25: 0
B26: 2009 | D26: ='5. SM_Rev_Reqt'!M50 -> 0 | F26: ='5. SM_Rev_Reqt'!M58 -> 0 | H26: 0 | J26: 0 | L26: =AVERAGE('8A. Opex_Interest_monthly'!$C$37:$C$40) -> 0.011375 | N26: 0
B27: 2010 | D27: ='5. SM_Rev_Reqt'!O50 -> 0 | F27: ='5. SM_Rev_Reqt'!O58 -> 0 | H27: 0 | J27: 0 | L27: =AVERAGE('8A. Opex_Interest_monthly'!$C$41:$C$44) -> 0.007975 | N27: 0
B28: 2011 | D28: ='5. SM_Rev_Reqt'!Q50 -> 0 | F28: ='5. SM_Rev_Reqt'!Q58 -> 3946.999 | H28: 3946.999 | J28: 1973.4995 | L28: =AVERAGE('8A. Opex_Interest_monthly'!$C$45:$C$48) -> 0.0147 | N28: 29.01044265
B29: 2012 | D29: ='5. SM_Rev_Reqt'!S50 -> 0 | F29: ='5. SM_Rev_Reqt'!S58 -> 7893.998 | H29: 11840.997 | J29: 7893.998 | L29: =AVERAGE('8A. Opex_Interest_monthly'!N97:N108) -> 0.0147 | N29: 116.0417706
B30: 2013 | D30: ='5. SM_Rev_Reqt'!U50 -> 0 | F30: ='5. SM_Rev_Reqt'!U58 -> 7893.998 | H30: 19734.995 | J30: 15787.996 | L30: =AVERAGE('8A. Opex_Interest_monthly'!N109:N120) -> 0.0147 | N30: 232.0835412
B31: 2014 | D31: ='5. SM_Rev_Reqt'!W50 -> 0 | F31: ='5. SM_Rev_Reqt'!W58 -> 7893.998 | H31: =H30+D31+F31 -> 27628.993 | J31: =(H31+H30)/2 -> 23681.994 | L31: =AVERAGE('8A. Opex_Interest_monthly'!N121:N132) -> 0.0147 | N31: =J31*L31 -> 348.1253118
B32: 2015 | D32: ='5. SM_Rev_Reqt'!Y50 -> 0 | F32: ='5. SM_Rev_Reqt'!Y58 -> 7893.998 | H32: =H31+D32+F32 -> 35522.991 | J32: =(H32+H31)/2 -> 31575.992 | L32: =AVERAGE('8A. Opex_Interest_monthly'!N133:N144) -> 0.011925 | N32: =J32*L32 -> 376.5437046
B33: 2016 | D33: ='5. SM_Rev_Reqt'!AA50 -> 0 | F33: ='5. SM_Rev_Reqt'!AA58 -> 3946.999 | H33: 39469.99 | J33: 37496.4905 | L33: =AVERAGE('8A. Opex_Interest_monthly'!N145:N156) -> 0.011 | N33: 412.4613955
B35: Cumulative Interest to 2012 | N35: =SUM(N23:N29) -> 145.0522132
B36: Cumulative Interest to 2013 | N36: =SUM(N23:N30) -> 377.1357544
B37: Cumulative Interest to 2014 | N37: =SUM(N23:N31) -> 725.2610662
B38: Cumulative Interest to 2015 | N38: =SUM(N23:N32) -> 1101.804771
B39: Cumulative Interest to 2016 | N39: =SUM(N23:N33) -> 1514.266166

Sheet 9. SMFA_SMDR_SMIRR
B14: This worksheet calculates the Smart Meter Disposition Rider and the Smart Meter Incremental Revenue Requirement Rate Rider, if applicable. This worksheet also calculates any new Smart Meter Funding Adder that a distributor may wish to request. However, please note that in many 2011 IRM decisions, the Board noted that current funding adders will cease on April 30, 2011 and that the Board's expectation is that distributors will file for a final review of prudence at the earliest opportunity. The Board also noted that the SMFA is a tool designed to provide advance funding and to mitigate the anticipated rate impact of smart meter costs when recovery of those costs is approved by the Board. The Board observed that the SMFA was not intended to be compensatory (return on and of capital) on a cumulative basis over the term the SMFA was in effect. The SMFA was initially designed to fund future investment, and not fully fund prior capital investment. Distributors that seek a new SMFA should provide evidence to support its proposal. This would include documentation of where the distributor is with respect to its smart meter deployment program, and reasons as to why the distributor's circumstances are such that continuation of the SMFA is warranted. Press the "UPDATE WORKSHEET" button after choosing the applicable adders/riders.
B20: Check if applicable
E22: Smart Meter Funding Adder (SMFA)
C24: X | E24: Smart Meter Disposition Rider (SMDR) | G24: The SMDR is calculated based on costs to December 31, 2015
E26: Smart Meter Incremental Revenue Requirement Rate Rider (SMIRR) | G26: The SMIRR is calculated based on the incremental revenue requirement associated with the recovery of capital related costs to December 31, 2016 and associated OM&A.
G28: 2006 | I28: 2007 | K28: 2008 | M28: 2009 | O28: 2010 | Q28: 2011 | S28: 2012 | U28: 2013 | W28: 2014 | Y28: 2015 | AA28: 2016 | AC28: Total
C30: Deferred and forecasted Smart Meter Incremental Revenue Requirement (from Sheet 5) | G30: ='5. SM_Rev_Reqt'!G70 -> 0 | I30: ='5. SM_Rev_Reqt'!I70 -> 0 | K30: ='5. SM_Rev_Reqt'!K70 -> 0 | M30: ='5. SM_Rev_Reqt'!M70 -> 0 | O30: ='5. SM_Rev_Reqt'!O70 -> 0 | Q30: ='5. SM_Rev_Reqt'!Q70 -> 3928.62294 | S30: ='5. SM_Rev_Reqt'!S70 -> 8507.589683 | U30: ='5. SM_Rev_Reqt'!U70 -> 9582.286488 | W30: ='5. SM_Rev_Reqt'!W70 -> 9783.674002 | Y30: ='5. SM_Rev_Reqt'!Y70 -> 9592.072335 | AA30: ='5. SM_Rev_Reqt'!AA70 -> 4676.909746 | AC30: =SUM(G30:AA30) -> 46071.15519
C32: Interest on Deferred and forecasted OM&A and Amortization Expense (Sheet 8A/8B) | G32: =IF($C35="X",G35,IF($C37="X",G37,0)) -> 0 | I32: =IF($C35="X",I35,IF($C37="X",I37,0)) -> 0 | K32: =IF($C35="X",K35,IF($C37="X",K37,0)) -> 0 | M32: =IF($C35="X",M35,IF($C37="X",M37,0)) -> 0 | O32: =IF($C35="X",O35,IF($C37="X",O37,0)) -> 0 | Q32: =IF($C35="X",Q35,IF($C37="X",Q37,0)) -> 0 | S32: =IF($C35="X",S35,IF($C37="X",S37,0)) -> 0 | U32: =IF($C35="X",U35,IF($C37="X",U37,0)) -> 0 | W32: =IF($C35="X",W35,IF($C37="X",W37,0)) -> 0 | Y32: =IF($C35="X",Y35,IF($C37="X",Y37,0)) -> 0 | AC32: =SUM(G32:Y32) -> 0
C33: (Check one of the boxes below)
C35: X | E35: Sheet 8A (Interest calculated on monthly balances) | G35: =IF($C35="X",SUM('8A. Opex_Interest_monthly'!O25:O36),"") -> 0 | I35: =IF($C35="X",SUM('8A. Opex_Interest_monthly'!O37:O48),"") -> 0 | K35: =IF($C35="X",SUM('8A. Opex_Interest_monthly'!O49:O60),"") -> 0 | M35: =IF($C35="X",SUM('8A. Opex_Interest_monthly'!O61:O72),"") -> 0 | O35: =IF($C35="X",SUM('8A. Opex_Interest_monthly'!O73:O84),"") -> 0 | Q35: =IF($C35="X",SUM('8A. Opex_Interest_monthly'!O85:O96),"") -> 0 | S35: =IF($C35="X",SUM('8A. Opex_Interest_monthly'!O97:O108),"") -> 0 | U35: =IF($C35="X",SUM('8A. Opex_Interest_monthly'!O109:O120),"") -> 0 | W35: =IF($C35="X",SUM('8A. Opex_Interest_monthly'!O121:O132),"") -> 0 | Y35: =IF($C35="X",SUM('8A. Opex_Interest_monthly'!O133:O144),"") -> 0 | AA35: =IF($C35="X",SUM('8A. Opex_Interest_monthly'!O145:O156),"") -> 0 | AC35: =IF($C$35="X",SUM(G35:Y35),"") -> 0
E37: Sheet 8B (Interest calculated on average annual balances) | G37: =IF($C37="X",'8B. Opex_Interest_annual'!N23,"") ->  | I37: =IF($C37="X",'8B. Opex_Interest_annual'!N24,"") ->  | K37: =IF($C37="X",'8B. Opex_Interest_annual'!N25,"") ->  | M37: =IF($C37="X",'8B. Opex_Interest_annual'!N26,"") ->  | O37: =IF($C37="X",'8B. Opex_Interest_annual'!N27,"") ->  | Q37: =IF($C37="X",'8B. Opex_Interest_annual'!N28,"") ->  | S37: =IF($C37="X",'8B. Opex_Interest_annual'!N29,"") ->  | U37: =IF($C37="X",'8B. Opex_Interest_annual'!N30,"") ->  | W37: =IF($C37="X",'8B. Opex_Interest_annual'!N31,"") ->  | Y37: =IF($C37="X",'8B. Opex_Interest_annual'!N32,"") ->  | AA37: =IF($C37="X",'8B. Opex_Interest_annual'!N33,"") ->  | AC37: =IF($C$37="X",SUM(G37:Y37),"") -> 
C40: SMFA Revenues (from Sheet 8) | G40: =SUM('8. Funding_Adder_Revs'!K24:K35) -> 0 | I40: =SUM('8. Funding_Adder_Revs'!K36:K47) -> 0 | K40: =SUM('8. Funding_Adder_Revs'!K48:K59) -> 0 | M40: =SUM('8. Funding_Adder_Revs'!K60:K71) -> 0 | O40: =SUM('8. Funding_Adder_Revs'!K72:K83) -> 0 | Q40: =SUM('8. Funding_Adder_Revs'!K84:K95) -> 0 | S40: =SUM('8. Funding_Adder_Revs'!K96:K107) -> 0 | U40: =SUM('8. Funding_Adder_Revs'!K108:K119) -> 0 | W40: =SUM('8. Funding_Adder_Revs'!K120:K131) -> 0 | Y40: =SUM('8. Funding_Adder_Revs'!K132:K143) -> 0 | AA40: =SUM('8. Funding_Adder_Revs'!K144:K155) -> 0 | AC40: =SUM(G40:AA40) -> 0
C42: SMFA Interest (from Sheet 8) | G42: =SUM('8. Funding_Adder_Revs'!M24:M35) -> 0 | I42: =SUM('8. Funding_Adder_Revs'!M36:M47) -> 0 | K42: =SUM('8. Funding_Adder_Revs'!M48:M59) -> 0 | M42: =SUM('8. Funding_Adder_Revs'!M60:M71) -> 0 | O42: =SUM('8. Funding_Adder_Revs'!M72:M83) -> 0 | Q42: =SUM('8. Funding_Adder_Revs'!M84:M95) -> 0 | S42: =SUM('8. Funding_Adder_Revs'!M96:M107) -> 0 | U42: =SUM('8. Funding_Adder_Revs'!M108:M119) -> 0 | W42: =SUM('8. Funding_Adder_Revs'!M120:M131) -> 0 | Y42: =SUM('8. Funding_Adder_Revs'!M132:M143) -> 0 | AA42: =SUM('8. Funding_Adder_Revs'!M144:M155) -> 0 | AC42: =SUM(G42:AA42) -> 0
C44: Net Deferred Revenue Requirement | G44: =(G30+G32)-(G40+G42) -> 0 | I44: =(I30+I32)-(I40+I42) -> 0 | K44: =(K30+K32)-(K40+K42) -> 0 | M44: =(M30+M32)-(M40+M42) -> 0 | O44: =(O30+O32)-(O40+O42) -> 0 | Q44: =(Q30+Q32)-(Q40+Q42) -> 3928.62294 | S44: =(S30+S32)-(S40+S42) -> 8507.589683 | U44: =(U30+U32)-(U40+U42) -> 9582.286488 | W44: =(W30+W32)-(W40+W42) -> 9783.674002 | Y44: =(Y30+Y32)-(Y40+Y42) -> 9592.072335 | AA44: =(AA30+AA32)-(AA40+AA42) -> 4676.909746 | AC44: =(AC30+AC32)-(AC40+AC42) -> 46071.15519
C46: Number of Metered Customers (average for 2016 test year) | AA46: 5806
D47: - Number of metered customers for which smart meter were deployed as part of program). Residential and GS < 50 kW customer classes and any other metered classes involved (e.g. GS 50 to 4999 kW for which interval meters were upgraded to utilize AMI and ODS assets)
C49: Calculation of Smart Meter Funding Adder (per metered customer per month)
D51: Net Deferred Revenues | F51: May 1, 2006 to December 31, 2015 | G51: =AC44 -> 46071.15519
D53: SMFA | F53: XXX 1, 2016 to XXX 30/31, 201X | G53: =IF(AA46=0,"",ROUND(U44/(AA46*12),2)) -> 0.14
D55: Check: Forecasted SMFA Revenues for 2016 test year | G55: =IF(AA46=0,"",G53*AA46*12) -> 9754.08
C57: Calculation of Smart Meter Disposition Rider (per metered customer per month)
D59: Years for collection or refunding | G59: 1
D61: Deferred Incremental Revenue Requirement from 2006 to December 31, 2015 | G61: =SUM(G30:Y30)+SUM(G32:Y32) -> 41394.24545
E62: plus Interest on OM&A and Amortization
D63: SMFA Revenues collected from 2006 to 2015 test year (inclusive) | G63: =AC40+SUM(G42:AA42) -> 0
E64: Plus Simple Interest on SMFA Revenues
D65: Net Deferred Revenue Requirement | G65: =G61-G63 -> 41394.24545
D67: SMDR | F67: May 1, 2016 - April 30, 2017 | G67: =IF(AA46=0,"",ROUND(G65/(AA46*12*G59),2)) -> 0.59
D69: Check: Forecasted SMDR Revenues | G69: =IF(ISERROR(G67*AA46*12*G59), "", G67*AA46*12*G59) -> 41106.48 | I69: =IF(ISERROR(G69/G65), "Error", IF(G69/G65>=95%, "Match", "Error")) -> Match
C71: Calculation of Smart Meter Incremental Revenue Requirement Rate Rider (per metered customer per month)
D73: Incremental Revenue Requirement for 2016 | G73: =AA30 -> 4676.909746
D75: SMIRR | G75: =IF(ISERROR(ROUND(G73/(AA46*12),2)), "", ROUND(G73/(AA46*12),2)) -> 0.07
D77: Check: Forecasted SMIRR Revenues | G77: =IF(ISERROR(G75*AA46*12), "", G75*AA46*12) -> 4877.04 | I77: =IF(ISERROR(G77/G73), "Error", IF(G77/G73>=95%, "Match", "Error")) -> Match

Sheet 10A. Cost_Alloc_SMDR
B13: This worksheet calculates the class-specific SMDRs according to accepted practice. A distributor may choose to use its own methodology, but should provide analogous support for its allocation and derivation of class-specific SMDRs and SMIRRs.
B20: Class-specific SMDRs
B22: Revenue Requirement for Historical Years | C22: 2006 | E22: 2007 | G22: 2008 | I22: 2009 | K22: 2010 | M22: 2011 | O22: 2012 | Q22: 2013 | S22: 2014 | U22: 2015 | W22: Total 2006 to 2015 | X22: Explanation / Allocator | Z22: Residential | AB22: GS < 50 kW | AD22: GS 50 to 4999 kW | AF22: Other (please specify) | AH22: Total
X23: Check Row if SMDR/SMIRR apply to class | Z23: X | AB23: X | AH23: =COUNTIF(Z23:AF23,"X") -> 2
Z24: % | AB24: % | AD24: % | AF24: %
X25: Weighted Meter Cost - Capital | Z25: 0.87 | AB25: 0.13 | AH25: =Z25+AB25+AD25+AF25 -> 1
B26: Return on Capital | C26: ='5. SM_Rev_Reqt'!G47 -> 0 | E26: ='5. SM_Rev_Reqt'!I47 -> 0 | G26: ='5. SM_Rev_Reqt'!K47 -> 0 | I26: ='5. SM_Rev_Reqt'!M47 -> 0 | K26: ='5. SM_Rev_Reqt'!O47 -> 0 | M26: ='5. SM_Rev_Reqt'!Q47 -> 1136.94885 | O26: ='5. SM_Rev_Reqt'!S47 -> 1841.259246 | Q26: ='5. SM_Rev_Reqt'!U47 -> 1380.944434 | S26: ='5. SM_Rev_Reqt'!W47 -> 920.6296228 | U26: ='5. SM_Rev_Reqt'!Y47 -> 460.3148114 | W26: =SUM(C26,E26,G26,I26,K26,M26,O26,Q26,S26,U26) -> 5740.096964 | X26: Allocated per class | Z26: =W26*Z25 -> 4993.884358 | AB26: =W26*AB25 -> 746.2126053 | AD26: =W26*AD25 -> 0 | AF26: =W26*AF25 -> 0
B28: Depreciation/Amortization expense and related interest | C28: ='5. SM_Rev_Reqt'!G58 -> 0 | E28: ='5. SM_Rev_Reqt'!I58 -> 0 | G28: ='5. SM_Rev_Reqt'!K58 -> 0 | I28: ='5. SM_Rev_Reqt'!M58 -> 0 | K28: ='5. SM_Rev_Reqt'!O58 -> 0 | M28: ='5. SM_Rev_Reqt'!Q58 -> 3946.999 | O28: ='5. SM_Rev_Reqt'!S58 -> 7893.998 | Q28: ='5. SM_Rev_Reqt'!U58 -> 7893.998 | S28: ='5. SM_Rev_Reqt'!W58 -> 7893.998 | U28: ='5. SM_Rev_Reqt'!Y58 -> 7893.998
C29: =IF(C28+C32=0,0,'9. SMFA_SMDR_SMIRR'!G32*C28/(C28+C32)) -> 0 | E29: =IF(E28+E32=0,0,'9. SMFA_SMDR_SMIRR'!I32*E28/(E28+E32)) -> 0 | G29: =IF(G28+G32=0,0,'9. SMFA_SMDR_SMIRR'!K32*G28/(G28+G32)) -> 0 | I29: =IF(I28+I32=0,0,'9. SMFA_SMDR_SMIRR'!M32*I28/(I28+I32)) -> 0 | K29: =IF(K28+K32=0,0,'9. SMFA_SMDR_SMIRR'!O32*K28/(K28+K32)) -> 0 | M29: =IF(M28+M32=0,0,'9. SMFA_SMDR_SMIRR'!Q32*M28/(M28+M32)) -> 0 | O29: =IF(O28+O32=0,0,'9. SMFA_SMDR_SMIRR'!S32*O28/(O28+O32)) -> 0 | Q29: =IF(Q28+Q32=0,0,'9. SMFA_SMDR_SMIRR'!U32*Q28/(Q28+Q32)) -> 0 | S29: =IF(S28+S32=0,0,'9. SMFA_SMDR_SMIRR'!W32*S28/(S28+S32)) -> 0 | U29: =IF(U28+U32=0,0,'9. SMFA_SMDR_SMIRR'!Y32*U28/(U28+U32)) -> 0 | X29: =X25 -> Weighted Meter Cost - Capital | Z29: =Z25 -> 0.87 | AB29: =AB25 -> 0.13 | AD29: =AD25 -> 0 | AF29: =AF25 -> 0 | AH29: =Z29+AB29+AD29+AF29 -> 1
C30: =C28+C29 -> 0 | E30: =E28+E29 -> 0 | G30: =G28+G29 -> 0 | I30: =I28+I29 -> 0 | K30: =K28+K29 -> 0 | M30: =M28+M29 -> 3946.999 | O30: =O28+O29 -> 7893.998 | Q30: =Q28+Q29 -> 7893.998 | S30: =S28+S29 -> 7893.998 | U30: =U28+U29 -> 7893.998 | W30: =SUM(C30,E30,G30,I30,K30,M30,O30,Q30,S30,U30) -> 35522.991 | X30: =X26 -> Allocated per class | Z30: =W30*Z29 -> 30905.00217 | AB30: =W30*AB29 -> 4617.98883 | AD30: =W30*AD29 -> 0 | AF30: =W30*AF29 -> 0
B32: Operating Expenses and related interest | C32: ='5. SM_Rev_Reqt'!G50 -> 0 | E32: ='5. SM_Rev_Reqt'!I50 -> 0 | G32: ='5. SM_Rev_Reqt'!K50 -> 0 | I32: ='5. SM_Rev_Reqt'!M50 -> 0 | K32: ='5. SM_Rev_Reqt'!O50 -> 0 | M32: ='5. SM_Rev_Reqt'!Q50 -> 0 | O32: ='5. SM_Rev_Reqt'!S50 -> 0 | Q32: ='5. SM_Rev_Reqt'!U50 -> 0 | S32: ='5. SM_Rev_Reqt'!W50 -> 0 | U32: ='5. SM_Rev_Reqt'!Y50 -> 0 | X32: Number of Smart Meters installed by Class | Z32: # | AB32: # | AD32: # | AF32: #
C33: ='9. SMFA_SMDR_SMIRR'!G32 -> 0 | E33: ='9. SMFA_SMDR_SMIRR'!I32 -> 0 | G33: =IF((G28+G32)=0,0,'9. SMFA_SMDR_SMIRR'!K32*G32/(G28+G32)) -> 0 | I33: =IF((I28+I32)=0,0,'9. SMFA_SMDR_SMIRR'!M32*I32/(I28+I32)) -> 0 | K33: =IF((K28+K32)=0,0,'9. SMFA_SMDR_SMIRR'!O32*K32/(K28+K32)) -> 0 | M33: =IF((M28+M32)=0,0,'9. SMFA_SMDR_SMIRR'!Q32*M32/(M28+M32)) -> 0 | O33: =IF((O28+O32)=0,0,'9. SMFA_SMDR_SMIRR'!S32*O32/(O28+O32)) -> 0 | Q33: =IF((Q28+Q32)=0,0,'9. SMFA_SMDR_SMIRR'!U32*Q32/(Q28+Q32)) -> 0 | S33: =IF((S28+S32)=0,0,'9. SMFA_SMDR_SMIRR'!W32*S32/(S28+S32)) -> 0 | U33: =IF((U28+U32)=0,0,'9. SMFA_SMDR_SMIRR'!Y32*U32/(U28+U32)) -> 0 | Z33: 5064 | AB33: 742
C34: =C32+C33 -> 0 | E34: =E32+E33 -> 0 | G34: =G32+G33 -> 0 | I34: =I32+I33 -> 0 | K34: =K32+K33 -> 0 | M34: =M32+M33 -> 0 | O34: =O32+O33 -> 0 | Q34: =Q32+Q33 -> 0 | S34: =S32+S33 -> 0 | U34: =U32+U33 -> 0 | W34: =SUM(C34,E34,G34,I34,K34,M34,O34,Q34,S34,U34) -> 0 | X34: Allocated per class | Z34: =IF(SUM($Z33,$AB33,$AD33,$AF33)=0,0,$W34*Z33/(SUM($Z33,$AB33,$AD33,$AF33))) -> 0 | AB34: =IF(SUM($Z33,$AB33,$AD33,$AF33)=0,0,$W34*AB33/(SUM($Z33,$AB33,$AD33,$AF33))) -> 0 | AD34: =IF(SUM($Z33,$AB33,$AD33,$AF33)=0,0,$W34*AD33/(SUM($Z33,$AB33,$AD33,$AF33))) -> 0 | AF34: =IF(SUM($Z33,$AB33,$AD33,$AF33)=0,0,$W34*AF33/(SUM($Z33,$AB33,$AD33,$AF33))) -> 0
B36: Revenue Requirement before Taxes/PILs | W36: =W26+W30+W34 -> 41263.08796 | Z36: =Z26+Z30+Z34 -> 35898.88653 | AB36: =AB26+AB30+AB34 -> 5364.201435 | AD36: =AD26+AD30+AD34 -> 0 | AF36: =AF26+AF30+AF34 -> 0 | AH36: =W36-SUM(Z36,AB36,AD36,AF36) -> 0
X38: Revenue Requirement before PILs | Z38: =IF(Z36=0,0,Z36/SUM($Z36,$AB36,$AD36,$AF36)) -> 0.87 | AB38: =IF(AB36=0,0,AB36/SUM($Z36,$AB36,$AD36,$AF36)) -> 0.13 | AD38: =IF(AD36=0,0,AD36/SUM($Z36,$AB36,$AD36,$AF36)) -> 0 | AF38: =IF(AF36=0,0,AF36/SUM($Z36,$AB36,$AD36,$AF36)) -> 0 | AH38: =Z38+AB38+AD38+AF38 -> 1
B40: Grossed-up Taxes/PILs | C40: ='5. SM_Rev_Reqt'!G68 -> 0 | E40: ='5. SM_Rev_Reqt'!I68 -> 0 | G40: ='5. SM_Rev_Reqt'!K68 -> 0 | I40: ='5. SM_Rev_Reqt'!M68 -> 0 | K40: ='5. SM_Rev_Reqt'!O68 -> 0 | M40: ='5. SM_Rev_Reqt'!Q68 -> -1155.32491 | O40: ='5. SM_Rev_Reqt'!S68 -> -1227.667562 | Q40: ='5. SM_Rev_Reqt'!U68 -> 307.344054 | S40: ='5. SM_Rev_Reqt'!W68 -> 969.0463793 | U40: ='5. SM_Rev_Reqt'!Y68 -> 1237.759524 | W40: =SUM(C40,E40,G40,I40,K40,M40,O40,Q40,S40,U40) -> 131.1574849 | Z40: =W40*Z38 -> 114.1070119 | AB40: =W40*AB38 -> 17.05047304 | AD40: =W40*AD38 -> 0 | AF40: =W40*AF38 -> 0
B42: Total Revenue Requirement plus interest on OM&A and depreciation expense | W42: =W36+W40 -> 41394.24545 | Z42: =Z36+Z40 -> 36012.99354 | AB42: =AB36+AB40 -> 5381.251908 | AD42: =AD40+AD36 -> 0 | AF42: =AF40+AF36 -> 0
X43: Percentage of costs allocated to each class | Z43: =IF(SUM($Z42,$AB42,$AD42,$AF42)=0,0,Z42/(SUM($Z42,$AB42,$AD42,$AF42))) -> 0.87 | AB43: =IF(SUM($Z42,$AB42,$AD42,$AF42)=0,0,AB42/(SUM($Z42,$AB42,$AD42,$AF42))) -> 0.13 | AD43: =IF(SUM($Z42,$AB42,$AD42,$AF42)=0,0,AD42/(SUM($Z42,$AB42,$AD42,$AF42))) -> 0 | AF43: =IF(SUM($Z42,$AB42,$AD42,$AF42)=0,0,AF42/(SUM($Z42,$AB42,$AD42,$AF42))) -> 0
W44: =W42-'9. SMFA_SMDR_SMIRR'!G61 -> 0 | X44: Percentage of costs for classes with SMDR/SMIRR | Z44: =IF(Z23="X",Z43,0) -> 0.87 | AB44: =IF(AB23="X",AB43,0) -> 0.13 | AD44: =IF(AD23="X",AD43,0) -> 0 | AF44: =IF(AF23="X",AF43,0) -> 0
Z45: =IF(SUM($Z44,$AB44,$AD44,$AF44)=0,0,Z44/SUM($Z44,$AB44,$AD44,$AF44)) -> 0.87 | AB45: =IF(SUM($Z44,$AB44,$AD44,$AF44)=0,0,AB44/SUM($Z44,$AB44,$AD44,$AF44)) -> 0.13 | AD45: =IF(SUM($Z44,$AB44,$AD44,$AF44)=0,0,AD44/SUM($Z44,$AB44,$AD44,$AF44)) -> 0 | AF45: =IF(SUM($Z44,$AB44,$AD44,$AF44)=0,0,AF44/SUM($Z44,$AB44,$AD44,$AF44)) -> 0
Z47: % | AB47: % | AD47: % | AF47: %
O48: SMFA Revenues directly attributable to class | AH48: =Z48+AB48+AD48+AF48 -> 0
O49: Residual SMFA Revenues (from other metered classes) attributed evenly | Z49: =IF(Z23="X",Z48,0) -> 0 | AB49: =IF(AB23="X",AB48,0) -> 0 | AD49: =IF(AD23="X",AD48,0) -> 0 | AF49: =IF(AF23="X",AF48,0) -> 0 | AH49: =Z49+AB49+AD49+AF49 -> 0
Z50: =IF(Z23="X",(100%-$AH49)/$AH$23,0) -> 0.5 | AB50: =IF(AB23="X",(100%-$AH49)/$AH$23,0) -> 0.5 | AD50: =IF(AD23="X",(100%-$AH49)/$AH$23,0) -> 0 | AF50: =IF(AF23="X",(100%-$AH49)/$AH$23,0) -> 0
O51: Total | Z51: =Z48+Z50 -> 0.5 | AB51: =AB48+AB50 -> 0.5 | AD51: =AD48+AD50 -> 0 | AF51: =AF48+AF50 -> 0
B53: SMFA Revenues plus interest expense | W53: ='9. SMFA_SMDR_SMIRR'!G63 -> 0 | Z53: =W53*Z51 -> 0 | AB53: =W53*AB51 -> 0 | AD53: =W53*AD51 -> 0 | AF53: =W53*AF51 -> 0
B55: Net Deferred Revenue Requirement to be recovered via SMDR | W55: =W42-W53 -> 41394.24545 | Z55: =IF(Z23="X",Z42-Z53,0) -> 36012.99354 | AB55: =IF(AB23="X",AB42-AB53,0) -> 5381.251908 | AD55: =IF(AD23="X",AD42-AD53,0) -> 0 | AF55: =IF(AF23="X",AF42-AF53,0) -> 0
B57: Average number of metered customers by class (2015), for customer classes with smart meters deployed | W57: Average number of customers (2015), for applicable classes | Z57: 5064 | AB57: 742 | AD57: 0 | AF57: 0
B59: Number of Years for SMDR recovery | W59: 1 | X59: years | Z59: =W59 -> 1 | AB59: =W59 -> 1 | AD59: =W59 -> 1 | AF59: =W59 -> 1
B61: Smart Meter Disposition Rider ($/month per metered customer in the customer class) | Z61: =IF(Z23="X",IF(Z57*Z59=0,"",ROUND(Z55/(Z57*Z59*12),2)),"") -> 0.59 | AB61: =IF(AB23="X",IF(AB57*AB59=0,"",ROUND(AB55/(AB57*AB59*12),2)),"") -> 0.6 | AD61: =IF(AD23="X",IF(AD57*AD59=0,"",ROUND(AD55/(AD57*AD59*12),2)),"") ->  | AF61: =IF(AF23="X",IF(AF57*AF59=0,"",ROUND(AF55/(AF57*AF59*12),2)),"") -> 
B63: Estimated SMDR Revenues | W63: =Z63+AB63+AD63+AF63 -> 41195.52 | Z63: =IF(Z23="X",IF(Z57=0,0,Z61*Z59*Z57*12),0) -> 35853.12 | AB63: =IF(AB23="X",IF(AB57=0,0,AB61*AB59*AB57*12),0) -> 5342.4 | AD63: =IF(AD23="X",IF(AD57=0,0,AD61*AD59*AD57*12),0) -> 0 | AF63: =IF(AF23="X",IF(AF57=0,0,AF61*AF59*AF57*12),0) -> 0
W65: =W55-W63 -> 198.7254487

Sheet 10B. Cost_Alloc_SMIRR
B13: This worksheet calculates the class-specific SMIRRs according to accepted practice. A distributor may choose to use its own methodology, but should provide analogous support for its allocation and derivation of class-specific SMDRs and SMIRRs.
B20: Class-specific SMDRs
B22: Revenue Requirement for 2016 | C22: 2006 | E22: 2007 | G22: 2008 | I22: 2009 | K22: 2010 | M22: 2011 | O22: 2012 | Q22: 2016 | R22: Explanation / Allocator | T22: Residential | V22: GS < 50 kW | X22: GS 50 to 4999 kW | Z22: ='10A. Cost_Alloc_SMDR'!AF22 -> Other (please specify) | AB22: Total
R23: Check Row if SMDR/SMIRR apply to class | T23: =IF('10A. Cost_Alloc_SMDR'!Z23="X","X","") -> X | V23: =IF('10A. Cost_Alloc_SMDR'!AB23="X","X","") -> X | X23: =IF('10A. Cost_Alloc_SMDR'!AD23="X","X","") ->  | Z23: =IF('10A. Cost_Alloc_SMDR'!AF23="X","X","") ->  | AB23: =COUNTIF(T23:Z23,"X") -> 2
T24: % | V24: % | X24: % | Z24: %
R25: Weighted Meter Cost - Capital | T25: ='10A. Cost_Alloc_SMDR'!Z25 -> 0.87 | V25: ='10A. Cost_Alloc_SMDR'!AB25 -> 0.13 | X25: ='10A. Cost_Alloc_SMDR'!AD25 -> 0 | Z25: ='10A. Cost_Alloc_SMDR'!AF25 -> 0 | AB25: =T25+V25+X25+Z25 -> 1
B26: Return on Capital | C26: ='5. SM_Rev_Reqt'!G47 -> 0 | E26: ='5. SM_Rev_Reqt'!I47 -> 0 | G26: ='5. SM_Rev_Reqt'!K47 -> 0 | I26: ='5. SM_Rev_Reqt'!M47 -> 0 | K26: ='5. SM_Rev_Reqt'!O47 -> 0 | M26: ='5. SM_Rev_Reqt'!Q47 -> 1136.94885 | O26: ='5. SM_Rev_Reqt'!S47 -> 1841.259246 | Q26: ='5. SM_Rev_Reqt'!AA47 -> 110.9817179 | R26: Allocated per class | T26: =Q26*T25 -> 96.55409456 | V26: =Q26*V25 -> 14.42762332 | X26: =Q26*X25 -> 0 | Z26: =Q26*Z25 -> 0
B28: Depreciation/Amortization expense | C28: ='5. SM_Rev_Reqt'!G58 -> 0 | E28: ='5. SM_Rev_Reqt'!I58 -> 0 | G28: ='5. SM_Rev_Reqt'!K58 -> 0 | I28: ='5. SM_Rev_Reqt'!M58 -> 0 | K28: ='5. SM_Rev_Reqt'!O58 -> 0 | M28: ='5. SM_Rev_Reqt'!Q58 -> 3946.999 | O28: ='5. SM_Rev_Reqt'!S58 -> 7893.998
C29: =IF(C28+C32=0,0,'9. SMFA_SMDR_SMIRR'!G32*C28/(C28+C32)) -> 0 | E29: =IF(E28+E32=0,0,'9. SMFA_SMDR_SMIRR'!I32*E28/(E28+E32)) -> 0 | G29: =IF(G28+G32=0,0,'9. SMFA_SMDR_SMIRR'!K32*G28/(G28+G32)) -> 0 | I29: =IF(I28+I32=0,0,'9. SMFA_SMDR_SMIRR'!M32*I28/(I28+I32)) -> 0 | K29: =IF(K28+K32=0,0,'9. SMFA_SMDR_SMIRR'!O32*K28/(K28+K32)) -> 0 | M29: =IF(M28+M32=0,0,'9. SMFA_SMDR_SMIRR'!Q32*M28/(M28+M32)) -> 0 | O29: =IF(O28+O32=0,0,'9. SMFA_SMDR_SMIRR'!S32*O28/(O28+O32)) -> 0 | R29: =R25 -> Weighted Meter Cost - Capital | T29: =T25 -> 0.87 | V29: =V25 -> 0.13 | X29: =X25 -> 0 | Z29: =Z25 -> 0 | AB29: =T29+V29+X29+Z29 -> 1
C30: =C28+C29 -> 0 | E30: =E28+E29 -> 0 | G30: =G28+G29 -> 0 | I30: =I28+I29 -> 0 | K30: =K28+K29 -> 0 | M30: =M28+M29 -> 3946.999 | O30: =O28+O29 -> 7893.998 | Q30: ='5. SM_Rev_Reqt'!AA58 -> 3946.999 | R30: =R26 -> Allocated per class | T30: =Q30*T29 -> 3433.88913 | V30: =Q30*V29 -> 513.10987 | X30: =Q30*X29 -> 0 | Z30: =Q30*Z29 -> 0
B32: Operating Expenses | C32: ='5. SM_Rev_Reqt'!G50 -> 0 | E32: ='5. SM_Rev_Reqt'!I50 -> 0 | G32: ='5. SM_Rev_Reqt'!K50 -> 0 | I32: ='5. SM_Rev_Reqt'!M50 -> 0 | K32: ='5. SM_Rev_Reqt'!O50 -> 0 | M32: ='5. SM_Rev_Reqt'!Q50 -> 0 | O32: ='5. SM_Rev_Reqt'!S50 -> 0 | Q32: ='5. SM_Rev_Reqt'!AA50 -> 0 | R32: Number of Smart Meters installed by Class | T32: # | V32: # | X32: # | Z32: #
C33: ='9. SMFA_SMDR_SMIRR'!G32 -> 0 | E33: ='9. SMFA_SMDR_SMIRR'!I32 -> 0 | G33: ='9. SMFA_SMDR_SMIRR'!K32 -> 0 | I33: ='9. SMFA_SMDR_SMIRR'!M32 -> 0 | K33: ='9. SMFA_SMDR_SMIRR'!O32 -> 0 | M33: ='9. SMFA_SMDR_SMIRR'!Q32 -> 0 | O33: ='9. SMFA_SMDR_SMIRR'!S32 -> 0 | T33: ='10A. Cost_Alloc_SMDR'!Z33 -> 5064 | V33: ='10A. Cost_Alloc_SMDR'!AB33 -> 742 | X33: ='10A. Cost_Alloc_SMDR'!AD33 -> 0 | Z33: ='10A. Cost_Alloc_SMDR'!AF33 -> 0
C34: =C32+C33 -> 0 | E34: =E32+E33 -> 0 | G34: =G32+G33 -> 0 | I34: =I32+I33 -> 0 | K34: =K32+K33 -> 0 | M34: =M32+M33 -> 0 | O34: =O32+O33 -> 0 | Q34: =SUM(T34,V34,X34,Z34) -> 0 | R34: Allocated per class | T34: =IF(SUM($T33,$V33,$X33,$Z33)=0,0,$Q32*T33/(SUM($T33,$V33,$X33,$Z33))) -> 0 | V34: =IF(SUM($T33,$V33,$X33,$Z33)=0,0,$Q32*V33/(SUM($T33,$V33,$X33,$Z33))) -> 0 | X34: =IF(SUM($T33,$V33,$X33,$Z33)=0,0,$Q32*X33/(SUM($T33,$V33,$X33,$Z33))) -> 0 | Z34: =IF(SUM($T33,$V33,$X33,$Z33)=0,0,$Q32*Z33/(SUM($T33,$V33,$X33,$Z33))) -> 0
B36: Revenue Requirement before Taxes/PILs | Q36: =Q26+Q30+Q32 -> 4057.980718 | T36: =T26+T30+T34 -> 3530.443225 | V36: =V26+V30+V34 -> 527.5374933 | X36: =X26+X30+X34 -> 0 | Z36: =Z26+Z30+Z34 -> 0 | AB36: =Q36-SUM(T36,V36,X36,Z36) -> 0
R38: Revenue Requirement before PILs | T38: =IF(T36=0,0,T36/SUM($T36,$V36,$X36,$Z36)) -> 0.87 | V38: =IF(V36=0,0,V36/SUM($T36,$V36,$X36,$Z36)) -> 0.13 | X38: =IF(X36=0,0,X36/SUM($T36,$V36,$X36,$Z36)) -> 0 | Z38: =IF(Z36=0,0,Z36/SUM($T36,$V36,$X36,$Z36)) -> 0 | AB38: =T38+V38+X38+Z38 -> 1
B40: Grossed-up Taxes/PILs | C40: ='5. SM_Rev_Reqt'!G68 -> 0 | E40: ='5. SM_Rev_Reqt'!I68 -> 0 | G40: ='5. SM_Rev_Reqt'!K68 -> 0 | I40: ='5. SM_Rev_Reqt'!M68 -> 0 | K40: ='5. SM_Rev_Reqt'!O68 -> 0 | M40: ='5. SM_Rev_Reqt'!Q68 -> -1155.32491 | O40: ='5. SM_Rev_Reqt'!S68 -> -1227.667562 | Q40: ='5. SM_Rev_Reqt'!AA68 -> 618.9290281 | T40: =Q40*T38 -> 538.4682545 | V40: =Q40*V38 -> 80.46077366 | X40: =Q40*X38 -> 0 | Z40: =Q40*Z38 -> 0
B42: Total Revenue Requirement for 2013 | Q42: =Q36+Q40 -> 4676.909746 | T42: =T36+T40 -> 4068.911479 | V42: =V36+V40 -> 607.998267 | X42: =X40+X36 -> 0 | Z42: =Z40+Z36 -> 0
R43: Percentage of costs allocated to each class | T43: =IF(SUM($T42,$V42,$X42,$Z42)=0,0,T42/(SUM($T42,$V42,$X42,$Z42))) -> 0.87 | V43: =IF(SUM($T42,$V42,$X42,$Z42)=0,0,V42/(SUM($T42,$V42,$X42,$Z42))) -> 0.13 | X43: =IF(SUM($T42,$V42,$X42,$Z42)=0,0,X42/(SUM($T42,$V42,$X42,$Z42))) -> 0 | Z43: =IF(SUM($T42,$V42,$X42,$Z42)=0,0,Z42/(SUM($T42,$V42,$X42,$Z42))) -> 0
Q44: =Q42-'9. SMFA_SMDR_SMIRR'!G73 -> 0 | R44: Percentage of costs for classes with SMDR/SMIRR | T44: =IF(T23="X",T43,0) -> 0.87 | V44: =IF(V23="X",V43,0) -> 0.13 | X44: =IF(X23="X",X43,0) -> 0 | Z44: =IF(Z23="X",Z43,0) -> 0
T45: =IF(SUM($T44,$V44,$X44,$Z44)=0,0,T44/SUM($T44,$V44,$X44,$Z44)) -> 0.87 | V45: =IF(SUM($T44,$V44,$X44,$Z44)=0,0,V44/SUM($T44,$V44,$X44,$Z44)) -> 0.13 | X45: =IF(SUM($T44,$V44,$X44,$Z44)=0,0,X44/SUM($T44,$V44,$X44,$Z44)) -> 0 | Z45: =IF(SUM($T44,$V44,$X44,$Z44)=0,0,Z44/SUM($T44,$V44,$X44,$Z44)) -> 0
B48: Average number of metered customers by class (2013) | T48: ='10A. Cost_Alloc_SMDR'!Z57 -> 5064 | V48: ='10A. Cost_Alloc_SMDR'!AB57 -> 742 | X48: ='10A. Cost_Alloc_SMDR'!AD57 -> 0 | Z48: ='10A. Cost_Alloc_SMDR'!AF57 -> 0
B50: The SMIRR is recovered as an annualized rate until the effective date of the distributor's next rebased rates resulting from a cost of service application | Q50: 1 | R50: year | T50: =Q50 -> 1 | V50: =Q50 -> 1 | X50: =Q50 -> 1 | Z50: =Q50 -> 1
B52: Smart Meter Incremental Revenue Requirement Rate Rider ($/month per metered customer in the customer class) | T52: =IF(T23="X",IF(T48*T50=0,"",ROUND(T42/(T48*T50*12),2)),"") -> 0.07 | V52: =IF(V23="X",IF(V48*V50=0,"",ROUND(V42/(V48*V50*12),2)),"") -> 0.07 | X52: =IF(X23="X",IF(X48*X50=0,"",ROUND(X42/(X48*X50*12),2)),"") ->  | Z52: =IF(Z23="X",IF(Z48*Z50=0,"",ROUND(Z42/(Z48*Z50*12),2)),"") -> 
B54: Estimated SMIRR Revenues | Q54: =T54+V54+X54+Z54 -> 4877.04 | T54: =IF(T23="X",IF(T48=0,0,T52*T50*T48*12),0) -> 4253.76 | V54: =IF(V23="X",IF(V48=0,0,V52*V50*V48*12),0) -> 623.28 | X54: =IF(X23="X",IF(X48=0,0,X52*X50*X48*12),0) -> 0 | Z54: =IF(Z23="X",IF(Z48=0,0,Z52*Z50*Z48*12),0) -> 0
Q56: =Q54-Q42 -> 200.130254
